{"text_format":"1","workbook":"xlsx","n_sheets":11,"sheets":["Suivi","Cas de tests internes","Indicateurs Tests","Liste des Bénéficiaires","Liste des ETS","Bénéficiaires","Configuration","Contacts","Remarques","Paramétrage SoapUi","Fichier de paramétrage vierge"],"not_rendered":{"charts":2,"images":1,"macros":1,"external_links":0,"defined_names":7,"comments":0,"pivot_tables":0},"unopened":[],"bounds":{"document_bytes":16777216,"sheet_cells":100000,"rows_first":2000,"rows_last":500,"rows_between":2000,"halvings":0,"cell_chars":16384,"cell_head_chars":4096},"cells_cut":0,"cells_raw":0,"read":"whole","date_system":"1900"}

{"sheet":"Suivi","index":0,"n_rows":26,"n_cols":5,"rows_kept":26,"cut":false,"hidden":false,"merged":[[1,2,1,4],[2,2,2,4],[3,2,3,4],[4,2,4,4],[11,1,11,4],[5,2,5,4],[6,2,6,4],[7,2,7,4],[8,2,8,4],[9,2,9,4],[10,2,10,4],[13,2,13,4],[14,2,14,4],[15,2,15,4],[16,1,16,4],[12,2,12,4]]}
[]
[null,null,"ROC V1\nCatalogue des cas de tests internes\nPré-requis pour la vérification de conformité"]
[null,"Description : ","Le catalogue des cas de tests internes ROC V1 est à destination des AMC. Il permet de connaitre :\n- les cas de tests internes ;\n- les bénéficiaires à paramétrer ;\n- les établissements qui seront utilisés. \nLes onglets du catalogue sont (en bleu) : \"Cas de tests internes\", \"Indicateurs Tests\", \"Liste des bénéficiaires\" et \"Liste des ETS\".\n\nLes onglets des pré-requis sont (en jaune) : \"Bénéficiaires\", \"Configuration\", \"Contacts\" et \"Remarques\".\nCes pré-requis sont à envoyer complétés au support ( support.amc@kereval.com ) au plus tard la veille du début de la vérification de conformité."]
[null,"Feuille 1 :","Cas de tests internes"]
[null,"Feuille 2 :","Indicateurs Tests"]
[null,"Feuille 3 :","Liste des Bénéficiaires"]
[null,"Feuille 4 :","Liste des ETS"]
[null,"Feuille 5 :","Bénéficiaires"]
[null,"Feuille 6 :","Configuration"]
[null,"Feuille 7 :","Contacts"]
[null,"Feuille 8 :","Remarques"]
[null,"Informations sur le document"]
[null,"Niveau de confidentialité : ","2 - Restreint"]
[null,"Etat :","Validé"]
[null,"Référence : ","CATALOGUE_ET_PREREQUIS_VERIFICATION_CONFORMITE_AMC"]
[null,"Nom du Projet :","ROC V1"]
[null,"Suivi du document"]
[null,"Version","Auteur","Date","Modifications"]
[null,"1.01","KEREVAL","2021-12-01","Création"]
[null,"1.02","KEREVAL","2021-12-02","Revue et validation"]
[null,"1.03","KEREVAL","2023-05-09","Rajout du bénéficiaire : BENEF_11"]
[null,"1.04","KEREVAL","2023-05-24","Mise à jour du document suite au renouvellement des CPS ROC V1"]
[null,"1.05","KEREVAL","2023-08-24","Modifications des FINESS juridiques des ETS"]
[null,"1.06","KEREVAL","2024-07-15","Correction pré-requis BENEF_06"]
[null,"1.07","KEREVAL","2024-11-08","Suppression du test BENEF_DROITS_SUSPENDUS"]
[null,"1.08","KEREVAL","2025-05-22","Rajout de précision sur les bénéficiaires des scénarios"]

{"sheet":"Cas de tests internes","index":1,"n_rows":250,"n_cols":11,"rows_kept":250,"cut":false,"hidden":false,"merged":[[1,1,2,2],[1,3,2,3],[1,4,2,4],[1,5,2,5],[1,6,1,8],[3,1,3,9],[27,1,27,10],[28,3,31,3],[28,4,31,4],[28,5,31,5],[28,6,31,6],[28,7,31,7],[28,8,31,8],[28,10,31,10],[7,1,7,9],[16,1,16,9],[22,1,22,9],[25,1,26,2],[25,3,26,3],[25,4,26,4],[25,5,26,5],[25,6,25,8],[25,9,25,10],[39,1,39,10],[40,3,42,3],[40,4,42,4],[40,5,42,5],[40,6,42,6],[40,7,42,7],[40,8,42,8],[40,10,42,10],[32,1,32,10],[33,3,38,3],[33,4,38,4],[33,5,38,5],[33,6,38,6],[33,7,38,7],[33,10,38,10],[47,1,47,10],[48,3,50,3],[48,4,50,4],[48,5,50,5],[48,6,50,6],[48,7,50,7],[48,8,50,8],[48,10,50,10],[43,1,43,10],[44,3,46,3],[44,4,46,4],[44,5,46,5],[44,6,46,6],[44,7,46,7],[44,8,46,8],[44,10,46,10],[57,1,57,10],[58,3,62,3],[58,4,62,4],[58,5,62,5],[58,6,62,6],[58,7,62,7],[58,8,62,8],[58,10,62,10],[51,1,51,10],[52,3,56,3],[52,4,56,4],[52,5,56,5],[52,6,56,6],[52,7,56,7],[52,8,56,8],[52,10,56,10],[66,1,66,10],[67,3,69,3],[67,4,69,4],[67,5,69,5],[67,6,69,6],[67,7,69,7],[67,8,69,8],[67,10,69,10],[63,1,63,10],[64,3,65,3],[64,4,65,4],[64,5,65,5],[64,6,65,6],[64,7,65,7],[64,8,65,8],[64,10,65,10],[76,1,76,10],[77,3,80,3],[77,4,80,4],[77,5,80,5],[77,6,80,6],[77,7,80,7],[77,8,80,8],[77,10,80,10],[70,1,70,10],[71,3,75,3],[71,4,75,4],[71,5,75,5],[71,6,75,6],[71,7,75,7],[71,8,75,8],[71,10,75,10],[84,1,84,10],[85,3,87,3],[85,4,87,4],[85,5,87,5],[85,6,87,6],[85,7,87,7],[85,8,87,8],[85,10,87,10],[81,1,81,10],[82,3,83,3],[82,4,83,4],[82,5,83,5],[82,6,83,6],[82,7,83,7],[82,8,83,8],[82,10,83,10],[94,1,94,10],[95,3,97,3],[95,4,97,4],[95,5,97,5],[95,6,97,6],[95,7,97,7],[95,8,97,8],[95,10,97,10],[88,1,88,10],[89,3,93,3],[89,4,93,4],[89,5,93,5],[89,6,93,6],[89,7,93,7],[89,8,93,8],[89,10,93,10],[102,1,102,10],[103,3,104,3],[103,4,104,4],[103,5,104,5],[103,6,104,6],[103,7,104,7],[103,8,104,8],[103,10,104,10],[98,1,98,10],[99,3,101,3],[99,4,101,4],[99,5,101,5],[99,6,101,6],[99,7,101,7],[99,8,101,8],[99,10,101,10],[109,1,109,10],[110,3,112,3],[110,4,112,4],[110,5,112,5],[110,6,112,6],[110,7,112,7],[110,8,112,8],[110,10,112,10],[105,1,105,10],[106,10,108,10],[106,7,108,7],[106,6,108,6],[106,5,108,5],[106,4,108,4],[106,3,108,3],[106,8,108,8],[116,1,116,10],[117,3,125,3],[117,4,125,4],[117,5,125,5],[117,6,125,6],[117,7,125,7],[117,8,125,8],[117,10,125,10],[114,1,115,2],[114,3,115,3],[114,4,115,4],[114,5,115,5],[114,6,114,8],[114,9,114,10],[136,1,136,10],[137,3,141,3],[137,4,141,4],[137,5,141,5],[137,6,141,6],[137,7,141,7],[137,8,141,8],[137,10,141,10],[126,1,126,10],[127,3,135,3],[127,4,135,4],[127,5,135,5],[127,6,135,6],[127,7,135,7],[127,8,135,8],[127,10,135,10],[150,1,150,10],[151,3,155,3],[151,4,155,4],[151,5,155,5],[151,6,155,6],[151,7,155,7],[151,8,155,8],[151,10,155,10],[142,1,142,10],[143,3,149,3],[143,4,149,4],[143,5,149,5],[143,6,149,6],[143,7,149,7],[143,8,149,8],[143,10,149,10],[162,1,162,10],[163,3,167,3],[163,4,167,4],[163,5,167,5],[163,6,167,6],[163,7,167,7],[163,10,167,10],[156,1,156,10],[157,3,161,3],[157,4,161,4],[157,5,161,5],[157,6,161,6],[157,7,161,7],[157,10,161,10],[173,1,173,10],[174,3,182,3],[174,4,182,4],[174,5,182,5],[174,6,182,6],[174,7,182,7],[174,8,182,8],[174,10,182,10],[168,1,168,10],[169,3,172,3],[169,4,172,4],[169,5,172,5],[169,6,172,6],[169,7,172,7],[169,10,172,10],[196,1,196,10],[197,3,202,3],[197,4,202,4],[197,5,202,5],[197,6,202,6],[197,7,202,7],[197,8,202,8],[197,10,202,10],[183,1,183,10],[184,3,195,3],[184,4,195,4],[184,5,195,5],[184,6,195,6],[184,7,195,7],[184,8,195,8],[184,10,195,10],[213,1,213,10],[214,3,218,3],[214,4,218,4],[214,5,218,5],[214,6,218,6],[214,7,218,7],[214,8,218,8],[214,10,218,10],[203,1,203,10],[204,3,212,3],[204,4,212,4],[204,5,212,5],[204,6,212,6],[204,7,212,7],[204,8,212,8],[204,10,212,10],[224,1,224,10],[225,3,231,3],[225,4,231,4],[225,5,231,5],[225,6,231,6],[225,7,231,7],[225,8,231,8],[225,10,231,10],[219,1,219,10],[220,3,223,3],[220,4,223,4],[220,5,223,5],[220,6,223,6],[220,7,223,7],[220,8,223,8],[220,10,223,10],[240,1,240,10],[241,3,249,3],[241,4,249,4],[241,5,249,5],[241,6,249,6],[241,7,249,7],[241,8,249,8],[241,10,249,10],[232,1,232,10],[233,3,239,3],[233,4,239,4],[233,5,239,5],[233,6,239,6],[233,7,239,7],[233,8,239,8],[233,10,239,10]]}
[]
[null,"Cas de tests transverses",null,"Obligatoire ou facultatif","Bénéficiaire","Établissement","Date d'admission",null,null,"Résultat obtenu"]
[null,null,null,null,null,null,"Consigne","À renseigner","Automatique","Test"]
[null,"Test 1 : IDENTIFICATION DE L’ETS ROC COMPATIBLE"]
[null,"ETS_NON_HABILITE","L’AMC bloque un ETS « non habilité »","Obligatoire","BENEF_01","ETS_02 ","Date du jour ",null,"x","NO RUN"]
[null,"ETS_KO_PROD_SOUS_SURVEILLANCE","L’AMC bloque un ETS en production sous surveillance ","Obligatoire","BENEF_01","ETS_03 ","Date du jour ",null,"x","NO RUN"]
[null,"ETS_OK_PROD_SOUS_SURVEILLANCE","L’AMC autorise un ETS en production sous surveillance","Facultatif","BENEF_01","ETS_04","Date du jour ",null,"x","NO RUN"]
[null,"Test 2 : IDENTIFICATION DU BENEFICIAIRE"]
[null,"BENEF_INCONNU","Rejet pour bénéficiaire inconnu","Obligatoire","BENEF_09","ETS_01","Date du jour ",null,"x","NO RUN"]
[null,"BENEF_DROITS_FERMES","L’AMC indique que le bénéficiaire n’a plus de droit à la date prévisionnelle des soins","Obligatoire","BENEF_02","ETS_01","Date du jour ",null,"x","NO RUN"]
[null,"BENEF_DROITS_SUSPENDUS","L’AMC indique que le bénéficiaire a des droits suspendus","Obligatoire","BENEF_07","ETS_01","Date du jour - 10J",null,"x","NO RUN"]
[null,"SANS_NUM_ADH","Pour les AMC qui attribuent un n° adhérent à leurs assurés : l’AMC indique qu’il faut compléter la demande IDB avec le numéro adhérent ","Obligatoire","BENEF_04","ETS_01","Date du jour ",null,"x","NO RUN"]
[null,"CV_DIFF_CONTRAT","L’AMC retrouve le bénéficiaire à partir d’une carte vitale différente du contrat AMC","Obligatoire","BENEF_03","ETS_01","Date du jour ",null,"x","NO RUN"]
[null,"CV_EGALE_CONTRAT","L’AMC retrouve le bénéficiaire à partir d’une carte vitale identique à du contrat AMC","Obligatoire","BENEF_10","ETS_01","Date du jour ",null,"x","NO RUN"]
[null,"NUM_ADH_CV_DIFF_CONTRAT","Pour les AMC qui attribuent un n° adhérent à leurs assurés : l’AMC retrouve le bénéficiaire à partir d’une carte vitale différente du contrat AMC","Obligatoire","BENEF_03","ETS_01","Date du jour ",null,"x","NO RUN"]
[null,"SANS_NUM_ADH_CV_DIFF_CONTRAT","Pour les AMC qui n’attribuent pas un n° adhérent à leurs assurés : l’AMC renseigne systématique le numéro adhérent lorsqu’il est absent","Obligatoire","BENEF_04","ETS_01","Date du jour ",null,"x","NO RUN"]
[null,"Test 3 : VALIDITE DES REPONSES IDB / DATES"]
[null,"BENEF_DROITS_OUVERTS_EXTE","L’AMC indique que l’assuré a des droits ouverts en ACE","Obligatoire","BENEF_05","ETS_01","< Date de fin de contrat - 15J","x",null,"NO RUN"]
[null,"BENEF_DROITS_OUVERTS_HOSP","L’AMC indique que l’assuré a des droits ouverts pour la totalité de la durée prévisionnelle du séjour ","Obligatoire","BENEF_06","ETS_01","\n< Échéance renouvellement - 5J","x",null,"NO RUN"]
[null,"DROITS_OUVERTS_PARTIE_DUREE_HOSP","L’AMC indique que l’assuré a des droits ouverts pour une partie de la durée prévisionnelle du séjour","Obligatoire","BENEF_08","ETS_01","< Date de fin de contrat - 3J","x",null,"NO RUN"]
[null,"DROITS_OUVERTS_EN_COURS_HOSP","L’AMC débute sa couverture en cours de séjour","Obligatoire","BENEF_11","ETS_01","Date du jour - 4J",null,"x","NO RUN"]
[null,"DEMANDE_HORS_DELAIS","Sur les demandes hors délais","Obligatoire","BENEF_01","ETS_01","Date du jour - 14mois",null,"x","NO RUN"]
[null,"Test 4 : Vérification des fichiers .csv"]
[null,"VERIF_FICHIER_CSV ","L’AMC renseigne les différents fichiers csv : DispoSI, DRE-ES, RSP et SEL","Obligatoire","-","-","-","-","-","NO RUN"]
[]
[null,"Scenario Actes et constations Externes (ACE)",null,"Obligatoire ou facultatif","Bénéficiaire","Établissement","Date d'admission",null,null,"Résultat obtenu"]
[null,null,null,null,null,null,"Consigne","À renseigner","Automatique","Test","Scénario"]
[null,"Scénario A001 : CAS D’USAGE NOMINAL ACE (A001-CAS_NOMINAL_ACE)"]
[null,"A001-IDB_PREADM_ACE","Cycle de pré-admission","Obligatoire","BENEF_A001","ETS_01","≤ (Date du jour)","x",null,"NO RUN",{"$f":"IF((J29=\"OK\")*(J30=\"OK\")*(J31=\"OK\")*(J32=\"OK\"),\"OK\",IF(COUNTIF(J29:J32,\"KO\"),\"KO\",\"NO RUN\"))","v":"NO RUN"}]
[null,"A001-IDB_ADM_ACE","Cycle d'admission",null,null,null,null,null,null,"NO RUN"]
[null,"A001-CLC_SORTIE_ACE","Engagement de paiement",null,null,null,null,null,null,"NO RUN"]
[null,"A001-DREES_ACE","Facturation et RSP",null,null,null,null,null,null,"NO RUN"]
[null,"Scénario A002 : CHANGEMENT DE CONTEXTE DE FACTURATION POUR LA MEME DATE – DEUX FACTURES AMO (A002-CHGT_CONTEXTE_FACTU)"]
[null,"A002-IDB_1_ADM_ACE_PDS","Cycle d'admission","Obligatoire","BENEF_A002","ETS_05","≤ (Date du jour)","x",null,"NO RUN",{"$f":"IF((J34=\"OK\")*(J35=\"OK\")*(J36=\"OK\")*(J37=\"OK\")*(J38=\"OK\")*(J39=\"OK\"),\"OK\",IF(COUNTIF(J34:J39,\"KO\"),\"KO\",\"NO RUN\"))","v":"NO RUN"}]
[null,"A002-IDB_2_ADM_ACE_HORS_PDS","Cycle d'admission",null,null,null,null,null,null,"NO RUN"]
[null,"A002-CLC_1_SORTIE_ACE","Engagement de paiement",null,null,null,null,null,null,"NO RUN"]
[null,"A002-CLC_2_SORTIE_ACE","Engagement de paiement",null,null,null,null,null,null,"NO RUN"]
[null,"A002-DRESES_1_ACE","Facturation et RSP",null,null,null,null,null,null,"NO RUN"]
[null,"A002-DRESES_2_ACE","Facturation et RSP",null,null,null,null,null,null,"NO RUN"]
[null,"Scénario A003 : FACTURATION D’UNE ACTIVITE A FORFAIT (A003-ACTIVITE_FORFAIT)"]
[null,"A003-IDB_ADM_ACE_URGENCE","Cycle d'admission","Obligatoire","BENEF_A003","ETS_01","≤ (Date du jour)","x",null,"NO RUN",{"$f":"IF((J41=\"OK\")*(J42=\"OK\")*(J43=\"OK\"),\"OK\",IF(COUNTIF(J41:J43,\"KO\"),\"KO\",\"NO RUN\"))","v":"NO RUN"}]
[null,"A003-CLC_SORTIE_ACE_URGENCE","Engagement de paiement",null,null,null,null,null,null,"NO RUN"]
[null,"A003-DRESES_ACE","Facturation et RSP",null,null,null,null,null,null,"NO RUN"]
[null,"Scénario A004 : FACTURATION D’UNE PARTICIPATION ASSUREE (TICKET MODERATEUR FORFAITAIRE) AVEC 2 ACTES (A004-TMF_ACE)"]
[null,"A004-IDB_ADM_ACE","Cycle d'admission","Obligatoire","BENEF_A004","ETS_06","≤ (Date du jour)","x",null,"NO RUN",{"$f":"IF((J45=\"OK\")*(J46=\"OK\")*(J47=\"OK\"),\"OK\",IF(COUNTIF(J45:J47,\"KO\"),\"KO\",\"NO RUN\"))","v":"NO RUN"}]
[null,"A004-CLC_SORTIE_ACE","Engagement de paiement",null,null,null,null,null,null,"NO RUN"]
[null,"A004-DRESES_ACE","Facturation et RSP",null,null,null,null,null,null,"NO RUN"]
[null,"Scénario A005 : FACTURATION ACTE HORS PARCOURS AVEC DEPASSEMENT AUTORISE (DA) (A005-HORS_PDS_DA)"]
[null,"A005-IDB_ADM_ACE","Cycle d'admission","Obligatoire","BENEF_A005","ETS_01","≤ (Date du jour)","x",null,"NO RUN",{"$f":"IF((J49=\"OK\")*(J50=\"OK\")*(J51=\"OK\"),\"OK\",IF(COUNTIF(J49:J51,\"KO\"),\"KO\",\"NO RUN\"))","v":"NO RUN"}]
[null,"A005-CLC_SORTIE_ACE_HORS_PS","Engagement de paiement",null,null,null,null,null,null,"NO RUN"]
[null,"A005-DRESES_ACE","Facturation et RSP",null,null,null,null,null,null,"NO RUN"]
[null,"Scénario A006 :FACTURE AVEC PLUSIEURS DATES DE SOINS SANS RUPTURE DE COUVERTURE (A006-PLS_DATE_SOINS)"]
[null,"A006-IDB_1_ADM_ACE","Cycle d'admission","Obligatoire","BENEF_A006","ETS_05","≤ (Date du jour - 30J)","x",null,"NO RUN",{"$f":"IF((J53=\"OK\")*(J54=\"OK\")*(J55=\"OK\")*(J56=\"OK\")*(J57=\"OK\"),\"OK\",IF(COUNTIF(J53:J57,\"KO\"),\"KO\",\"NO RUN\"))","v":"NO RUN"}]
[null,"A006-IDB_2_ADM_ACE","Cycle d'admission",null,null,null,null,null,null,"NO RUN"]
[null,"A006-IDB_3_ADM_ACE","Cycle d'admission",null,null,null,null,null,null,"NO RUN"]
[null,"A006-CLC_SORTIE_ACE","Engagement de paiement",null,null,null,null,null,null,"NO RUN"]
[null,"A006-DRESES_ACE","Facturation et RSP",null,null,null,null,null,null,"NO RUN"]
[null,"Scénario A007 : FACTURE AVEC PLUSIEURS DATES DE SOINS (SOINS EN SERIE) AVEC RUPTURE DE COUVERTURE (A007-PLS_DATE_SOINS_RUPTURE)"]
[null,"A007-IDB_1_ADM_ACE","Cycle d'admission","Obligatoire","BENEF_A007","ETS_05","≤ (Date du jour - 30J)","x",null,"NO RUN",{"$f":"IF((J59=\"OK\")*(J60=\"OK\")*(J61=\"OK\")*(J62=\"OK\")*(J63=\"OK\"),\"OK\",IF(COUNTIF(J59:J63,\"KO\"),\"KO\",\"NO RUN\"))","v":"NO RUN"}]
[null,"A007-IDB_2_ADM_ACE","Cycle d'admission",null,null,null,null,null,null,"NO RUN"]
[null,"A007-IDB_3_ADM_ACE","Cycle d'admission",null,null,null,null,null,null,"NO RUN"]
[null,"A007-CLC_SORTIE_ACE","Engagement de paiement",null,null,null,null,null,null,"NO RUN"]
[null,"A007-DRESES_ACE","Facturation et RSP",null,null,null,null,null,null,"NO RUN"]
[null,"Scénario A008 : CLC AVEC UNE DATE DE SOINS POSTERIEURE A LA DATE DE LA DEMANDE (A008-DATE_SOINS_APRES_DEMANDE)"]
[null,"A008-IDB_ADM_ACE","Cycle d'admission","Obligatoire","BENEF_A008","ETS_05","≤ (Date du jour)","x",null,"NO RUN",{"$f":"IF((J65=\"OK\")*(J66=\"OK\"),\"OK\",IF(COUNTIF(J65:J66,\"KO\"),\"KO\",\"NO RUN\"))","v":"NO RUN"}]
[null,"A008-CLC_SORTIE_ACE","Engagement de paiement",null,null,null,null,null,null,"NO RUN"]
[null,"Scénario A009 : SCENARIO PASSANT D’UNE VENUE SIGNALEE A POSTERIORI (A009-DEMANDE_APRES_SORTIE)"]
[null,"A009-IDB_ADM_ACE","Cycle d'admission","Obligatoire","BENEF_A009","ETS_01","≤ (Date du jour - 30J)","x",null,"NO RUN",{"$f":"IF((J68=\"OK\")*(J69=\"OK\")*(J70=\"OK\"),\"OK\",IF(COUNTIF(J68:J70,\"KO\"),\"KO\",\"NO RUN\"))","v":"NO RUN"}]
[null,"A009-CLC_SORTIE_ACE","Engagement de paiement",null,null,null,null,null,null,"NO RUN"]
[null,"A009-DRESES_ACE","Facturation et RSP",null,null,null,null,null,null,"NO RUN"]
[null,"Scénario A010 : SCENARIO PASSANT D’UNE VENUE ACE DONNANT LIEU A 2 FACTURES (A010-2_FACTURES_ACE)"]
[null,"A010-IDB_ADM_ACE","Cycle d'admission","Obligatoire","BENEF_A010","ETS_05","≤ (Date du jour - 30J)","x",null,"NO RUN",{"$f":"IF((J72=\"OK\")*(J73=\"OK\")*(J74=\"OK\")*(J75=\"OK\")*(J76=\"OK\"),\"OK\",IF(COUNTIF(J72:J76,\"KO\"),\"KO\",\"NO RUN\"))","v":"NO RUN"}]
[null,"A010-CLC_1_SORTIE_ACE","Engagement de paiement",null,null,null,null,null,null,"NO RUN"]
[null,"A010-CLC_2_SORTIE_ACE","Engagement de paiement",null,null,null,null,null,null,"NO RUN"]
[null,"A010-DRESES_1_ACE","Facturation et RSP",null,null,null,null,null,null,"NO RUN"]
[null,"A010-DRESES_2_ACE","Facturation et RSP",null,null,null,null,null,null,"NO RUN"]
[null,"Scénario A011 : CLC NON PASSANT POUR ABSENCE DE PRESCRIPTION (A011-ABSENCE_PRESCRIPTION)"]
[null,"A011-IDB_ADM_ACE","Cycle d'admission","Obligatoire","BENEF_A011","ETS_05","≤ (Date du jour)","x",null,"NO RUN",{"$f":"IF((J78=\"OK\")*(J79=\"OK\")*(J80=\"OK\")*(J81=\"OK\"),\"OK\",IF(COUNTIF(J78:J81,\"KO\"),\"KO\",\"NO RUN\"))","v":"NO RUN"}]
[null,"A011-CLC_1_SORTIE_ACE","Engagement de paiement",null,null,null,null,null,null,"NO RUN"]
[null,"A011-CLC_2_SORTIE_ACE","Engagement de paiement",null,null,null,null,null,null,"NO RUN"]
[null,"A011-DRESES_2_ACE","Facturation et RSP",null,null,null,null,null,null,"NO RUN"]
[null,"Scénario A012 : CLC NON PASSANT POUR INCOHERENCE DES DATES (A012-INCOHERENCE_DATES)"]
[null,"A012-IDB_ADM_ACE","Cycle d'admission","Obligatoire","BENEF_A012","ETS_05","≤ (Date du jour)","x",null,"NO RUN",{"$f":"IF((J83=\"OK\")*(J84=\"OK\"),\"OK\",IF(COUNTIF(J83:J84,\"KO\"),\"KO\",\"NO RUN\"))","v":"NO RUN"}]
[null,"A012-CLC_SORTIE_ACE","Engagement de paiement",null,null,null,null,null,null,"NO RUN"]
[null,"Scénario A013 : SCENARIO PASSANT D’UNE VENUE ACE AVEC FAUX DOUBLON SUR LE MEME JOUR (A013-FAUX_DOUBLON)"]
[null,"A013-IDB_ADM_ACE","Cycle d'admission","Obligatoire","BENEF_A013","ETS_01","≤ (Date du jour)","x",null,"NO RUN",{"$f":"IF((J86=\"OK\")*(J87=\"OK\")*(J88=\"OK\"),\"OK\",IF(COUNTIF(J86:J88,\"KO\"),\"KO\",\"NO RUN\"))","v":"NO RUN"}]
[null,"A013-CLC_SORTIE_ACE","Engagement de paiement",null,null,null,null,null,null,"NO RUN"]
[null,"A013-DRESES_ACE","Facturation et RSP",null,null,null,null,null,null,"NO RUN"]
[null,"Scénario A014 : SCENARIO PASSANT D’UNE VENUE ACE AVEC FAUX DOUBLON DE CLC SUR LE MEME JOUR (A014-FAUX_DOUBLON_MEME_JOUR)"]
[null,"A014-IDB_ADM_ACE","Cycle d'admission","Obligatoire","BENEF_A014","ETS_05","≤ (Date du jour)","x",null,"NO RUN",{"$f":"IF((J90=\"OK\")*(J91=\"OK\")*(J92=\"OK\")*(J94=\"OK\"),\"OK\",IF(COUNTIF(J90:J94,\"KO\"),\"KO\",\"NO RUN\"))","v":"NO RUN"}]
[null,"A014-CLC_1_SORTIE_ACE","Engagement de paiement",null,null,null,null,null,null,"NO RUN"]
[null,"A014-CLC_2_SORTIE_ACE","Engagement de paiement",null,null,null,null,null,null,"NO RUN"]
[null,"A014-DRESES_1_ACE","Facturation et RSP",null,null,null,null,null,null,"NO RUN"]
[null,"A014-DRESES_2_ACE","Facturation et RSP",null,null,null,null,null,null,"NO RUN"]
[null,"Scénario A015 : SCENARIO ACE AVEC DREES ERRONEE SUR UN MONTANT (A015-MONTANT_ERRONEE_DREES)"]
[null,"A015-IDB_ADM_ACE","Cycle d'admission","Obligatoire","BENEF_A015","ETS_01","≤ (Date du jour)","x",null,"NO RUN",{"$f":"IF((J96=\"OK\")*(J97=\"OK\")*(J98=\"OK\"),\"OK\",IF(COUNTIF(J96:J98,\"KO\"),\"KO\",\"NO RUN\"))","v":"NO RUN"}]
[null,"A015-CLC_SORTIE_ACE","Engagement de paiement",null,null,null,null,null,null,"NO RUN"]
[null,"A015-DRESES_ACE","Facturation et RSP",null,null,null,null,null,null,"NO RUN"]
[null,"Scénario A016 : SCENARIO ACE AVEC DREES ERRONEE SUR LE N° ENGAGEMENT (A016-DREES_NUM_ENG_ERRONEE)"]
[null,"A016-IDB_ADM_ACE","Cycle d'admission","Obligatoire","BENEF_A016","ETS_05","≤ (Date du jour)","x",null,"NO RUN",{"$f":"IF((J100=\"OK\")*(J101=\"OK\")*(J102=\"OK\"),\"OK\",IF(COUNTIF(J100:J102,\"KO\"),\"KO\",\"NO RUN\"))","v":"NO RUN"}]
[null,"A016-CLC_SORTIE_ACE","Engagement de paiement",null,null,null,null,null,null,"NO RUN"]
[null,"A016-DRESES_ACE","Facturation et RSP",null,null,null,null,null,null,"NO RUN"]
[null,"Scénario A017 : SCENARIO ACE AVEC UNE PRESTATION HORS PERIMETRE (A017-PRESTA_HORS_PERIMETRE)"]
[null,"A017-IDB_ADM_ACE","Cycle d'admission","Obligatoire","BENEF_A017","ETS_05","≤ (Date du jour)","x",null,"NO RUN",{"$f":"IF((J104=\"OK\")*(J105=\"OK\"),\"OK\",IF(COUNTIF(J104:J105,\"KO\"),\"KO\",\"NO RUN\"))","v":"NO RUN"}]
[null,"A017-CLC_SORTIE_ACE","Engagement de paiement",null,null,null,null,null,null,"NO RUN"]
[null,"Scénario A018 : SCENARIO AVEC UNE PRESTATION URGENCE NOMINALE (A018-PRESTA_FPU)"]
[null,"A018-IDB_ADM_ACE","Cycle d'admission","Obligatoire","BENEF_A018","ETS_05","≤ (Date du jour)","x",null,"NO RUN",{"$f":"IF((J107=\"OK\")*(J108=\"OK\"),\"OK\",IF(COUNTIF(J107:J108,\"KO\"),\"KO\",\"NO RUN\"))","v":"NO RUN"}]
[null,"A018-CLC_SORTIE_ACE","Engagement de paiement",null,null,null,null,null,null,"NO RUN"]
[null,"A018-DRESES_ACE","Facturation et RSP",null,null,null,null,null,null,"NO RUN"]
[null,"Scénario A019 : SCENARIO ACE AVEC UNE PRESTATION URGENCE NOMINALE (A019-PRESTA_FPV)"]
[null,"A019-IDB_ADM_ACE","Cycle d'admission","Obligatoire","BENEF_A019","ETS_05","≤ (Date du jour)","x",null,"NO RUN",{"$f":"IF((J111=\"OK\")*(J113=\"OK\"),\"OK\",IF(COUNTIF(J111:J113,\"KO\"),\"KO\",\"NO RUN\"))","v":"NO RUN"}]
[null,"A019-CLC_SORTIE_ACE","Engagement de paiement",null,null,null,null,null,null,"NO RUN"]
[null,"A019-DRESES_ACE","Facturation et RSP",null,null,null,null,null,null,"NO RUN"]
[]
[null,"Scenario pour les SEJOURS",null,"Obligatoire ou facultatif","Bénéficiaire","Établissement","Date d'admission",null,null,"Résultat obtenu"]
[null,null,null,null,null,null,"Indication","À renseigner","Automatique","Test","Scénario"]
[null,"Scénario S001 : SEJOUR PROGRAMME INITIALEMENT A 3 JOURS, PROLONGE D'UN JOUR AVEC UN CLC GLOBAL A LA SORTIE (S001-SEJOUR_PROLONGE_CLC_GLOBAL 90)"]
[null,"S001-IDB_PREADM_SEJ","Cycle de pré-admission","Obligatoire","BENEF_S001","ETS_05","≤ (Date du jour - 3J)","x",null,"NO RUN",{"$f":"IF((J118=\"OK\")*(J119=\"OK\")*(J120=\"OK\")*(J121=\"OK\")*(J122=\"OK\")*(J123=\"OK\")*(J124=\"OK\")*(J125=\"OK\")*(J126=\"OK\"),\"OK\",IF(COUNTIF(J118:J126,\"KO\"),\"KO\",\"NO RUN\"))","v":"NO RUN"}]
[null,"S001-SIM_PREADM_SEJ","Cycle de pré-admission",null,null,null,null,null,null,"NO RUN"]
[null,"S001-IDB_ADM_SEJ","Cycle d'admission",null,null,null,null,null,null,"NO RUN"]
[null,"S001-SIM_ADM_SEJ","Cycle d'admission",null,null,null,null,null,null,"NO RUN"]
[null,"S001-IDB_PROLONGE_SEJ","Cycle de prolongation",null,null,null,null,null,null,"NO RUN"]
[null,"S001-SIM_PROLONGE_SEJ","Cycle de prolongation",null,null,null,null,null,null,"NO RUN"]
[null,"S001-SIM_SORTIE_SEJ","Engagement de paiement",null,null,null,null,null,null,"NO RUN"]
[null,"S001-CLC_SORTIE_SEJ","Engagement de paiement",null,null,null,null,null,null,"NO RUN"]
[null,"S001-DREES_SEJ","Facturation et RSP",null,null,null,null,null,null,"NO RUN"]
[null,"Scénario S002 : SEJOUR AVEC DEUX FACTURES A LA SORTIE (UN HORS SOINS A LA SORTIE ET PLUS TARD AVEC LA PARTIE SOINS) (S002-SEJOUR_2_FACTURES)"]
[null,"S002-IDB_PREADM_SEJ","Cycle de pré-admission","Obligatoire","BENEF_S002","ETS_05","≤ (Date du jour - 3J)","x",null,"NO RUN",{"$f":"IF((J128=\"OK\")*(J129=\"OK\")*(J130=\"OK\")*(J131=\"OK\")*(J132=\"OK\")*(J133=\"OK\")*(J134=\"OK\")*(J135=\"OK\")*(J136=\"OK\"),\"OK\",IF(COUNTIF(J128:J136,\"KO\"),\"KO\",\"NO RUN\"))","v":"NO RUN"}]
[null,"S002-SIM_PREADM_SEJ","Cycle de pré-admission",null,null,null,null,null,null,"NO RUN"]
[null,"S002-IDB_ADM_SEJ","Cycle d'admission",null,null,null,null,null,null,"NO RUN"]
[null,"S002-SIM_ADM_SEJ","Cycle d'admission",null,null,null,null,null,null,"NO RUN"]
[null,"S002-SIM_SORTIE_SEJ","Engagement de paiement",null,null,null,null,null,null,"NO RUN"]
[null,"S002-CLC_SORTIE_SEJ_SOINS ","Engagement de paiement",null,null,null,null,null,null,"NO RUN"]
[null,"S002-CLC_SORTIE_SEJ_HORS_SOINS","Engagement de paiement",null,null,null,null,null,null,"NO RUN"]
[null,"S002-DREES_SEJ_SOINS","Facturation et RSP",null,null,null,null,null,null,"NO RUN"]
[null,"S002-DREES_SEJ_HORS_SOINS","Facturation et RSP",null,null,null,null,null,null,"NO RUN"]
[null,"Scénario S003 : SEJOUR AVEC UNE RUPTURE DE DROIT AMC (S003-SEJOUR_RUPTURE_DROIT)"]
[null,"S003-IDB_ADM_SEJ","Cycle d'admission","Obligatoire","BENEF_S003","ETS_05","≤ (Date du jour - 6J)","x",null,"NO RUN",{"$f":"IF((J138=\"OK\")*(J139=\"OK\")*(J140=\"OK\")*(J141=\"OK\")*(J142=\"OK\"),\"OK\",IF(COUNTIF(J138:J142,\"KO\"),\"KO\",\"NO RUN\"))","v":"NO RUN"}]
[null,"S003-IDB_ADM_SEJ","Cycle d'admission",null,null,null,null,null,null,"NO RUN"]
[null,"S003-SIM_SORTIE_SEJ","Engagement de paiement",null,null,null,null,null,null,"NO RUN"]
[null,"S003-CLC_SORTIE_SEJ","Engagement de paiement",null,null,null,null,null,null,"NO RUN"]
[null,"S003-DREES_SEJ","Facturation et RSP",null,null,null,null,null,null,"NO RUN"]
[null,"Scénario S004 : SEJOUR SANS PROLONGATION AVEC UNE ECHEANCE DE RENOUVELLEMENT INTERVENANT AVANT LA DATE DE SORTIE PREVISIONNELLE (S004-SEJOUR_ECHEANCE_RENOUV)"]
[null,"S004-IDB_ADM_SEJ","Cycle d'admission","Obligatoire","BENEF_S004","ETS_01","≤ (Date du jour - 4J)","x",null,"NO RUN",{"$f":"IF((J144=\"OK\")*(J145=\"OK\")*(J146=\"OK\")*(J147=\"OK\")*(J148=\"OK\")*(J149=\"OK\")*(J150=\"OK\"),\"OK\",IF(COUNTIF(J144:J150,\"KO\"),\"KO\",\"NO RUN\"))","v":"NO RUN"}]
[null,"S004-SIM_ADM_SEJ","Cycle d'admission",null,null,null,null,null,null,"NO RUN"]
[null,"S004-IDB_RENOUV_SEJ","Cycle de renouvellement",null,null,null,null,null,null,"NO RUN"]
[null,"S004-SIM_RENOUV_SEJ","Cycle de renouvellement",null,null,null,null,null,null,"NO RUN"]
[null,"S004-SIM_SORTIE_SEJ","Engagement de paiement",null,null,null,null,null,null,"NO RUN"]
[null,"S004-CLC_SORTIE_SEJ","Engagement de paiement",null,null,null,null,null,null,"NO RUN"]
[null,"S004-DREES_SEJ","Facturation et RSP",null,null,null,null,null,null,"NO RUN"]
[null,"Scénario S005 : SEJOUR AVEC AMC EN 2EME POSITION (S005-SEJOUR_AMC_2_POSITION)"]
[null,"S005-IDB_ADM_SEJ","Cycle d'admission","Obligatoire","BENEF_S005","ETS_05","≤ (Date du jour - 6J)","x",null,"NO RUN",{"$f":"IF((J152=\"OK\")*(J153=\"OK\")*(J154=\"OK\")*(J155=\"OK\")*(J156=\"OK\"),\"OK\",IF(COUNTIF(J152:J156,\"KO\"),\"KO\",\"NO RUN\"))","v":"NO RUN"}]
[null,"S005-SIM_ADM_SEJ","Cycle d'admission",null,null,null,null,null,null,"NO RUN"]
[null,"S005-SIM_SORTIE_SEJ","Engagement de paiement",null,null,null,null,null,null,"NO RUN"]
[null,"S005-CLC_SORTIE_SEJ","Engagement de paiement",null,null,null,null,null,null,"NO RUN"]
[null,"S005-DREES_SEJ","Facturation et RSP",null,null,null,null,null,null,"NO RUN"]
[null,"Scénario S006 : SEJOUR DE 36 JOURS AVEC APPLICATION DU TICKET MODERATEUR FORFAITAIRE (TMF) (Y.C. TEMPS DE REPONSE) (S006-SEJOUR_36J_TMF)"]
[null,"S006-IDB_ADM_SEJ","Cycle d'admission","Obligatoire","BENEF_S006","ETS_05","≤ (Date du jour - 35J)","x",null,"NO RUN",{"$f":"IF((J158=\"OK\")*(J159=\"OK\")*(J160=\"OK\")*(J161=\"OK\")*(J162=\"OK\"),\"OK\",IF(COUNTIF(J158:J162,\"KO\"),\"KO\",\"NO RUN\"))","v":"NO RUN"}]
[null,"S006-SIM_ADM_SEJ","Cycle d'admission",null,null,null,null,null,null,"NO RUN"]
[null,"S006-SIM_SORTIE_SEJ","Engagement de paiement",null,null,null,null,null,null,"NO RUN"]
[null,"S006-CLC_SORTIE_SEJ","Engagement de paiement",null,null,null,null,null,null,"NO RUN"]
[null,"S006-DREES_SEJ","Facturation et RSP",null,null,null,null,null,null,"NO RUN"]
[null,"Scénario S007 : SEJOUR DE 5 JOURS POUR UN ASSURE ALSACE-MOSELLE (S007-SEJOUR_5J_ALSACE_MOSELLE)"]
[null,"S007-IDB_ADM_SEJ","Cycle d'admission","Obligatoire","BENEF_S007","ETS_05","≤ (Date du jour - 4J)","x",null,"NO RUN",{"$f":"IF((J164=\"OK\")*(J165=\"OK\")*(J166=\"OK\")*(J167=\"OK\")*(J168=\"OK\"),\"OK\",IF(COUNTIF(J164:J168,\"KO\"),\"KO\",\"NO RUN\"))","v":"NO RUN"}]
[null,"S007-SIM_ADM_SEJ","Cycle d'admission",null,null,null,null,null,null,"NO RUN"]
[null,"S007-SIM_SORTIE_SEJ","Engagement de paiement",null,null,null,null,null,null,"NO RUN"]
[null,"S007-CLC_SORTIE_SEJ","Engagement de paiement",null,null,null,null,null,null,"NO RUN"]
[null,"S007-DREES_SEJ","Facturation et RSP",null,null,null,null,null,null,"NO RUN"]
[null,"Scénario S008 : SEJOUR DE 5 JOURS AVEC MEDICAMENTS RETROCEDES (S008-SEJOUR_5J_MED_RETROCEDE)"]
[null,"S008-IDB_ADM_SEJ","Cycle d'admission","Obligatoire","BENEF_S008","ETS_05","≤ (Date du jour - 4J)","x",null,"NO RUN",{"$f":"IF((J170=\"OK\")*(J171=\"OK\")*(J172=\"OK\")*(J173=\"OK\"),\"OK\",IF(COUNTIF(J170:J173,\"KO\"),\"KO\",\"NO RUN\"))","v":"NO RUN"}]
[null,"S008-SIM_SORTIE_SEJ","SIM de sortie",null,null,null,null,null,null,"NO RUN"]
[null,"S008-CLC_SORTIE_SEJ","Engagement de paiement",null,null,null,null,null,null,"NO RUN"]
[null,"S008-DREES_SEJ","Facturation et RSP",null,null,null,null,null,null,"NO RUN"]
[null,"Scénario S009 : SEJOUR AVEC 5 SIM D’ADMISSION LE MEME JOUR (S009-SEJOUR_5SIM_ADM_MEME_JOUR)"]
[null,"S009-IDB_ADM_SEJ","Cycle d'admission","Obligatoire","BENEF_S009","ETS_05","≤ (Date du jour - 1J)","x",null,"NO RUN",{"$f":"IF((J175=\"OK\")*(J176=\"OK\")*(J177=\"OK\")*(J178=\"OK\")*(J179=\"OK\")*(J180=\"OK\")*(J181=\"OK\")*(J182=\"OK\")*(J183=\"OK\"),\"OK\",IF(COUNTIF(J175:J183,\"KO\"),\"KO\",\"NO RUN\"))","v":"NO RUN"}]
[null,"S009-SIM_1_ADM_SEJ","Cycle d'admission",null,null,null,null,null,null,"NO RUN"]
[null,"S009-SIM_2_ADM_SEJ","Cycle d'admission",null,null,null,null,null,null,"NO RUN"]
[null,"S009-SIM_3_ADM_SEJ","Cycle d'admission",null,null,null,null,null,null,"NO RUN"]
[null,"S009-SIM_4_ADM_SEJ","Cycle d'admission",null,null,null,null,null,null,"NO RUN"]
[null,"S009-SIM_5_ADM_SEJ","Cycle d'admission",null,null,null,null,null,null,"NO RUN"]
[null,"S009-SIM_SORTIE_SEJ","Engagement de paiement",null,null,null,null,null,null,"NO RUN"]
[null,"S009-CLC_SORTIE_SEJ","Engagement de paiement",null,null,null,null,null,null,"NO RUN"]
[null,"S009-DREES_SEJ","Facturation et RSP",null,null,null,null,null,null,"NO RUN"]
[null,"Scénario S010 : SEJOUR AVEC 5 SIM 2 ADMISSION ET 3 PROLONGATIONS SANS PRISE EN CHARGE INTEGRALE DE LA CHAMBRE PARTICULIERE (S010-SEJOUR_5SIM_2ADM_3PROLONG)"]
[null,"S010-IDB_1_ADM_SEJ","Cycle d'admission","Obligatoire","BENEF_S010","ETS_05","≤ (Date du jour - 7J)","x",null,"NO RUN",{"$f":"IF((J185=\"OK\")*(J186=\"OK\")*(J187=\"OK\")*(J188=\"OK\")*(J189=\"OK\")*(J190=\"OK\")*(J191=\"OK\")*(J192=\"OK\")*(J193=\"OK\")*(J194=\"OK\")*(J195=\"OK\")*(J196=\"OK\"),\"OK\",IF(COUNTIF(J185:J196,\"KO\"),\"KO\",\"NO RUN\"))","v":"NO RUN"}]
[null,"S010-SIM_1_ADM_SEJ","Cycle d'admission",null,null,null,null,null,null,"NO RUN"]
[null,"S010-SIM_2_ADM_SEJ","Cycle d'admission",null,null,null,null,null,null,"NO RUN"]
[null,"S010-IDB_1_PROLONG","Cycle de prolongation",null,null,null,null,null,null,"NO RUN"]
[null,"S010-SIM_1_PROLONG","Cycle de prolongation",null,null,null,null,null,null,"NO RUN"]
[null,"S010-IDB_2_PROLONG","Cycle de prolongation",null,null,null,null,null,null,"NO RUN"]
[null,"S010-SIM_2_PROLONG","Cycle de prolongation",null,null,null,null,null,null,"NO RUN"]
[null,"S010-IDB_3_PROLONG","Cycle de prolongation",null,null,null,null,null,null,"NO RUN"]
[null,"S010-SIM_3_PROLONG","Cycle de prolongation",null,null,null,null,null,null,"NO RUN"]
[null,"S010-SIM_SORTIE_SEJ","Engagement de paiement",null,null,null,null,null,null,"NO RUN"]
[null,"S010-CLC_SORTIE_SEJ","Engagement de paiement",null,null,null,null,null,null,"NO RUN"]
[null,"S010-DREES_SEJ","Facturation et RSP",null,null,null,null,null,null,"NO RUN"]
[null,"Scénario S011 : SEJOUR AVEC 2 CLC : UN SOIN + HORS SOINS ET UN AVEC SOINS SEUL (S011-SEJOUR_SOINS_HORS_SOINS)"]
[null,"S011-IDB_ADM_SEJ","Cycle d'admission","Obligatoire","BENEF_S011","ETS_05","≤ (Date du jour - 1J)","x",null,"NO RUN",{"$f":"IF((J198=\"OK\")*(J199=\"OK\")*(J200=\"OK\")*(J201=\"OK\")*(J202=\"OK\")*(J203=\"OK\"),\"OK\",IF(COUNTIF(J198:J203,\"KO\"),\"KO\",\"NO RUN\"))","v":"NO RUN"}]
[null,"S011-SIM_ADM_SEJ","Cycle d'admission",null,null,null,null,null,null,"NO RUN"]
[null,"S011-SIM_SORTIE_SEJ","Engagement de paiement",null,null,null,null,null,null,"NO RUN"]
[null,"S011-CLC_SORTIE_SEJ_SOINS","Engagement de paiement",null,null,null,null,null,null,"NO RUN"]
[null,"S011-CLC_SORTIE_SEJ_HORS_SOINS","Engagement de paiement",null,null,null,null,null,null,"NO RUN"]
[null,"S011-DREES_SEJ","Facturation et RSP",null,null,null,null,null,null,"NO RUN"]
[null,"Scénario S012 : SEJOUR AVEC 3 CLC : UN SOIN, UN HORS-SOINS ET UN COMPLEMENTAIRE (S012-SEJOUR_SOINS_HORS_SOINS_COMP)"]
[null,"S012-IDB_ADM_SEJ","Cycle d'admission","Obligatoire","BENEF_S012","ETS_05","≤ (Date du jour - 1J)","x",null,"NO RUN",{"$f":"IF((J205=\"OK\")*(J206=\"OK\")*(J207=\"OK\")*(J208=\"OK\")*(J209=\"OK\")*(J210=\"OK\")*(J211=\"OK\")*(J212=\"OK\")*(J213=\"OK\"),\"OK\",IF(COUNTIF(J205:J213,\"KO\"),\"KO\",\"NO RUN\"))","v":"NO RUN"}]
[null,"S012-SIM_ADM_SEJ","Cycle d'admission",null,null,null,null,null,null,"NO RUN"]
[null,"S012-SIM_SORTIE_SEJ","Engagement de paiement",null,null,null,null,null,null,"NO RUN"]
[null,"S012-CLC_SORTIE_SEJ_SOINS","Engagement de paiement",null,null,null,null,null,null,"NO RUN"]
[null,"S012-CLC_SORTIE_SEJ_HORS_SOINS","Engagement de paiement",null,null,null,null,null,null,"NO RUN"]
[null,"S012-CLC_SORTIE_SEJ_COMPLEMENT","Engagement de paiement",null,null,null,null,null,null,"NO RUN"]
[null,"S012-DREES_SEJ_SOINS","Facturation et RSP",null,null,null,null,null,null,"NO RUN"]
[null,"S012-DREES_SEJ_HORS_SOINS","Facturation et RSP",null,null,null,null,null,null,"NO RUN"]
[null,"S012-DREES_SEJ_COMPLEMENT","Facturation et RSP",null,null,null,null,null,null,"NO RUN"]
[null,"Scénario S014 : SEJOUR AVEC UN CLC DIFFERENT DU DERNIER SIM VALORISE (S014-SEJOUR_CLC_DIFF_SIM)"]
[null,"S014-IDB_ADM_SEJ","Cycle d'admission","Obligatoire","BENEF_S014","ETS_01","≤ (Date du jour - 1J)","x",null,"NO RUN",{"$f":"IF((J215=\"OK\")*(J216=\"OK\")*(J217=\"OK\")*(J218=\"OK\")*(J219=\"OK\"),\"OK\",IF(COUNTIF(J215:J219,\"KO\"),\"KO\",\"NO RUN\"))","v":"NO RUN"}]
[null,"S014-SIM_ADM_SEJ","Cycle d'admission",null,null,null,null,null,null,"NO RUN"]
[null,"S014-SIM_SORTIE_SEJ","Engagement de paiement",null,null,null,null,null,null,"NO RUN"]
[null,"S014-CLC_SORTIE_SEJ","Engagement de paiement",null,null,null,null,null,null,"NO RUN"]
[null,"S014-DREES_SEJ","Facturation et RSP",null,null,null,null,null,null,"NO RUN"]
[null,"Scénario S015 : SEJOUR AVEC UN CLC COMPORTANT SEULEMENT UN ACTE PAH (S015-SEJOUR_CLC_ACTE_PAH)"]
[null,"S015-IDB_ADM_SEJ","Cycle d'admission","Obligatoire","BENEF_S015","ETS_05","≤ (Date du jour - 1J)","x",null,"NO RUN",{"$f":"IF((J221=\"OK\")*(J222=\"OK\")*(J223=\"OK\")*(J224=\"OK\"),\"OK\",IF(COUNTIF(J221:J224,\"KO\"),\"KO\",\"NO RUN\"))","v":"NO RUN"}]
[null,"S015-SIM_SORTIE_SEJ","Engagement de paiement",null,null,null,null,null,null,"NO RUN"]
[null,"S015-CLC_SORTIE_SEJ","Engagement de paiement",null,null,null,null,null,null,"NO RUN"]
[null,"S015-DREES_SEJ","Facturation et RSP",null,null,null,null,null,null,"NO RUN"]
[null,"Scénario S016 : SEJOUR AVEC UN CHANGEMENT D’EXONERATION EN COURS DE SEJOUR (S016-SEJOUR_CHGT_EXO)"]
[null,"S016-IDB_1_ADM_SEJ","Cycle d'admission","Obligatoire","BENEF_S016","ETS_05","≤ (Date du jour - 8J)","x",null,"NO RUN",{"$f":"IF((J226=\"OK\")*(J227=\"OK\")*(J228=\"OK\")*(J229=\"OK\")*(J230=\"OK\")*(J231=\"OK\")*(J232=\"OK\"),\"OK\",IF(COUNTIF(J226:J232,\"KO\"),\"KO\",\"NO RUN\"))","v":"NO RUN"}]
[null,"S016-SIM_1_ADM_SEJ","Cycle d'admission",null,null,null,null,null,null,"NO RUN"]
[null,"S016-IDB_2_ADM_SEJ","En cours de séjour",null,null,null,null,null,null,"NO RUN"]
[null,"S016-SIM_2_ADM_SEJ","En cours de séjour",null,null,null,null,null,null,"NO RUN"]
[null,"S016-SIM_SORTIE_SEJ","Engagement de paiement",null,null,null,null,null,null,"NO RUN"]
[null,"S016-CLC_SORTIE_SEJ","Engagement de paiement",null,null,null,null,null,null,"NO RUN"]
[null,"S016-DREES_SEJ","Facturation et RSP",null,null,null,null,null,null,"NO RUN"]
[null,"Scénario S017 : SEJOUR AVEC UN CHANGEMENT DE REGIME OBLIGATOIRE EN COURS DE SEJOUR (S017-SEJOUR_CHGT_AMO)"]
[null,"S017-IDB_1_ADM_SEJ","Cycle d'admission","Obligatoire","BENEF_S017","ETS_05","≤ (Date du jour - 19J)","x",null,"NO RUN",{"$f":"IF((J234=\"OK\")*(J235=\"OK\")*(J236=\"OK\")*(J237=\"OK\")*(J238=\"OK\")*(J239=\"OK\")*(J240=\"OK\"),\"OK\",IF(COUNTIF(J234:J240,\"KO\"),\"KO\",\"NO RUN\"))","v":"NO RUN"}]
[null,"S017-SIM_1_ADM_SEJ","Cycle d'admission",null,null,null,null,null,null,"NO RUN"]
[null,"S017-IDB_2_ADM_SEJ","En cours de séjour",null,null,null,null,null,null,"NO RUN"]
[null,"S017-SIM_2_ADM_SE","En cours de séjour",null,null,null,null,null,null,"NO RUN"]
[null,"S017-SIM_SORTIE_SEJ","Engagement de paiement",null,null,null,null,null,null,"NO RUN"]
[null,"S017-CLC_SORTIE_SEJ","Engagement de paiement",null,null,null,null,null,null,"NO RUN"]
[null,"S017-DREES_SEJ","Facturation et RSP",null,null,null,null,null,null,"NO RUN"]
[null,"Scénario S018 : SEJOUR AVEC UNE ANNULATION DE CLC (S018-SEJOUR_ANNULATION_CLC)"]
[null,"S018-IDB_ADM_SEJ","Cycle d'admission","Obligatoire","BENEF_S018","ETS_05","≤ (Date du jour - 3J)","x",null,"NO RUN",{"$f":"IF((J242=\"OK\")*(J243=\"OK\")*(J244=\"OK\")*(J245=\"OK\")*(J246=\"OK\")*(J247=\"OK\")*(J248=\"OK\")*(J249=\"OK\")*(J250=\"OK\"),\"OK\",IF(COUNTIF(J242:J250,\"KO\"),\"KO\",\"NO RUN\"))","v":"NO RUN"}]
[null,"S018-SIM_ADM_SEJ","Cycle d'admission",null,null,null,null,null,null,"NO RUN"]
[null,"S018-CLC_SORTIE_SEJ","Engagement de paiement",null,null,null,null,null,null,"NO RUN"]
[null,"S018-DEL_SORTIE_SEJ","Engagement de paiement",null,null,null,null,null,null,"NO RUN"]
[null,"S018-IDB_PROLONGATION_SEJ","Cycle de prolongation",null,null,null,null,null,null,"NO RUN"]
[null,"S018-SIM_PROLONGATION_SEJ","Cycle de prolongation",null,null,null,null,null,null,"NO RUN"]
[null,"S018-SIM_SORTIE_SEJ","Engagement de paiement",null,null,null,null,null,null,"NO RUN"]
[null,"S018-CLC_2_SORTIE_SEJ ","Engagement de paiement",null,null,null,null,null,null,"NO RUN"]
[null,"S018-DREES_SEJ","Facturation et RSP",null,null,null,null,null,null,"NO RUN"]

{"sheet":"Indicateurs Tests","index":2,"n_rows":27,"n_cols":13,"rows_kept":27,"cut":false,"hidden":false,"merged":[[23,2,23,3],[2,2,3,9],[2,11,3,18],[5,2,5,3],[5,11,5,12]]}
[]
[]
[null,null,"Cas de tests",null,null,null,null,null,null,null,null,"Scénario de tests"]
[]
[]
[null,null,"Nombre de test",null,null,null,null,null,null,null,null,"Nombre de scénario"]
[null,null,null,"Total",null,null,null,null,null,null,null,null,"Total"]
[null,null,"OK",{"$f":"COUNTIF('Cas de tests internes'!J:J,\"OK\")","v":0},null,null,null,null,null,null,null,"OK",{"$f":"COUNTIF('Cas de tests internes'!K:K,\"OK\")","v":0}]
[null,null,"KO",{"$f":"COUNTIF('Cas de tests internes'!J:J,\"KO\")","v":0},null,null,null,null,null,null,null,"KO",{"$f":"COUNTIF('Cas de tests internes'!K:K,\"KO\")","v":0}]
[null,null,"NO RUN ",{"$f":"COUNTIF('Cas de tests internes'!J:J,\"NO RUN\")","v":201},null,null,null,null,null,null,null,"NO RUN ",{"$f":"COUNTIF('Cas de tests internes'!K:K,\"NO RUN\")","v":36}]
[null,null,"Total",{"$f":"D8+D9+D10","v":201},null,null,null,null,null,null,null,"Total",{"$f":"M8+M9+M10","v":36}]
[]
[null,null,"Avancement",{"$f":"(D8+D9)/(D8+D9+D10)","v":0},null,null,null,null,null,null,null,"Avancement",{"$f":"(M8+M9)/(M8+M9+M10)","v":0}]
[]
[]
[]
[]
[]
[]
[]
[]
[]
[]
[null,null,"Résutat des tests"]
[null,null,"NO RUN","Non exécuté"]
[null,null,"OK","OK"]
[null,null,"KO","KO"]

{"sheet":"Liste des Bénéficiaires","index":3,"n_rows":57,"n_cols":3,"rows_kept":57,"cut":false,"hidden":false,"merged":[[38,2,39,2],[38,1,39,1],[1,1,2,1],[1,2,2,2],[16,1,17,1],[16,2,17,2]]}
[]
[null,"ID","Description Bénéficiaire - Cas Transverses"]
[]
[null,"BENEF_01","Bénéficiaire classique assuré depuis plus de 365 jours"]
[null,"BENEF_02","Bénéficiaire dont le contrat est résilié"]
[null,"BENEF_03","Bénéficiaire avec un enfant présent sur le contrat de la mère (Ouvrant-droit celui du père)"]
[null,"BENEF_04","Bénéficiaire avec un enfant présent sur le contrat du père (Ouvrant-droit celui du mère)"]
[null,"BENEF_05","Bénéficiaire classique, l'ouvrant droit et le bénéficiaire de soins sont la même personne, la date de fin de contrat connue et postérieure au jour de la demande + 15 jours"]
[null,"BENEF_06","Bénéficiaire classique assuré de plus de 365 jours, l'ouvrant droit et le bénéficiaire de soins sont la même personne. Date échéance de renouvellement égale à  la date d'admission + 5 jours."]
[null,"BENEF_07","Bénéficiaire avec un contrat suspendu depuis J-7"]
[null,"BENEF_08","Bénéficiaire avec des droits ouverts le jour de la demande, mais une date de fin de contrat connue à J+3"]
[null,"BENEF_09","Bénéficiaire inconnu par l'AMC"]
[null,"BENEF_10","Bénéficiaire avec un enfant présent sur le contrat du père (Ouvrant-droit celui du père)"]
[null,"BENEF_11","Bénéficiaire avec une date de début de contrat postérieure à la date d’admission"]
[]
[]
[null,"ID","Description Bénéficiaire - Cas ACE"]
[]
[null,"BENEF_A001","Bénéficiaire du scénario A001 avec des droits ouverts et bénéficie d’un contrat responsable"]
[null,"BENEF_A002","Bénéficiaire du scénario A002 avec des droits ouverts et bénéficie d’un contrat responsable"]
[null,"BENEF_A003","Bénéficiaire du scénario A003 avec des droits ouverts et bénéficie d’un contrat responsable"]
[null,"BENEF_A004","Bénéficiaire du scénario A004 avec des droits ouverts et bénéficie d’un contrat responsable"]
[null,"BENEF_A005","Bénéficiaire du scénario A005 avec des droits ouverts et bénéficie d’un contrat responsable"]
[null,"BENEF_A006","Bénéficiaire du scénario A006 avec des droits ouverts et bénéficie d’un contrat responsable"]
[null,"BENEF_A007","Bénéficiaire du scénario A007 avec des droits ouverts sur une partie de la période et bénéficie d’un contrat responsable"]
[null,"BENEF_A008","Bénéficiaire du scénario A008 avec des droits ouverts et bénéficie d’un contrat responsable"]
[null,"BENEF_A009","Bénéficiaire du scénario A009 avec des droits ouverts et bénéficie d’un contrat responsable"]
[null,"BENEF_A010","Bénéficiaire du scénario A010 avec des droits ouverts et bénéficie d’un contrat responsable"]
[null,"BENEF_A011","Bénéficiaire du scénario A011 avec des droits ouverts et bénéficiant d’un contrat non responsable"]
[null,"BENEF_A012","Bénéficiaire du scénario A012 avec des droits ouverts et bénéficiant d’un contrat non responsable"]
[null,"BENEF_A013","Bénéficiaire du scénario A013 avec des droits ouverts et bénéficie d’un contrat responsable"]
[null,"BENEF_A014","Bénéficiaire du scénario A014 avec des droits ouverts et bénéficie d’un contrat responsable"]
[null,"BENEF_A015","Bénéficiaire du scénario A015 avec des droits ouverts et bénéficie d’un contrat responsable"]
[null,"BENEF_A016","Bénéficiaire du scénario A016 avec des droits ouverts et bénéficie d’un contrat responsable"]
[null,"BENEF_A017","Bénéficiaire du scénario A017 avec des droits ouverts et bénéficie d’un contrat responsable"]
[null,"BENEF_A018","Bénéficiaire du scénario A018 avec des droits ouverts et bénéficie d’un contrat responsable"]
[null,"BENEF_A019","Bénéficiaire du scénario A019 avec des droits ouverts et bénéficie d’un contrat responsable"]
[]
[null,"ID","Description Bénéficiaire - Cas SEJOUR"]
[]
[null,"BENEF_S001","Bénéficiaire du scénario S001 avec des droits ouverts et bénéficie d’un contrat responsable"]
[null,"BENEF_S002","Bénéficiaire du scénario S002 avec des droits ouverts et bénéficiant d’un contrat non responsable"]
[null,"BENEF_S003","Bénéficiaire du scénario S003 avec des droits ouverts et bénéficiant d’un contrat non responsable avec un contrat contenant une date de fin de couverture à J+3"]
[null,"BENEF_S004","Bénéficiaire du scénario S004 avec un contrat valide. Le contrat est en cours et la date de fin de couverture est postérieure à la date de renouvellement d’échéance. La date de renouvellement d’échéance est fixée par l’AMC à J+3 (donnée non modifiable en test)"]
[null,"BENEF_S005","Bénéficiaire du scénario S005 avec des droits ouverts et bénéficiant d’un contrat non responsable"]
[null,"BENEF_S006","Bénéficiaire du scénario S006 avec des droits ouverts et bénéficiant d’un contrat non responsable"]
[null,"BENEF_S007","Bénéficiaire du scénario S007 avec des droits ouverts et bénéficie d’un contrat responsable et affilié au régime Alsace Moselle"]
[null,"BENEF_S008","Bénéficiaire du scénario S008 avec des droits ouverts et bénéficie d’un contrat responsable"]
[null,"BENEF_S009","Bénéficiaire du scénario S009 est un enfant. L’ouvrant-droit bénéficie d’un contrat responsable, il comprend une garantie forfaits accompagnant"]
[null,"BENEF_S010","Bénéficiaire du scénario S010 avec des droits ouverts et bénéficie d’un contrat responsable. Il comprend une garantie chambre particulière avec un plafond de 6 nuits"]
[null,"BENEF_S011","Bénéficiaire du scénario S011 avec des droits ouverts et bénéficie d’un contrat responsable"]
[null,"BENEF_S012","Bénéficiaire du scénario S012 avec des droits ouverts et bénéficie d’un contrat responsable"]
[null,"BENEF_S014","Bénéficiaire du scénario S014 avec des droits ouverts et bénéficie d’un contrat responsable"]
[null,"BENEF_S015","Bénéficiaire du scénario S015 avec des droits ouverts et bénéficie d’un contrat responsable"]
[null,"BENEF_S016","Bénéficiaire du scénario S016 avec des droits ouverts et bénéficie d’un contrat responsable"]
[null,"BENEF_S017","Bénéficiaire du scénario S017 avec des droits ouverts et bénéficie d’un contrat responsable"]
[null,"BENEF_S018","Bénéficiaire du scénario S018 avec des droits ouverts et bénéficie d’un contrat responsable"]

{"sheet":"Liste des ETS","index":4,"n_rows":11,"n_cols":9,"rows_kept":11,"cut":false,"hidden":false,"merged":[[3,1,4,1],[3,2,4,2],[3,3,4,3],[3,4,4,4],[3,5,3,8]]}
[]
[null,"Voici la liste des ETS qui seront utilisés pour la vérification de conformité, ils sont à déclarer dans votre SI. Un fichier SGETS, contenant ces ETS est disponible en téléchargement sur la plateforme de tests."]
[]
[null,"ID","Description","Nom","NumFact","ComplementEs"]
[null,null,null,null,null,"FinessGeo","FinessJur","StatutJur","Categorie"]
[null,"ETS_01","Établissement de santé public démarré habilité","ETS PUBLIC 01",{"$f":"G6&F6","v":"990009136990792590"},990792590,990009136,13,355]
[null,"ETS_02","Établissement de santé public non démarré","ETS PUBLIC 02",{"$f":"G7&F7","v":"990008898990792558"},990792558,990008898,13,355]
[null,"ETS_03","Établissement de santé public démarré sous surveillance","ETS PUBLIC 03","990009110990792632",990792632,990009110,13,355]
[null,"ETS_04","Établissement de santé public démarré sous surveillance et paramétré partenaire de tests ROC","ETS PUBLIC 04","990009128990792541",990792541,990009128,13,355]
[null,"ETS_05","Établissement de santé PNL démarré habilité","ETS PNL 01 ","990009045990792566",990792566,990009045,65,131]
[null,"ETS_06","Établissement de santé HIA démarré habilité","ETS HIA 01","990009995990792574",990792574,990009995,"01",114]

{"sheet":"Bénéficiaires","index":5,"n_rows":71,"n_cols":22,"rows_kept":71,"cut":false,"hidden":false,"merged":[[59,1,67,1],[3,1,4,2],[5,11,22,11],[49,1,50,2],[51,1,53,1],[54,1,58,1],[26,1,27,2],[28,1,30,1],[31,1,35,1],[36,1,44,1],[5,1,7,1],[8,1,12,1],[13,1,21,1]]}
[]
[null,null,"Veuillez renseigner les information pour les différents bénéficiaires présents sur votre SI"]
[]
[null,"Spécificités bénéficiaires (Cas Transverses)",null,"Bénéficiaire classique assuré depuis plus de 365 jours","Bénéficiaire dont le contrat est résilié","Bénéficiaire avec un enfant présent sur le contrat de la mère \n(Ouvrant-droit celui du père)","Bénéficiaire avec un enfant présent sur le contrat du père\n(Ouvrant-droit celui du mère)","Bénéficiaire classique, l'ouvrant droit et le bénéficiaire de soins sont la même personne, la date de fin de contrat est connue et postérieure au jour de l'admission + 15 jours","Bénéficiaire classique assuré de plus de 365 jours, l'ouvrant droit et le bénéficiaire de soins sont la même personne, la date d' échéance de renouvellement est à date d'admission + 5 jours","Bénéficiaire avec un contrat suspendu depuis J-7","Bénéficiaire avec des droits ouverts le jour de la demande, mais une date de fin de contrat connue à J+3","Bénéficiaire inconnu par l'AMC","Bénéficiaire avec un enfant présent sur le contrat du père\n(Ouvrant-droit celui du père)","Bénéficiaire avec une date de début de contrat postérieure à la date d’admission"]
[null,null,null,"BENEF_01","BENEF_02","BENEF_03","BENEF_04","BENEF_05","BENEF_06","BENEF_07","BENEF_08","BENEF_09","BENEF_10","BENEF_11"]
[null,"AMC","N° AMC\n(Généralement sur 9 caractères pour les mutuelles et 8 pour les assurances et les instituts de prévoyance)",null,null,null,null,null,null,null,null,"BENEF_09 pré-renseigné dans le projet SoapUi "]
[null,null,"Type de convention \n(2 caractères)"]
[null,null,"Critère Secondaire de Routage \n(Facultatif - 3 caractères)"]
[null,"Ouvrant droit \n- ODR","NIR - Ouvrant droit\n(13 caractères)"]
[null,null,"Clé - Ouvrant droit\n(2 caractères)"]
[null,null,"Code régime AMO\n(Facultatif - 2 caractères)"]
[null,null,"Code caisse AMO\n(Facultatif - 3 caractères)"]
[null,null,"Code centre AMO\n(Facultatif - 4 caractères)"]
[null,"Bénéficiaire - BENEF","N° adhérent\n(15 caractères maximum)"]
[null,null,"Nom\n(64 caractères maximum)"]
[null,null,"Prénom\n(64 caractères maximum)"]
[null,null,"NIR - Bénéficiaire de soins\n(13 caractères)"]
[null,null,"Clé - Bénéficiaire de soins\n(2 caractères)"]
[null,null,"Date naissance \n(Format : AAAA-MM-JJ)"]
[null,null,"Rang naissance\n(1 caractère entre 1 et 9)"]
[null,null,"Date de début des droits * \n(Format : AAAA-MM-JJ)"]
[null,null,"Date de radiation ** \n(Format : AAAA-MM-JJ)"]
[null,null,"Date d'admission \n(Format : AAAA-MM-JJ)"]
[null,null,"* : Le bénéficiaire doit avoir une date de début des droits d'au moins 2 ans"]
[null,null,"** : La date de radiation ne doit pas dépasser les 2 ans par rapport à la date actuelle"]
[]
[null,"Spécificités bénéficiaires (Scénario ACE)",null,"Bénéficiaire du scénario A001 avec des droits ouverts et bénéficie d’un contrat responsable","Bénéficiaire du scénario A002 avec des droits ouverts et bénéficie d’un contrat responsable","Bénéficiaire du scénario A003 avec des droits ouverts et bénéficie d’un contrat responsable","Bénéficiaire du scénario A004 avec des droits ouverts et bénéficie d’un contrat responsable","Bénéficiaire du scénario A005 avec des droits ouverts et bénéficie d’un contrat responsable","Bénéficiaire du scénario A006 avec des droits ouverts et bénéficie d’un contrat responsable","Bénéficiaire du scénario A007 avec des droits ouverts sur une partie de la période et bénéficie d’un contrat responsable","Bénéficiaire du scénario A008 avec des droits ouverts et bénéficie d’un contrat responsable ","Bénéficiaire du scénario A009 avec des droits ouverts et bénéficie d’un contrat responsable","Bénéficiaire du scénario A010 avec des droits ouverts et bénéficie d’un contrat responsable ","Bénéficiaire du scénario A011 avec des droits ouverts et bénéficiant d’un contrat non responsable","Bénéficiaire du scénario A012 avec des droits ouverts et bénéficiant d’un contrat non responsable ","Bénéficiaire du scénario A013 avec des droits ouverts et bénéficie d’un contrat responsable","Bénéficiaire du scénario A014 avec des droits ouverts et bénéficie d’un contrat responsable","Bénéficiaire du scénario A015 avec des droits ouverts et bénéficie d’un contrat responsable","Bénéficiaire du scénario A016 avec des droits ouverts et bénéficie d’un contrat responsable","Bénéficiaire du scénario A017 avec des droits ouverts et bénéficie d’un contrat responsable","Bénéficiaire du scénario A018 avec des droits ouverts et bénéficie d’un contrat responsable","Bénéficiaire du scénario A019 avec des droits ouverts et bénéficie d’un contrat responsable"]
[null,null,null,"BENEF_A001","BENEF_A002","BENEF_A003","BENEF_A004","BENEF_A005","BENEF_A006","BENEF_A007","BENEF_A008","BENEF_A009","BENEF_A010","BENEF_A011","BENEF_A012","BENEF_A013","BENEF_A014","BENEF_A015","BENEF_A016","BENEF_A017","BENEF_A018","BENEF_A019"]
[null,"AMC","N° AMC\n(Généralement sur 9 caractères pour les mutuelles et 8 pour les assurances et les instituts de prévoyance)"]
[null,null,"Type de convention \n(2 caractères)"]
[null,null,"Critère Secondaire de Routage \n(Facultatif - 3 caractères)"]
[null,"Ouvrant droit \n- ODR","NIR - Ouvrant droit\n(13 caractères)"]
[null,null,"Clé - Ouvrant droit\n(2 caractères)"]
[null,null,"Code régime AMO\n(Facultatif - 2 caractères)"]
[null,null,"Code caisse AMO\n(Facultatif - 3 caractères)"]
[null,null,"Code centre AMO\n(Facultatif - 4 caractères)"]
[null,"Bénéficiaire - BENEF","N° adhérent\n(15 caractères maximum)"]
[null,null,"Nom\n(64 caractères maximum)"]
[null,null,"Prénom\n(64 caractères maximum)"]
[null,null,"NIR - Bénéficiaire de soins\n(13 caractères)"]
[null,null,"Clé - Bénéficiaire de soins\n(2 caractères)"]
[null,null,"Date naissance \n(Format : AAAA-MM-JJ)"]
[null,null,"Rang naissance\n(1 caractère entre 1 et 9)"]
[null,null,"Date de début des droits * \n(Format : AAAA-MM-JJ)"]
[null,null,"Date de radiation ** \n(Format : AAAA-MM-JJ)"]
[null,null,"Date d'admission \n(Format : AAAA-MM-JJ)"]
[null,null,"* : Le bénéficiaire doit avoir une date de début des droits d'au moins 2 ans"]
[null,null,"** : La date de radiation ne doit pas dépasser les 2 ans par rapport à la date actuelle"]
[]
[null,"Spécificités bénéficiaires (Scénario SEJOUR)",null,"Bénéficiaire du scénario S001 avec des droits ouverts et bénéficie d’un contrat responsable","Bénéficiaire du scénario S002 avec des droits ouverts et bénéficiant d’un contrat non responsable","Bénéficiaire du scénario S003 avec des droits ouverts et bénéficiant d’un contrat non responsable","Bénéficiaire du scénario S004 avec un contrat valide. Le contrat est en cours et la date de fin de couverture est postérieure à la date de renouvellement d’échéance. La date de renouvellement d’échéance est fixée par l’AMC à J+3 (donnée non modifiable en test)","Bénéficiaire du scénario S005 avec des droits ouverts et bénéficiant d’un contrat non responsable","Bénéficiaire du scénario S006 avec des droits ouverts et bénéficiant d’un contrat non responsable","Bénéficiaire du scénario S007 avec des droits ouverts et bénéficie d’un contrat responsable et affilié au régime Alsace Moselle","Bénéficiaire du scénario S008 avec des droits ouverts et bénéficie d’un contrat responsable ","Bénéficiaire du scénario S009 est un enfant. L’ouvrant-droit bénéficie d’un contrat responsable, il comprend une garantie forfaits accompagnant","Bénéficiaire du scénario S010 avec des droits ouverts et bénéficie d’un contrat responsable. Il comprend une garantie chambre particulière avec un plafond de 6 nuits","Bénéficiaire du scénario S011 avec des droits ouverts et bénéficie d’un contrat responsable","Bénéficiaire du scénario S012 avec des droits ouverts et bénéficie d’un contrat responsable","Bénéficiaire du scénario S014 avec des droits ouverts et bénéficie d’un contrat responsable","Bénéficiaire du scénario S015 avec des droits ouverts et bénéficie d’un contrat responsable","Bénéficiaire du scénario S016 avec des droits ouverts et bénéficie d’un contrat responsable","Bénéficiaire du scénario S017 avec des droits ouverts et bénéficie d’un contrat responsable","Bénéficiaire du scénario S018 avec des droits ouverts et bénéficie d’un contrat responsable"]
[null,null,null,"BENEF_S001","BENEF_S002","BENEF_S003","BENEF_S004","BENEF_S005","BENEF_S006","BENEF_S007","BENEF_S008","BENEF_S009","BENEF_S010","BENEF_S011","BENEF_S012","BENEF_S014","BENEF_S015","BENEF_S016","BENEF_S017","BENEF_S018"]
[null,"AMC","N° AMC\n(Généralement sur 9 caractères pour les mutuelles et 8 pour les assurances et les instituts de prévoyance)"]
[null,null,"Type de convention \n(2 caractères)"]
[null,null,"Critère Secondaire de Routage \n(Facultatif - 3 caractères)"]
[null,"Ouvrant droit \n- ODR","NIR - Ouvrant droit\n(13 caractères)"]
[null,null,"Clé - Ouvrant droit\n(2 caractères)"]
[null,null,"Code régime AMO\n(Facultatif - 2 caractères)"]
[null,null,"Code caisse AMO\n(Facultatif - 3 caractères)"]
[null,null,"Code centre AMO\n(Facultatif - 4 caractères)"]
[null,"Bénéficiaire - BENEF","N° adhérent\n(15 caractères maximum)"]
[null,null,"Nom\n(64 caractères maximum)"]
[null,null,"Prénom\n(64 caractères maximum)"]
[null,null,"NIR - Bénéficiaire de soins\n(13 caractères)"]
[null,null,"Clé - Bénéficiaire de soins\n(2 caractères)"]
[null,null,"Date naissance \n(Format : AAAA-MM-JJ)"]
[null,null,"Rang naissance\n(1 caractère entre 1 et 9)"]
[null,null,"Date de début des droits * \n(Format : AAAA-MM-JJ)"]
[null,null,"Date de radiation ** \n(Format : AAAA-MM-JJ)"]
[null,null,"Date d'admission \n(Format : AAAA-MM-JJ)"]
[null,null,"* : Le bénéficiaire doit avoir une date de début des droits d'au moins 2 ans"]
[null,null,"** : La date de radiation ne doit pas dépasser les 2 ans par rapport à la date actuelle"]

{"sheet":"Configuration","index":6,"n_rows":22,"n_cols":5,"rows_kept":22,"cut":false,"hidden":false,"merged":[]}
[]
[null,"Veuillez renseigner les informations pour l'envoi de DRE-ES sur votre SI"]
[]
[null,"Type de destinataire (OC ou CS)"]
[null,"Numéro destinataire"]
[null,"Domaine"]
[null,"Identification hôte gestionnaire"]
[null,"Code routage"]
[null,"BAL DRE",null,null,"BAL DRE = DRE.XX.NNN.0@amc.rss.fr ou DRE.NumDest.NNN.0@amc.rss.fr"]
[null,null,null,null,"Avec : "]
[null,null,null,null,"XX = code routage"]
[null,null,null,null,"NNN = id hôte gestionnaire"]
[null,null,null,null,"amc.rss.fr = nom de domaine"]
[null,null,null,null,"NumDest = numéro destinataire"]
[]
[null,"Veuillez renseigner les informations pour les échanges IDB/CLC/SIM/DEL sur votre SI"]
[null,"Attention : Les URLs ci-dessous doivent être identiques avec les URLs renseignés dans l'Annuaire de Démo"]
[]
[null,"URL de test pour IDB"]
[null,"URL de test pour CLC"]
[null,"URL de test pour SIM"]
[null,"URL de test pour DEL"]

{"sheet":"Contacts","index":7,"n_rows":6,"n_cols":5,"rows_kept":6,"cut":false,"hidden":false,"merged":[]}
[]
[null,"Veuillez renseigner au moins 2 lignes téléphoniques + mails avec lesquels nous pourrons vous contacter pour la vérification de conformité"]
[]
[null,"Contact","Prénom + nom","Mail","Tel"]
[null,"Contact de la personne technique\n(qui travaillera sur les DRE-ES/RSP 578R/RSP 908R et sur les services en ligne IDB/CLC/SIM/DEL)"]
[null,"Contact de la personne administrative\n(pour les points d'avancements et contrat)"]

{"sheet":"Remarques","index":8,"n_rows":28,"n_cols":3,"rows_kept":28,"cut":false,"hidden":false,"merged":[[25,1,26,1]]}
[]
[null,"Remarques"]
[null,null,"* Dans les DRE-ES, la valeur du « sens comptable » sera à « 6 ». Assurez-vous que votre SI accepte bien cette valeur."]
[null,null,"* Les ETS que nous utiliserons dans les cas de tests seront les mêmes que durant vos tests internes. \nCependant, si vous n’avez plus ces ETS déclarés, il vous faudra les ajouter dans votre SI. Ils sont disponibles dans le fichier SGETS et dans l'onglet \"Liste des ETS\" de ce fichier. "]
[null,null,"* Lors des tests de bout en bout, nous allons modifier un de ces ETS dans le fichier SGETS et vérifier sa mise à jour sur votre SI."]
[]
[null,null,"Vous trouverez ci-dessous un résumé du déroulement de la vérification de conformité ROC"]
[null,null,"https://inter-amc.kereval.com/docs/"]
[]
[null,"Points d'attention"]
[null,null,"Assurez vous que"]
[null,null,"* Votre SI et les URL de tests des web services sont bien accessibles de l'extérieur."]
[null,null,"* Votre AMC (ou celle que vous couvrez) est bien déclarée dans l'Annuaire AMC de Démo avec les bonnes URL de tests."]
[null,null,"* Les modifications sur votre SI sont autorisées lors du passage préparatoire."]
[null,null,"* Les modifications sur votre SI ne sont pas autorisées lors du passage en vérification de conformité."]
[null,null,"* Les jeux de données et les bénéficiaires ne doivent pas être modifiés lors du passage en vérification de conformité."]
[null,null,"* Les ETS à déclarer dans votre SI doivent être définis comme exerçant depuis plus d'un an."]
[]
[null,"Aspect Sécurité"]
[null,null,"* Vous avez bien pris en compte et installé les certificats présents sur le site de la complementaire santé"]
[null,null,"https://si-mem.complementairesante.fr/base-documentaire/documents?Id=8651"]
[null,null,"* Les autres documents ROC du site sont également à lire et appliquer."]
[null,null,"* Concernant le contrôle des assertions SAML :\n A noter que si l’assertion est signée avec un certificat logiciel, l’horodatage de l’assertion SAML doit être compris entre -5 minutes et +5 minutes, heure du serveur (TS2212 : dans le contrôle de l’obsolescence des assertions SAML)."]
[null,null,"* L'horodatage de l'assertion SAML est toujours au format/heure de greenwich (2018-MM-JJT10:23:32.851Z). Alors que l'horodatage de la requête est en heure local (2018-MM-JJT11:23:32+01:00)"]
[]
[null,"Documents à fournir avant votre passage en vérifiation de conformité","* Une attestation Tiers-Payant sur l'année en cours "]
[null,null,"* Ce fichier de pré-requis complété"]
[null,null,"* Le contrat de la vérification de conformité signé"]

{"sheet":"Paramétrage SoapUi","index":9,"n_rows":979,"n_cols":1,"rows_kept":979,"cut":false,"hidden":false,"merged":[]}
["**Il est possible de générer le fichier .txt à partir du document \"KER2-ROCV1-CATALOGUE_ET_PREREQUIS_VERIFICATION_CONFORMITE_AMC-X_XX\" disponible : https://inter-amc.kereval.com/CatalogueROC/ **"]
[]
[{"$f":"'Fichier de paramétrage vierge'!A1","v":"**Endpoint à renseigner par l'AMC**"}]
[{"$f":"'Fichier de paramétrage vierge'!A2&Configuration!C19","v":"endpointIDB="}]
[{"$f":"'Fichier de paramétrage vierge'!A3&Configuration!C20","v":"endpointCLC="}]
[{"$f":"'Fichier de paramétrage vierge'!A4&Configuration!C21","v":"endpointSIM="}]
[{"$f":"'Fichier de paramétrage vierge'!A5&Configuration!C22","v":"endpointDEL="}]
[]
[{"$f":"'Fichier de paramétrage vierge'!A7","v":"**Repertoire où se trouve le dossier de test. /!\\ Mettre deux \\ en fin de ligne. **"}]
[{"$f":"'Fichier de paramétrage vierge'!A8","v":"**Exemple : xml_repertoire=MonRepertoire\\Simulateur ETS\\CasDeTestsAMC\\\\**"}]
[{"$f":"'Fichier de paramétrage vierge'!A9","v":"xml_repertoire="}]
[]
[{"$f":"'Fichier de paramétrage vierge'!A11","v":"**Toutes les informations sur les bénéficiaires doivent être renseignées ici**"}]
[]
[{"$f":"'Fichier de paramétrage vierge'!A13","v":"****** CAS TRANSVERSE *****"}]
[]
[{"$f":"'Fichier de paramétrage vierge'!A15","v":"****** Bénéficiaire classique assuré depuis plus de 365 jours ******"}]
[{"$f":"'Fichier de paramétrage vierge'!A16&Bénéficiaires!D9","v":"ODR_01_NIR="}]
[{"$f":"'Fichier de paramétrage vierge'!A17&Bénéficiaires!D10","v":"ODR_01_CLE_NIR="}]
[{"$f":"'Fichier de paramétrage vierge'!A18&Bénéficiaires!D11","v":"ODR_01_CODE_REGIME_AMO="}]
[{"$f":"'Fichier de paramétrage vierge'!A19&Bénéficiaires!D12","v":"ODR_01_CODE_CAISSE_AMO="}]
[{"$f":"'Fichier de paramétrage vierge'!A20&Bénéficiaires!D13","v":"ODR_01_CODE_CENTRE_AMO="}]
[{"$f":"'Fichier de paramétrage vierge'!A21&Bénéficiaires!D19","v":"BENEF_01_DATE_NAISSANCE="}]
[{"$f":"'Fichier de paramétrage vierge'!A22&Bénéficiaires!D20","v":"BENEF_01_RANG_NAISSANCE="}]
[{"$f":"'Fichier de paramétrage vierge'!A23&Bénéficiaires!D15","v":"BENEF_01_NOM="}]
[{"$f":"'Fichier de paramétrage vierge'!A24&Bénéficiaires!D16","v":"BENEF_01_PRENOM="}]
[{"$f":"'Fichier de paramétrage vierge'!A25&Bénéficiaires!D17","v":"BENEF_01_NIR="}]
[{"$f":"'Fichier de paramétrage vierge'!A26&Bénéficiaires!D18","v":"BENEF_01_CLE_NIR="}]
[{"$f":"'Fichier de paramétrage vierge'!A27&Bénéficiaires!D6","v":"BENEF_01_AMC_NUM_AMC="}]
[{"$f":"'Fichier de paramétrage vierge'!A28&Bénéficiaires!D14","v":"BENEF_01_NUM_ADHERENT="}]
[{"$f":"'Fichier de paramétrage vierge'!A29&Bénéficiaires!D7","v":"BENEF_01_AMC_TYPE_CONV="}]
[{"$f":"'Fichier de paramétrage vierge'!A30&Bénéficiaires!D8","v":"BENEF_01_AMC_CSR="}]
[{"$f":"'Fichier de paramétrage vierge'!A31&Bénéficiaires!D21","v":"BENEF_01_DATE_DEB_DROITS="}]
[{"$f":"'Fichier de paramétrage vierge'!A32&Bénéficiaires!D22","v":"BENEF_01_DATE_RAD="}]
[]
[{"$f":"'Fichier de paramétrage vierge'!A34","v":"****** Bénéficiaire dont le contrat est résilié ******"}]
[{"$f":"'Fichier de paramétrage vierge'!A35&Bénéficiaires!E9","v":"ODR_02_NIR="}]
[{"$f":"'Fichier de paramétrage vierge'!A36&Bénéficiaires!E10","v":"ODR_02_CLE_NIR="}]
[{"$f":"'Fichier de paramétrage vierge'!A37&Bénéficiaires!E11","v":"ODR_02_CODE_REGIME_AMO="}]
[{"$f":"'Fichier de paramétrage vierge'!A38&Bénéficiaires!E12","v":"ODR_02_CODE_CAISSE_AMO="}]
[{"$f":"'Fichier de paramétrage vierge'!A39&Bénéficiaires!E13","v":"ODR_02_CODE_CENTRE_AMO="}]
[{"$f":"'Fichier de paramétrage vierge'!A40&Bénéficiaires!E19","v":"BENEF_02_DATE_NAISSANCE="}]
[{"$f":"'Fichier de paramétrage vierge'!A41&Bénéficiaires!E20","v":"BENEF_02_RANG_NAISSANCE="}]
[{"$f":"'Fichier de paramétrage vierge'!A42&Bénéficiaires!E15","v":"BENEF_02_NOM="}]
[{"$f":"'Fichier de paramétrage vierge'!A43&Bénéficiaires!E16","v":"BENEF_02_PRENOM="}]
[{"$f":"'Fichier de paramétrage vierge'!A44&Bénéficiaires!E17","v":"BENEF_02_NIR="}]
[{"$f":"'Fichier de paramétrage vierge'!A45&Bénéficiaires!E18","v":"BENEF_02_CLE_NIR="}]
[{"$f":"'Fichier de paramétrage vierge'!A46&Bénéficiaires!E6","v":"BENEF_02_AMC_NUM_AMC="}]
[{"$f":"'Fichier de paramétrage vierge'!A47&Bénéficiaires!E14","v":"BENEF_02_NUM_ADHERENT="}]
[{"$f":"'Fichier de paramétrage vierge'!A48&Bénéficiaires!E7","v":"BENEF_02_AMC_TYPE_CONV="}]
[{"$f":"'Fichier de paramétrage vierge'!A49&Bénéficiaires!E8","v":"BENEF_02_AMC_CSR="}]
[{"$f":"'Fichier de paramétrage vierge'!A50&Bénéficiaires!E21","v":"BENEF_02_DATE_DEB_DROITS="}]
[{"$f":"'Fichier de paramétrage vierge'!A51&Bénéficiaires!E22","v":"BENEF_02_DATE_RAD="}]
[]
[{"$f":"'Fichier de paramétrage vierge'!A53","v":"****** Bénéficiaire avec un enfant présent sur le contrat de la mère (Ouvrant-droit celui du père) ******"}]
[{"$f":"'Fichier de paramétrage vierge'!A54&Bénéficiaires!F9","v":"ODR_03_NIR="}]
[{"$f":"'Fichier de paramétrage vierge'!A55&Bénéficiaires!F10","v":"ODR_03_CLE_NIR="}]
[{"$f":"'Fichier de paramétrage vierge'!A56&Bénéficiaires!F11","v":"ODR_03_CODE_REGIME_AMO="}]
[{"$f":"'Fichier de paramétrage vierge'!A57&Bénéficiaires!F12","v":"ODR_03_CODE_CAISSE_AMO="}]
[{"$f":"'Fichier de paramétrage vierge'!A58&Bénéficiaires!F13","v":"ODR_03_CODE_CENTRE_AMO="}]
[{"$f":"'Fichier de paramétrage vierge'!A59&Bénéficiaires!F19","v":"BENEF_03_DATE_NAISSANCE="}]
[{"$f":"'Fichier de paramétrage vierge'!A60&Bénéficiaires!F20","v":"BENEF_03_RANG_NAISSANCE="}]
[{"$f":"'Fichier de paramétrage vierge'!A61&Bénéficiaires!F15","v":"BENEF_03_NOM="}]
[{"$f":"'Fichier de paramétrage vierge'!A62&Bénéficiaires!F16","v":"BENEF_03_PRENOM="}]
[{"$f":"'Fichier de paramétrage vierge'!A63&Bénéficiaires!F17","v":"BENEF_03_NIR="}]
[{"$f":"'Fichier de paramétrage vierge'!A64&Bénéficiaires!F18","v":"BENEF_03_CLE_NIR="}]
[{"$f":"'Fichier de paramétrage vierge'!A65&Bénéficiaires!F6","v":"BENEF_03_AMC_NUM_AMC="}]
[{"$f":"'Fichier de paramétrage vierge'!A66&Bénéficiaires!F14","v":"BENEF_03_NUM_ADHERENT="}]
[{"$f":"'Fichier de paramétrage vierge'!A67&Bénéficiaires!F7","v":"BENEF_03_AMC_TYPE_CONV="}]
[{"$f":"'Fichier de paramétrage vierge'!A68&Bénéficiaires!F8","v":"BENEF_03_AMC_CSR="}]
[{"$f":"'Fichier de paramétrage vierge'!A69&Bénéficiaires!F21","v":"BENEF_03_DATE_DEB_DROITS="}]
[{"$f":"'Fichier de paramétrage vierge'!A70&Bénéficiaires!F22","v":"BENEF_03_DATE_RAD="}]
[]
[{"$f":"'Fichier de paramétrage vierge'!A72","v":"****** Bénéficiaire avec un enfant présent sur le contrat du père (Ouvrant-droit celui de la mère) ******"}]
[{"$f":"'Fichier de paramétrage vierge'!A73&Bénéficiaires!G9","v":"ODR_04_NIR="}]
[{"$f":"'Fichier de paramétrage vierge'!A74&Bénéficiaires!G10","v":"ODR_04_CLE_NIR="}]
[{"$f":"'Fichier de paramétrage vierge'!A75&Bénéficiaires!G11","v":"ODR_04_CODE_REGIME_AMO="}]
[{"$f":"'Fichier de paramétrage vierge'!A76&Bénéficiaires!G12","v":"ODR_04_CODE_CAISSE_AMO="}]
[{"$f":"'Fichier de paramétrage vierge'!A77&Bénéficiaires!G13","v":"ODR_04_CODE_CENTRE_AMO="}]
[{"$f":"'Fichier de paramétrage vierge'!A78&Bénéficiaires!G19","v":"BENEF_04_DATE_NAISSANCE="}]
[{"$f":"'Fichier de paramétrage vierge'!A79&Bénéficiaires!G20","v":"BENEF_04_RANG_NAISSANCE="}]
[{"$f":"'Fichier de paramétrage vierge'!A80&Bénéficiaires!G15","v":"BENEF_04_NOM="}]
[{"$f":"'Fichier de paramétrage vierge'!A81&Bénéficiaires!G16","v":"BENEF_04_PRENOM="}]
[{"$f":"'Fichier de paramétrage vierge'!A82&Bénéficiaires!G17","v":"BENEF_04_NIR="}]
[{"$f":"'Fichier de paramétrage vierge'!A83&Bénéficiaires!G18","v":"BENEF_04_CLE_NIR="}]
[{"$f":"'Fichier de paramétrage vierge'!A84&Bénéficiaires!G6","v":"BENEF_04_AMC_NUM_AMC="}]
[{"$f":"'Fichier de paramétrage vierge'!A85&Bénéficiaires!G14","v":"BENEF_04_NUM_ADHERENT="}]
[{"$f":"'Fichier de paramétrage vierge'!A86&Bénéficiaires!G7","v":"BENEF_04_AMC_TYPE_CONV="}]
[{"$f":"'Fichier de paramétrage vierge'!A87&Bénéficiaires!G8","v":"BENEF_04_AMC_CSR="}]
[{"$f":"'Fichier de paramétrage vierge'!A88&Bénéficiaires!G21","v":"BENEF_04_DATE_DEB_DROITS="}]
[{"$f":"'Fichier de paramétrage vierge'!A89&Bénéficiaires!G22","v":"BENEF_04_DATE_RAD="}]
[]
[{"$f":"'Fichier de paramétrage vierge'!A91","v":"****** Bénéficiaire classique, l'ouvrant droit et le bénéficiaire de soins sont la même personne, la date de fin de contrat est connue et postérieure au jour de l'admission + 15 jours ******"}]
[{"$f":"'Fichier de paramétrage vierge'!A92&Bénéficiaires!H9","v":"ODR_05_NIR="}]
[{"$f":"'Fichier de paramétrage vierge'!A93&Bénéficiaires!H10","v":"ODR_05_CLE_NIR="}]
[{"$f":"'Fichier de paramétrage vierge'!A94&Bénéficiaires!H11","v":"ODR_05_CODE_REGIME_AMO="}]
[{"$f":"'Fichier de paramétrage vierge'!A95&Bénéficiaires!H12","v":"ODR_05_CODE_CAISSE_AMO="}]
[{"$f":"'Fichier de paramétrage vierge'!A96&Bénéficiaires!H13","v":"ODR_05_CODE_CENTRE_AMO="}]
[{"$f":"'Fichier de paramétrage vierge'!A97&Bénéficiaires!H19","v":"BENEF_05_DATE_NAISSANCE="}]
[{"$f":"'Fichier de paramétrage vierge'!A98&Bénéficiaires!H20","v":"BENEF_05_RANG_NAISSANCE="}]
[{"$f":"'Fichier de paramétrage vierge'!A99&Bénéficiaires!H15","v":"BENEF_05_NOM="}]
[{"$f":"'Fichier de paramétrage vierge'!A100&Bénéficiaires!H16","v":"BENEF_05_PRENOM="}]
[{"$f":"'Fichier de paramétrage vierge'!A101&Bénéficiaires!H17","v":"BENEF_05_NIR="}]
[{"$f":"'Fichier de paramétrage vierge'!A102&Bénéficiaires!H18","v":"BENEF_05_CLE_NIR="}]
[{"$f":"'Fichier de paramétrage vierge'!A103&Bénéficiaires!H6","v":"BENEF_05_AMC_NUM_AMC="}]
[{"$f":"'Fichier de paramétrage vierge'!A104&Bénéficiaires!H14","v":"BENEF_05_NUM_ADHERENT="}]
[{"$f":"'Fichier de paramétrage vierge'!A105&Bénéficiaires!H7","v":"BENEF_05_AMC_TYPE_CONV="}]
[{"$f":"'Fichier de paramétrage vierge'!A106&Bénéficiaires!H8","v":"BENEF_05_AMC_CSR="}]
[{"$f":"'Fichier de paramétrage vierge'!A107&Bénéficiaires!H21","v":"BENEF_05_DATE_DEB_DROITS="}]
[{"$f":"'Fichier de paramétrage vierge'!A108&Bénéficiaires!H22","v":"BENEF_05_DATE_RAD="}]
[{"$f":"'Fichier de paramétrage vierge'!A109","v":"**Date d'admission à renseigner au format AAAA-MM-JJ avec une date de fin de contrat est connue et postérieure au jour de l'admission + 15 jours **"}]
[{"$f":"'Fichier de paramétrage vierge'!A110&Bénéficiaires!H23","v":"DATE_ADMISSION_BENEF_05="}]
[]
[{"$f":"'Fichier de paramétrage vierge'!A112","v":"****** Bénéficiaire classique assuré de plus de 365 jours, l'ouvrant droit et le bénéficiaire de soins sont la même personne, la date d'échéance de renouvellement égale à  la date d'admission + 5 jours ******"}]
[{"$f":"'Fichier de paramétrage vierge'!A113&Bénéficiaires!I9","v":"ODR_06_NIR="}]
[{"$f":"'Fichier de paramétrage vierge'!A114&Bénéficiaires!I10","v":"ODR_06_CLE_NIR="}]
[{"$f":"'Fichier de paramétrage vierge'!A115&Bénéficiaires!I11","v":"ODR_06_CODE_REGIME_AMO="}]
[{"$f":"'Fichier de paramétrage vierge'!A116&Bénéficiaires!I12","v":"ODR_06_CODE_CAISSE_AMO="}]
[{"$f":"'Fichier de paramétrage vierge'!A117&Bénéficiaires!I13","v":"ODR_06_CODE_CENTRE_AMO="}]
[{"$f":"'Fichier de paramétrage vierge'!A118&Bénéficiaires!I19","v":"BENEF_06_DATE_NAISSANCE="}]
[{"$f":"'Fichier de paramétrage vierge'!A119&Bénéficiaires!I20","v":"BENEF_06_RANG_NAISSANCE="}]
[{"$f":"'Fichier de paramétrage vierge'!A120&Bénéficiaires!I15","v":"BENEF_06_NOM="}]
[{"$f":"'Fichier de paramétrage vierge'!A121&Bénéficiaires!I16","v":"BENEF_06_PRENOM="}]
[{"$f":"'Fichier de paramétrage vierge'!A122&Bénéficiaires!I17","v":"BENEF_06_NIR="}]
[{"$f":"'Fichier de paramétrage vierge'!A123&Bénéficiaires!I18","v":"BENEF_06_CLE_NIR="}]
[{"$f":"'Fichier de paramétrage vierge'!A124&Bénéficiaires!I6","v":"BENEF_06_AMC_NUM_AMC="}]
[{"$f":"'Fichier de paramétrage vierge'!A125&Bénéficiaires!I14","v":"BENEF_06_NUM_ADHERENT="}]
[{"$f":"'Fichier de paramétrage vierge'!A126&Bénéficiaires!I7","v":"BENEF_06_AMC_TYPE_CONV="}]
[{"$f":"'Fichier de paramétrage vierge'!A127&Bénéficiaires!I8","v":"BENEF_06_AMC_CSR="}]
[{"$f":"'Fichier de paramétrage vierge'!A128&Bénéficiaires!I21","v":"BENEF_06_DATE_DEB_DROITS="}]
[{"$f":"'Fichier de paramétrage vierge'!A129&Bénéficiaires!I22","v":"BENEF_06_DATE_RAD="}]
[{"$f":"'Fichier de paramétrage vierge'!A130","v":"**Date d'admission à renseigner au format AAAA-MM-JJ avec une date d'échéance de renouvellement  égale à la  date d'admission + 5 jours **"}]
[{"$f":"'Fichier de paramétrage vierge'!A131&Bénéficiaires!I23","v":"DATE_ADMISSION_BENEF_06="}]
[]
[{"$f":"'Fichier de paramétrage vierge'!A133","v":"****** Bénéficiaire avec un contrat suspendu depuis J-7 ******"}]
[{"$f":"'Fichier de paramétrage vierge'!A134&Bénéficiaires!J9","v":"ODR_07_NIR="}]
[{"$f":"'Fichier de paramétrage vierge'!A135&Bénéficiaires!J10","v":"ODR_07_CLE_NIR="}]
[{"$f":"'Fichier de paramétrage vierge'!A136&Bénéficiaires!J11","v":"ODR_07_CODE_REGIME_AMO="}]
[{"$f":"'Fichier de paramétrage vierge'!A137&Bénéficiaires!J12","v":"ODR_07_CODE_CAISSE_AMO="}]
[{"$f":"'Fichier de paramétrage vierge'!A138&Bénéficiaires!J13","v":"ODR_07_CODE_CENTRE_AMO="}]
[{"$f":"'Fichier de paramétrage vierge'!A139&Bénéficiaires!J19","v":"BENEF_07_DATE_NAISSANCE="}]
[{"$f":"'Fichier de paramétrage vierge'!A140&Bénéficiaires!J20","v":"BENEF_07_RANG_NAISSANCE="}]
[{"$f":"'Fichier de paramétrage vierge'!A141&Bénéficiaires!J15","v":"BENEF_07_NOM="}]
[{"$f":"'Fichier de paramétrage vierge'!A142&Bénéficiaires!J16","v":"BENEF_07_PRENOM="}]
[{"$f":"'Fichier de paramétrage vierge'!A143&Bénéficiaires!J17","v":"BENEF_07_NIR="}]
[{"$f":"'Fichier de paramétrage vierge'!A144&Bénéficiaires!J18","v":"BENEF_07_CLE_NIR="}]
[{"$f":"'Fichier de paramétrage vierge'!A145&Bénéficiaires!J6","v":"BENEF_07_AMC_NUM_AMC="}]
[{"$f":"'Fichier de paramétrage vierge'!A146&Bénéficiaires!J14","v":"BENEF_07_NUM_ADHERENT="}]
[{"$f":"'Fichier de paramétrage vierge'!A147&Bénéficiaires!J7","v":"BENEF_07_AMC_TYPE_CONV="}]
[{"$f":"'Fichier de paramétrage vierge'!A148&Bénéficiaires!J8","v":"BENEF_07_AMC_CSR="}]
[{"$f":"'Fichier de paramétrage vierge'!A149&Bénéficiaires!J21","v":"BENEF_07_DATE_DEB_DROITS="}]
[{"$f":"'Fichier de paramétrage vierge'!A150&Bénéficiaires!J22","v":"BENEF_07_DATE_RAD="}]
[]
[{"$f":"'Fichier de paramétrage vierge'!A152","v":"****** Bénéficiaire avec des droits ouverts le jour de la demande, mais une date de fin de contrat connue à J+3 ******"}]
[{"$f":"'Fichier de paramétrage vierge'!A153&Bénéficiaires!K9","v":"ODR_08_NIR="}]
[{"$f":"'Fichier de paramétrage vierge'!A154&Bénéficiaires!K10","v":"ODR_08_CLE_NIR="}]
[{"$f":"'Fichier de paramétrage vierge'!A155&Bénéficiaires!K11","v":"ODR_08_CODE_REGIME_AMO="}]
[{"$f":"'Fichier de paramétrage vierge'!A156&Bénéficiaires!K12","v":"ODR_08_CODE_CAISSE_AMO="}]
[{"$f":"'Fichier de paramétrage vierge'!A157&Bénéficiaires!K13","v":"ODR_08_CODE_CENTRE_AMO="}]
[{"$f":"'Fichier de paramétrage vierge'!A158&Bénéficiaires!K19","v":"BENEF_08_DATE_NAISSANCE="}]
[{"$f":"'Fichier de paramétrage vierge'!A159&Bénéficiaires!K20","v":"BENEF_08_RANG_NAISSANCE="}]
[{"$f":"'Fichier de paramétrage vierge'!A160&Bénéficiaires!K15","v":"BENEF_08_NOM="}]
[{"$f":"'Fichier de paramétrage vierge'!A161&Bénéficiaires!K16","v":"BENEF_08_PRENOM="}]
[{"$f":"'Fichier de paramétrage vierge'!A162&Bénéficiaires!K17","v":"BENEF_08_NIR="}]
[{"$f":"'Fichier de paramétrage vierge'!A163&Bénéficiaires!K18","v":"BENEF_08_CLE_NIR="}]
[{"$f":"'Fichier de paramétrage vierge'!A164&Bénéficiaires!K6","v":"BENEF_08_AMC_NUM_AMC="}]
[{"$f":"'Fichier de paramétrage vierge'!A165&Bénéficiaires!K14","v":"BENEF_08_NUM_ADHERENT="}]
[{"$f":"'Fichier de paramétrage vierge'!A166&Bénéficiaires!K7","v":"BENEF_08_AMC_TYPE_CONV="}]
[{"$f":"'Fichier de paramétrage vierge'!A167&Bénéficiaires!K8","v":"BENEF_08_AMC_CSR="}]
[{"$f":"'Fichier de paramétrage vierge'!A168&Bénéficiaires!K21","v":"BENEF_08_DATE_DEB_DROITS="}]
[{"$f":"'Fichier de paramétrage vierge'!A169&Bénéficiaires!K22","v":"BENEF_08_DATE_RAD="}]
[{"$f":"'Fichier de paramétrage vierge'!A170","v":"**Date d'admission à renseigner au format AAAA-MM-JJ avec les droits ouverts à la date d'admission et une date de fin de contrat à date d'admission + 3 jours**"}]
[{"$f":"'Fichier de paramétrage vierge'!A171&Bénéficiaires!K23","v":"DATE_ADMISSION_BENEF_08="}]
[]
[{"$f":"'Fichier de paramétrage vierge'!A173","v":"****** Bénéficiaire inconnu par l'AMC ******"}]
[{"$f":"'Fichier de paramétrage vierge'!A174","v":"** BENEF_09 pré-renseigné dans le projet SoapUi **"}]
[]
[{"$f":"'Fichier de paramétrage vierge'!A176","v":"****** Bénéficiaire avec un enfant présent sur le contrat du père (Ouvrant-droit celui du père) ******"}]
[{"$f":"'Fichier de paramétrage vierge'!A177&Bénéficiaires!M9","v":"ODR_10_NIR="}]
[{"$f":"'Fichier de paramétrage vierge'!A178&Bénéficiaires!M10","v":"ODR_10_CLE_NIR="}]
[{"$f":"'Fichier de paramétrage vierge'!A179&Bénéficiaires!M11","v":"ODR_10_CODE_REGIME_AMO="}]
[{"$f":"'Fichier de paramétrage vierge'!A180&Bénéficiaires!M12","v":"ODR_10_CODE_CAISSE_AMO="}]
[{"$f":"'Fichier de paramétrage vierge'!A181&Bénéficiaires!M13","v":"ODR_10_CODE_CENTRE_AMO="}]
[{"$f":"'Fichier de paramétrage vierge'!A182&Bénéficiaires!M19","v":"BENEF_10_DATE_NAISSANCE="}]
[{"$f":"'Fichier de paramétrage vierge'!A183&Bénéficiaires!M20","v":"BENEF_10_RANG_NAISSANCE="}]
[{"$f":"'Fichier de paramétrage vierge'!A184&Bénéficiaires!M15","v":"BENEF_10_NOM="}]
[{"$f":"'Fichier de paramétrage vierge'!A185&Bénéficiaires!M16","v":"BENEF_10_PRENOM="}]
[{"$f":"'Fichier de paramétrage vierge'!A186&Bénéficiaires!M9","v":"BENEF_10_NIR="}]
[{"$f":"'Fichier de paramétrage vierge'!A187&Bénéficiaires!M10","v":"BENEF_10_CLE_NIR="}]
[{"$f":"'Fichier de paramétrage vierge'!A188&Bénéficiaires!M6","v":"BENEF_10_AMC_NUM_AMC="}]
[{"$f":"'Fichier de paramétrage vierge'!A189&Bénéficiaires!M14","v":"BENEF_10_NUM_ADHERENT="}]
[{"$f":"'Fichier de paramétrage vierge'!A190&Bénéficiaires!M7","v":"BENEF_10_AMC_TYPE_CONV="}]
[{"$f":"'Fichier de paramétrage vierge'!A191&Bénéficiaires!M8","v":"BENEF_10_AMC_CSR="}]
[{"$f":"'Fichier de paramétrage vierge'!A192&Bénéficiaires!M21","v":"BENEF_10_DATE_DEB_DROITS="}]
[{"$f":"'Fichier de paramétrage vierge'!A193&Bénéficiaires!M22","v":"BENEF_10_DATE_RAD="}]
[]
[{"$f":"'Fichier de paramétrage vierge'!A195","v":"****** Bénéficiaire avec une date de début de contrat postérieure à la date d’admission ******"}]
[{"$f":"'Fichier de paramétrage vierge'!A196&Bénéficiaires!N9","v":"ODR_11_NIR="}]
[{"$f":"'Fichier de paramétrage vierge'!A197&Bénéficiaires!N10","v":"ODR_11_CLE_NIR="}]
[{"$f":"'Fichier de paramétrage vierge'!A198&Bénéficiaires!N11","v":"ODR_11_CODE_REGIME_AMO="}]
[{"$f":"'Fichier de paramétrage vierge'!A199&Bénéficiaires!N12","v":"ODR_11_CODE_CAISSE_AMO="}]
[{"$f":"'Fichier de paramétrage vierge'!A200&Bénéficiaires!N13","v":"ODR_11_CODE_CENTRE_AMO="}]
[{"$f":"'Fichier de paramétrage vierge'!A201&Bénéficiaires!N19","v":"BENEF_11_DATE_NAISSANCE="}]
[{"$f":"'Fichier de paramétrage vierge'!A202&Bénéficiaires!N20","v":"BENEF_11_RANG_NAISSANCE="}]
[{"$f":"'Fichier de paramétrage vierge'!A203&Bénéficiaires!N15","v":"BENEF_11_NOM="}]
[{"$f":"'Fichier de paramétrage vierge'!A204&Bénéficiaires!N16","v":"BENEF_11_PRENOM="}]
[{"$f":"'Fichier de paramétrage vierge'!A205&Bénéficiaires!N9","v":"BENEF_11_NIR="}]
[{"$f":"'Fichier de paramétrage vierge'!A206&Bénéficiaires!N10","v":"BENEF_11_CLE_NIR="}]
[{"$f":"'Fichier de paramétrage vierge'!A207&Bénéficiaires!N6","v":"BENEF_11_AMC_NUM_AMC="}]
[{"$f":"'Fichier de paramétrage vierge'!A208&Bénéficiaires!N14","v":"BENEF_11_NUM_ADHERENT="}]
[{"$f":"'Fichier de paramétrage vierge'!A209&Bénéficiaires!N7","v":"BENEF_11_AMC_TYPE_CONV="}]
[{"$f":"'Fichier de paramétrage vierge'!A210&Bénéficiaires!N8","v":"BENEF_11_AMC_CSR="}]
[{"$f":"'Fichier de paramétrage vierge'!A211&Bénéficiaires!N21","v":"BENEF_11_DATE_DEB_DROITS="}]
[{"$f":"'Fichier de paramétrage vierge'!A212&Bénéficiaires!N22","v":"BENEF_11_DATE_RAD="}]
[]
[{"$f":"'Fichier de paramétrage vierge'!A214","v":"****** SCÉNARIO ACE *****"}]
[]
[{"$f":"'Fichier de paramétrage vierge'!A216","v":"****** Bénéficiaire du scénario A001 avec des droits ouverts et bénéficie d’un contrat responsable ******"}]
[{"$f":"'Fichier de paramétrage vierge'!A217&Bénéficiaires!D32","v":"ODR_A001_NIR="}]
[{"$f":"'Fichier de paramétrage vierge'!A218&Bénéficiaires!D33","v":"ODR_A001_CLE_NIR="}]
[{"$f":"'Fichier de paramétrage vierge'!A219&Bénéficiaires!D34","v":"ODR_A001_CODE_REGIME_AMO="}]
[{"$f":"'Fichier de paramétrage vierge'!A220&Bénéficiaires!D35","v":"ODR_A001_CODE_CAISSE_AMO="}]
[{"$f":"'Fichier de paramétrage vierge'!A221&Bénéficiaires!D36","v":"ODR_A001_CODE_CENTRE_AMO="}]
[{"$f":"'Fichier de paramétrage vierge'!A222&Bénéficiaires!D42","v":"BENEF_A001_DATE_NAISSANCE="}]
[{"$f":"'Fichier de paramétrage vierge'!A223&Bénéficiaires!D43","v":"BENEF_A001_RANG_NAISSANCE="}]
[{"$f":"'Fichier de paramétrage vierge'!A224&Bénéficiaires!D38","v":"BENEF_A001_NOM="}]
[{"$f":"'Fichier de paramétrage vierge'!A225&Bénéficiaires!D39","v":"BENEF_A001_PRENOM="}]
[{"$f":"'Fichier de paramétrage vierge'!A226&Bénéficiaires!D40","v":"BENEF_A001_NIR="}]
[{"$f":"'Fichier de paramétrage vierge'!A227&Bénéficiaires!D41","v":"BENEF_A001_CLE_NIR="}]
[{"$f":"'Fichier de paramétrage vierge'!A228&Bénéficiaires!D29","v":"BENEF_A001_AMC_NUM_AMC="}]
[{"$f":"'Fichier de paramétrage vierge'!A229&Bénéficiaires!D37","v":"BENEF_A001_NUM_ADHERENT="}]
[{"$f":"'Fichier de paramétrage vierge'!A230&Bénéficiaires!D30","v":"BENEF_A001_AMC_TYPE_CONV="}]
[{"$f":"'Fichier de paramétrage vierge'!A231&Bénéficiaires!D31","v":"BENEF_A001_AMC_CSR="}]
[{"$f":"'Fichier de paramétrage vierge'!A232&Bénéficiaires!D44","v":"BENEF_A001_DATE_DEB_DROITS="}]
[{"$f":"'Fichier de paramétrage vierge'!A233&Bénéficiaires!D45","v":"BENEF_A001_DATE_RAD="}]
[{"$f":"'Fichier de paramétrage vierge'!A234","v":"**Date d'admission du scénario A001 à renseigner au format AAAA-MM-JJ et qui doit être inférieur ou égale à la date du jour**"}]
[{"$f":"'Fichier de paramétrage vierge'!A235&Bénéficiaires!D46","v":"DATE_ADMISSION_A001="}]
[]
[{"$f":"'Fichier de paramétrage vierge'!A237","v":"****** Bénéficiaire du scénario A002 avec des droits ouverts et bénéficie d’un contrat responsable ******"}]
[{"$f":"'Fichier de paramétrage vierge'!A238&Bénéficiaires!E32","v":"ODR_A002_NIR="}]
[{"$f":"'Fichier de paramétrage vierge'!A239&Bénéficiaires!E33","v":"ODR_A002_CLE_NIR="}]
[{"$f":"'Fichier de paramétrage vierge'!A240&Bénéficiaires!E34","v":"ODR_A002_CODE_REGIME_AMO="}]
[{"$f":"'Fichier de paramétrage vierge'!A241&Bénéficiaires!E35","v":"ODR_A002_CODE_CAISSE_AMO="}]
[{"$f":"'Fichier de paramétrage vierge'!A242&Bénéficiaires!E36","v":"ODR_A002_CODE_CENTRE_AMO="}]
[{"$f":"'Fichier de paramétrage vierge'!A243&Bénéficiaires!E42","v":"BENEF_A002_DATE_NAISSANCE="}]
[{"$f":"'Fichier de paramétrage vierge'!A244&Bénéficiaires!E43","v":"BENEF_A002_RANG_NAISSANCE="}]
[{"$f":"'Fichier de paramétrage vierge'!A245&Bénéficiaires!E38","v":"BENEF_A002_NOM="}]
[{"$f":"'Fichier de paramétrage vierge'!A246&Bénéficiaires!E39","v":"BENEF_A002_PRENOM="}]
[{"$f":"'Fichier de paramétrage vierge'!A247&Bénéficiaires!E40","v":"BENEF_A002_NIR="}]
[{"$f":"'Fichier de paramétrage vierge'!A248&Bénéficiaires!E41","v":"BENEF_A002_CLE_NIR="}]
[{"$f":"'Fichier de paramétrage vierge'!A249&Bénéficiaires!E29","v":"BENEF_A002_AMC_NUM_AMC="}]
[{"$f":"'Fichier de paramétrage vierge'!A250&Bénéficiaires!E37","v":"BENEF_A002_NUM_ADHERENT="}]
[{"$f":"'Fichier de paramétrage vierge'!A251&Bénéficiaires!E30","v":"BENEF_A002_AMC_TYPE_CONV="}]
[{"$f":"'Fichier de paramétrage vierge'!A252&Bénéficiaires!E31","v":"BENEF_A002_AMC_CSR="}]
[{"$f":"'Fichier de paramétrage vierge'!A253&Bénéficiaires!E44","v":"BENEF_A002_DATE_DEB_DROITS="}]
[{"$f":"'Fichier de paramétrage vierge'!A254&Bénéficiaires!E45","v":"BENEF_A002_DATE_RAD="}]
[{"$f":"'Fichier de paramétrage vierge'!A255","v":"**Date d'admission du scénario A002 à renseigner au format AAAA-MM-JJ et qui doit être inférieur ou égale à la date du jour**"}]
[{"$f":"'Fichier de paramétrage vierge'!A256&Bénéficiaires!E46","v":"DATE_ADMISSION_A002="}]
[]
[{"$f":"'Fichier de paramétrage vierge'!A258","v":"****** Bénéficiaire du scénario A003 avec des droits ouverts et bénéficie d’un contrat responsable ******"}]
[{"$f":"'Fichier de paramétrage vierge'!A259&Bénéficiaires!F32","v":"ODR_A003_NIR="}]
[{"$f":"'Fichier de paramétrage vierge'!A260&Bénéficiaires!F33","v":"ODR_A003_CLE_NIR="}]
[{"$f":"'Fichier de paramétrage vierge'!A261&Bénéficiaires!F34","v":"ODR_A003_CODE_REGIME_AMO="}]
[{"$f":"'Fichier de paramétrage vierge'!A262&Bénéficiaires!F35","v":"ODR_A003_CODE_CAISSE_AMO="}]
[{"$f":"'Fichier de paramétrage vierge'!A263&Bénéficiaires!F36","v":"ODR_A003_CODE_CENTRE_AMO="}]
[{"$f":"'Fichier de paramétrage vierge'!A264&Bénéficiaires!F42","v":"BENEF_A003_DATE_NAISSANCE="}]
[{"$f":"'Fichier de paramétrage vierge'!A265&Bénéficiaires!F43","v":"BENEF_A003_RANG_NAISSANCE="}]
[{"$f":"'Fichier de paramétrage vierge'!A266&Bénéficiaires!F38","v":"BENEF_A003_NOM="}]
[{"$f":"'Fichier de paramétrage vierge'!A267&Bénéficiaires!F39","v":"BENEF_A003_PRENOM="}]
[{"$f":"'Fichier de paramétrage vierge'!A268&Bénéficiaires!F40","v":"BENEF_A003_NIR="}]
[{"$f":"'Fichier de paramétrage vierge'!A269&Bénéficiaires!F41","v":"BENEF_A003_CLE_NIR="}]
[{"$f":"'Fichier de paramétrage vierge'!A270&Bénéficiaires!F29","v":"BENEF_A003_AMC_NUM_AMC="}]
[{"$f":"'Fichier de paramétrage vierge'!A271&Bénéficiaires!F37","v":"BENEF_A003_NUM_ADHERENT="}]
[{"$f":"'Fichier de paramétrage vierge'!A272&Bénéficiaires!F30","v":"BENEF_A003_AMC_TYPE_CONV="}]
[{"$f":"'Fichier de paramétrage vierge'!A273&Bénéficiaires!F31","v":"BENEF_A003_AMC_CSR="}]
[{"$f":"'Fichier de paramétrage vierge'!A274&Bénéficiaires!F44","v":"BENEF_A003_DATE_DEB_DROITS="}]
[{"$f":"'Fichier de paramétrage vierge'!A275&Bénéficiaires!F45","v":"BENEF_A003_DATE_RAD="}]
[{"$f":"'Fichier de paramétrage vierge'!A276","v":"**Date d'admission du scénario A003 à renseigner au format AAAA-MM-JJ et qui doit être inférieur ou égale à la date du jour**"}]
[{"$f":"'Fichier de paramétrage vierge'!A277&Bénéficiaires!F46","v":"DATE_ADMISSION_A003="}]
[]
[{"$f":"'Fichier de paramétrage vierge'!A279","v":"****** Bénéficiaire du scénario A004 avec des droits ouverts et bénéficie d’un contrat responsable ******"}]
[{"$f":"'Fichier de paramétrage vierge'!A280&Bénéficiaires!G32","v":"ODR_A004_NIR="}]
[{"$f":"'Fichier de paramétrage vierge'!A281&Bénéficiaires!G33","v":"ODR_A004_CLE_NIR="}]
[{"$f":"'Fichier de paramétrage vierge'!A282&Bénéficiaires!G34","v":"ODR_A004_CODE_REGIME_AMO="}]
[{"$f":"'Fichier de paramétrage vierge'!A283&Bénéficiaires!G35","v":"ODR_A004_CODE_CAISSE_AMO="}]
[{"$f":"'Fichier de paramétrage vierge'!A284&Bénéficiaires!G36","v":"ODR_A004_CODE_CENTRE_AMO="}]
[{"$f":"'Fichier de paramétrage vierge'!A285&Bénéficiaires!G42","v":"BENEF_A004_DATE_NAISSANCE="}]
[{"$f":"'Fichier de paramétrage vierge'!A286&Bénéficiaires!G43","v":"BENEF_A004_RANG_NAISSANCE="}]
[{"$f":"'Fichier de paramétrage vierge'!A287&Bénéficiaires!G38","v":"BENEF_A004_NOM="}]
[{"$f":"'Fichier de paramétrage vierge'!A288&Bénéficiaires!G39","v":"BENEF_A004_PRENOM="}]
[{"$f":"'Fichier de paramétrage vierge'!A289&Bénéficiaires!G40","v":"BENEF_A004_NIR="}]
[{"$f":"'Fichier de paramétrage vierge'!A290&Bénéficiaires!G41","v":"BENEF_A004_CLE_NIR="}]
[{"$f":"'Fichier de paramétrage vierge'!A291&Bénéficiaires!G29","v":"BENEF_A004_AMC_NUM_AMC="}]
[{"$f":"'Fichier de paramétrage vierge'!A292&Bénéficiaires!G37","v":"BENEF_A004_NUM_ADHERENT="}]
[{"$f":"'Fichier de paramétrage vierge'!A293&Bénéficiaires!G30","v":"BENEF_A004_AMC_TYPE_CONV="}]
[{"$f":"'Fichier de paramétrage vierge'!A294&Bénéficiaires!G31","v":"BENEF_A004_AMC_CSR="}]
[{"$f":"'Fichier de paramétrage vierge'!A295&Bénéficiaires!G44","v":"BENEF_A004_DATE_DEB_DROITS="}]
[{"$f":"'Fichier de paramétrage vierge'!A296&Bénéficiaires!G45","v":"BENEF_A004_DATE_RAD="}]
[{"$f":"'Fichier de paramétrage vierge'!A297","v":"**Date d'admission du scénario A004 à renseigner au format AAAA-MM-JJ et qui doit être inférieur ou égale à la date du jour**"}]
[{"$f":"'Fichier de paramétrage vierge'!A298&Bénéficiaires!G46","v":"DATE_ADMISSION_A004="}]
[]
[{"$f":"'Fichier de paramétrage vierge'!A300","v":"****** Bénéficiaire du scénario A005 avec des droits ouverts et bénéficie d’un contrat responsable ******"}]
[{"$f":"'Fichier de paramétrage vierge'!A301&Bénéficiaires!H32","v":"ODR_A005_NIR="}]
[{"$f":"'Fichier de paramétrage vierge'!A302&Bénéficiaires!H33","v":"ODR_A005_CLE_NIR="}]
[{"$f":"'Fichier de paramétrage vierge'!A303&Bénéficiaires!H34","v":"ODR_A005_CODE_REGIME_AMO="}]
[{"$f":"'Fichier de paramétrage vierge'!A304&Bénéficiaires!H35","v":"ODR_A005_CODE_CAISSE_AMO="}]
[{"$f":"'Fichier de paramétrage vierge'!A305&Bénéficiaires!H36","v":"ODR_A005_CODE_CENTRE_AMO="}]
[{"$f":"'Fichier de paramétrage vierge'!A306&Bénéficiaires!H42","v":"BENEF_A005_DATE_NAISSANCE="}]
[{"$f":"'Fichier de paramétrage vierge'!A307&Bénéficiaires!H43","v":"BENEF_A005_RANG_NAISSANCE="}]
[{"$f":"'Fichier de paramétrage vierge'!A308&Bénéficiaires!H38","v":"BENEF_A005_NOM="}]
[{"$f":"'Fichier de paramétrage vierge'!A309&Bénéficiaires!H39","v":"BENEF_A005_PRENOM="}]
[{"$f":"'Fichier de paramétrage vierge'!A310&Bénéficiaires!H40","v":"BENEF_A005_NIR="}]
[{"$f":"'Fichier de paramétrage vierge'!A311&Bénéficiaires!H41","v":"BENEF_A005_CLE_NIR="}]
[{"$f":"'Fichier de paramétrage vierge'!A312&Bénéficiaires!H29","v":"BENEF_A005_AMC_NUM_AMC="}]
[{"$f":"'Fichier de paramétrage vierge'!A313&Bénéficiaires!H37","v":"BENEF_A005_NUM_ADHERENT="}]
[{"$f":"'Fichier de paramétrage vierge'!A314&Bénéficiaires!H30","v":"BENEF_A005_AMC_TYPE_CONV="}]
[{"$f":"'Fichier de paramétrage vierge'!A315&Bénéficiaires!H31","v":"BENEF_A005_AMC_CSR="}]
[{"$f":"'Fichier de paramétrage vierge'!A316&Bénéficiaires!H44","v":"BENEF_A005_DATE_DEB_DROITS="}]
[{"$f":"'Fichier de paramétrage vierge'!A317&Bénéficiaires!H45","v":"BENEF_A005_DATE_RAD="}]
[{"$f":"'Fichier de paramétrage vierge'!A318","v":"**Date d'admission du scénario A005 à renseigner au format AAAA-MM-JJ et qui doit être inférieur ou égale à la date du jour**"}]
[{"$f":"'Fichier de paramétrage vierge'!A319&Bénéficiaires!H46","v":"DATE_ADMISSION_A005="}]
[]
[{"$f":"'Fichier de paramétrage vierge'!A321","v":"****** Bénéficiaire du scénario A006 avec des droits ouverts et bénéficie d’un contrat responsable ******"}]
[{"$f":"'Fichier de paramétrage vierge'!A322&Bénéficiaires!I32","v":"ODR_A006_NIR="}]
[{"$f":"'Fichier de paramétrage vierge'!A323&Bénéficiaires!I33","v":"ODR_A006_CLE_NIR="}]
[{"$f":"'Fichier de paramétrage vierge'!A324&Bénéficiaires!I34","v":"ODR_A006_CODE_REGIME_AMO="}]
[{"$f":"'Fichier de paramétrage vierge'!A325&Bénéficiaires!I35","v":"ODR_A006_CODE_CAISSE_AMO="}]
[{"$f":"'Fichier de paramétrage vierge'!A326&Bénéficiaires!I36","v":"ODR_A006_CODE_CENTRE_AMO="}]
[{"$f":"'Fichier de paramétrage vierge'!A327&Bénéficiaires!I42","v":"BENEF_A006_DATE_NAISSANCE="}]
[{"$f":"'Fichier de paramétrage vierge'!A328&Bénéficiaires!I43","v":"BENEF_A006_RANG_NAISSANCE="}]
[{"$f":"'Fichier de paramétrage vierge'!A329&Bénéficiaires!I38","v":"BENEF_A006_NOM="}]
[{"$f":"'Fichier de paramétrage vierge'!A330&Bénéficiaires!I39","v":"BENEF_A006_PRENOM="}]
[{"$f":"'Fichier de paramétrage vierge'!A331&Bénéficiaires!I40","v":"BENEF_A006_NIR="}]
[{"$f":"'Fichier de paramétrage vierge'!A332&Bénéficiaires!I41","v":"BENEF_A006_CLE_NIR="}]
[{"$f":"'Fichier de paramétrage vierge'!A333&Bénéficiaires!I29","v":"BENEF_A006_AMC_NUM_AMC="}]
[{"$f":"'Fichier de paramétrage vierge'!A334&Bénéficiaires!I37","v":"BENEF_A006_NUM_ADHERENT="}]
[{"$f":"'Fichier de paramétrage vierge'!A335&Bénéficiaires!I30","v":"BENEF_A006_AMC_TYPE_CONV="}]
[{"$f":"'Fichier de paramétrage vierge'!A336&Bénéficiaires!I31","v":"BENEF_A006_AMC_CSR="}]
[{"$f":"'Fichier de paramétrage vierge'!A337&Bénéficiaires!I44","v":"BENEF_A006_DATE_DEB_DROITS="}]
[{"$f":"'Fichier de paramétrage vierge'!A338&Bénéficiaires!I45","v":"BENEF_A006_DATE_RAD="}]
[{"$f":"'Fichier de paramétrage vierge'!A339","v":"**Date d'admission du scénario A006 à renseigner au format AAAA-MM-JJ et qui doit être inférieur ou égale de moins 30 jours par rapport la date du jour**"}]
[{"$f":"'Fichier de paramétrage vierge'!A340&Bénéficiaires!I46","v":"DATE_ADMISSION_A006="}]
[]
[{"$f":"'Fichier de paramétrage vierge'!A342","v":"****** Bénéficiaire du scénario A007 avec des droits ouverts sur une partie de la période et bénéficie d’un contrat responsable ******"}]
[{"$f":"'Fichier de paramétrage vierge'!A343&Bénéficiaires!J32","v":"ODR_A007_NIR="}]
[{"$f":"'Fichier de paramétrage vierge'!A344&Bénéficiaires!J33","v":"ODR_A007_CLE_NIR="}]
[{"$f":"'Fichier de paramétrage vierge'!A345&Bénéficiaires!J34","v":"ODR_A007_CODE_REGIME_AMO="}]
[{"$f":"'Fichier de paramétrage vierge'!A346&Bénéficiaires!J35","v":"ODR_A007_CODE_CAISSE_AMO="}]
[{"$f":"'Fichier de paramétrage vierge'!A347&Bénéficiaires!J36","v":"ODR_A007_CODE_CENTRE_AMO="}]
[{"$f":"'Fichier de paramétrage vierge'!A348&Bénéficiaires!J42","v":"BENEF_A007_DATE_NAISSANCE="}]
[{"$f":"'Fichier de paramétrage vierge'!A349&Bénéficiaires!J43","v":"BENEF_A007_RANG_NAISSANCE="}]
[{"$f":"'Fichier de paramétrage vierge'!A350&Bénéficiaires!J38","v":"BENEF_A007_NOM="}]
[{"$f":"'Fichier de paramétrage vierge'!A351&Bénéficiaires!J39","v":"BENEF_A007_PRENOM="}]
[{"$f":"'Fichier de paramétrage vierge'!A352&Bénéficiaires!J40","v":"BENEF_A007_NIR="}]
[{"$f":"'Fichier de paramétrage vierge'!A353&Bénéficiaires!J41","v":"BENEF_A007_CLE_NIR="}]
[{"$f":"'Fichier de paramétrage vierge'!A354&Bénéficiaires!J29","v":"BENEF_A007_AMC_NUM_AMC="}]
[{"$f":"'Fichier de paramétrage vierge'!A355&Bénéficiaires!J37","v":"BENEF_A007_NUM_ADHERENT="}]
[{"$f":"'Fichier de paramétrage vierge'!A356&Bénéficiaires!J30","v":"BENEF_A007_AMC_TYPE_CONV="}]
[{"$f":"'Fichier de paramétrage vierge'!A357&Bénéficiaires!J31","v":"BENEF_A007_AMC_CSR="}]
[{"$f":"'Fichier de paramétrage vierge'!A358&Bénéficiaires!J44","v":"BENEF_A007_DATE_DEB_DROITS="}]
[{"$f":"'Fichier de paramétrage vierge'!A359&Bénéficiaires!J45","v":"BENEF_A007_DATE_RAD="}]
[{"$f":"'Fichier de paramétrage vierge'!A360","v":"**Date d'admission du scénario A007 à renseigner au format AAAA-MM-JJ et qui doit être inférieur ou égale de moins 30 jours par rapport la date du jour**"}]
[{"$f":"'Fichier de paramétrage vierge'!A361&Bénéficiaires!J46","v":"DATE_ADMISSION_A007="}]
[]
[{"$f":"'Fichier de paramétrage vierge'!A363","v":"****** Bénéficiaire du scénario A008 avec des droits ouverts et bénéficie d’un contrat responsable ******"}]
[{"$f":"'Fichier de paramétrage vierge'!A364&Bénéficiaires!K32","v":"ODR_A008_NIR="}]
[{"$f":"'Fichier de paramétrage vierge'!A365&Bénéficiaires!K33","v":"ODR_A008_CLE_NIR="}]
[{"$f":"'Fichier de paramétrage vierge'!A366&Bénéficiaires!K34","v":"ODR_A008_CODE_REGIME_AMO="}]
[{"$f":"'Fichier de paramétrage vierge'!A367&Bénéficiaires!K35","v":"ODR_A008_CODE_CAISSE_AMO="}]
[{"$f":"'Fichier de paramétrage vierge'!A368&Bénéficiaires!K36","v":"ODR_A008_CODE_CENTRE_AMO="}]
[{"$f":"'Fichier de paramétrage vierge'!A369&Bénéficiaires!K42","v":"BENEF_A008_DATE_NAISSANCE="}]
[{"$f":"'Fichier de paramétrage vierge'!A370&Bénéficiaires!K43","v":"BENEF_A008_RANG_NAISSANCE="}]
[{"$f":"'Fichier de paramétrage vierge'!A371&Bénéficiaires!K38","v":"BENEF_A008_NOM="}]
[{"$f":"'Fichier de paramétrage vierge'!A372&Bénéficiaires!K39","v":"BENEF_A008_PRENOM="}]
[{"$f":"'Fichier de paramétrage vierge'!A373&Bénéficiaires!K40","v":"BENEF_A008_NIR="}]
[{"$f":"'Fichier de paramétrage vierge'!A374&Bénéficiaires!K41","v":"BENEF_A008_CLE_NIR="}]
[{"$f":"'Fichier de paramétrage vierge'!A375&Bénéficiaires!K29","v":"BENEF_A008_AMC_NUM_AMC="}]
[{"$f":"'Fichier de paramétrage vierge'!A376&Bénéficiaires!K37","v":"BENEF_A008_NUM_ADHERENT="}]
[{"$f":"'Fichier de paramétrage vierge'!A377&Bénéficiaires!K30","v":"BENEF_A008_AMC_TYPE_CONV="}]
[{"$f":"'Fichier de paramétrage vierge'!A378&Bénéficiaires!K31","v":"BENEF_A008_AMC_CSR="}]
[{"$f":"'Fichier de paramétrage vierge'!A379&Bénéficiaires!K44","v":"BENEF_A008_DATE_DEB_DROITS="}]
[{"$f":"'Fichier de paramétrage vierge'!A380&Bénéficiaires!K45","v":"BENEF_A008_DATE_RAD="}]
[{"$f":"'Fichier de paramétrage vierge'!A381","v":"**Date d'admission du scénario A008 à renseigner au format AAAA-MM-JJ et qui doit être inférieur ou égale à la date du jour**"}]
[{"$f":"'Fichier de paramétrage vierge'!A382&Bénéficiaires!K46","v":"DATE_ADMISSION_A008="}]
[]
[{"$f":"'Fichier de paramétrage vierge'!A384","v":"****** Bénéficiaire du scénario A009 avec des droits ouverts et bénéficie d’un contrat responsable ******"}]
[{"$f":"'Fichier de paramétrage vierge'!A385&Bénéficiaires!L32","v":"ODR_A009_NIR="}]
[{"$f":"'Fichier de paramétrage vierge'!A386&Bénéficiaires!L33","v":"ODR_A009_CLE_NIR="}]
[{"$f":"'Fichier de paramétrage vierge'!A387&Bénéficiaires!L34","v":"ODR_A009_CODE_REGIME_AMO="}]
[{"$f":"'Fichier de paramétrage vierge'!A388&Bénéficiaires!L35","v":"ODR_A009_CODE_CAISSE_AMO="}]
[{"$f":"'Fichier de paramétrage vierge'!A389&Bénéficiaires!L36","v":"ODR_A009_CODE_CENTRE_AMO="}]
[{"$f":"'Fichier de paramétrage vierge'!A390&Bénéficiaires!L42","v":"BENEF_A009_DATE_NAISSANCE="}]
[{"$f":"'Fichier de paramétrage vierge'!A391&Bénéficiaires!L43","v":"BENEF_A009_RANG_NAISSANCE="}]
[{"$f":"'Fichier de paramétrage vierge'!A392&Bénéficiaires!L38","v":"BENEF_A009_NOM="}]
[{"$f":"'Fichier de paramétrage vierge'!A393&Bénéficiaires!L39","v":"BENEF_A009_PRENOM="}]
[{"$f":"'Fichier de paramétrage vierge'!A394&Bénéficiaires!L40","v":"BENEF_A009_NIR="}]
[{"$f":"'Fichier de paramétrage vierge'!A395&Bénéficiaires!L41","v":"BENEF_A009_CLE_NIR="}]
[{"$f":"'Fichier de paramétrage vierge'!A396&Bénéficiaires!L29","v":"BENEF_A009_AMC_NUM_AMC="}]
[{"$f":"'Fichier de paramétrage vierge'!A397&Bénéficiaires!L37","v":"BENEF_A009_NUM_ADHERENT="}]
[{"$f":"'Fichier de paramétrage vierge'!A398&Bénéficiaires!L30","v":"BENEF_A009_AMC_TYPE_CONV="}]
[{"$f":"'Fichier de paramétrage vierge'!A399&Bénéficiaires!L31","v":"BENEF_A009_AMC_CSR="}]
[{"$f":"'Fichier de paramétrage vierge'!A400&Bénéficiaires!L44","v":"BENEF_A009_DATE_DEB_DROITS="}]
[{"$f":"'Fichier de paramétrage vierge'!A401&Bénéficiaires!L45","v":"BENEF_A009_DATE_RAD="}]
[{"$f":"'Fichier de paramétrage vierge'!A402","v":"**Date d'admission du scénario A009 à renseigner au format AAAA-MM-JJ et qui doit être inférieur ou égale de moins 30 jours par rapport la date du jour**"}]
[{"$f":"'Fichier de paramétrage vierge'!A403&Bénéficiaires!L46","v":"DATE_ADMISSION_A009="}]
[]
[{"$f":"'Fichier de paramétrage vierge'!A405","v":"****** Bénéficiaire du scénario A010 avec des droits ouverts et bénéficie d’un contrat responsable ******"}]
[{"$f":"'Fichier de paramétrage vierge'!A406&Bénéficiaires!M32","v":"ODR_A010_NIR="}]
[{"$f":"'Fichier de paramétrage vierge'!A407&Bénéficiaires!M33","v":"ODR_A010_CLE_NIR="}]
[{"$f":"'Fichier de paramétrage vierge'!A408&Bénéficiaires!M34","v":"ODR_A010_CODE_REGIME_AMO="}]
[{"$f":"'Fichier de paramétrage vierge'!A409&Bénéficiaires!M35","v":"ODR_A010_CODE_CAISSE_AMO="}]
[{"$f":"'Fichier de paramétrage vierge'!A410&Bénéficiaires!M36","v":"ODR_A010_CODE_CENTRE_AMO="}]
[{"$f":"'Fichier de paramétrage vierge'!A411&Bénéficiaires!M42","v":"BENEF_A010_DATE_NAISSANCE="}]
[{"$f":"'Fichier de paramétrage vierge'!A412&Bénéficiaires!M43","v":"BENEF_A010_RANG_NAISSANCE="}]
[{"$f":"'Fichier de paramétrage vierge'!A413&Bénéficiaires!M38","v":"BENEF_A010_NOM="}]
[{"$f":"'Fichier de paramétrage vierge'!A414&Bénéficiaires!M39","v":"BENEF_A010_PRENOM="}]
[{"$f":"'Fichier de paramétrage vierge'!A415&Bénéficiaires!M40","v":"BENEF_A010_NIR="}]
[{"$f":"'Fichier de paramétrage vierge'!A416&Bénéficiaires!M41","v":"BENEF_A010_CLE_NIR="}]
[{"$f":"'Fichier de paramétrage vierge'!A417&Bénéficiaires!M29","v":"BENEF_A010_AMC_NUM_AMC="}]
[{"$f":"'Fichier de paramétrage vierge'!A418&Bénéficiaires!M37","v":"BENEF_A010_NUM_ADHERENT="}]
[{"$f":"'Fichier de paramétrage vierge'!A419&Bénéficiaires!M30","v":"BENEF_A010_AMC_TYPE_CONV="}]
[{"$f":"'Fichier de paramétrage vierge'!A420&Bénéficiaires!M31","v":"BENEF_A010_AMC_CSR="}]
[{"$f":"'Fichier de paramétrage vierge'!A421&Bénéficiaires!M44","v":"BENEF_A010_DATE_DEB_DROITS="}]
[{"$f":"'Fichier de paramétrage vierge'!A422&Bénéficiaires!M45","v":"BENEF_A010_DATE_RAD="}]
[{"$f":"'Fichier de paramétrage vierge'!A423","v":"**Date d'admission du scénario A010 à renseigner au format AAAA-MM-JJ et qui doit être inférieur ou égale de moins 30 jours par rapport la date du jour**"}]
[{"$f":"'Fichier de paramétrage vierge'!A424&Bénéficiaires!M46","v":"DATE_ADMISSION_A010="}]
[]
[{"$f":"'Fichier de paramétrage vierge'!A426","v":"****** Bénéficiaire du scénario A011 avec des droits ouverts et bénéficiant d’un contrat non responsable ******"}]
[{"$f":"'Fichier de paramétrage vierge'!A427&Bénéficiaires!N32","v":"ODR_A011_NIR="}]
[{"$f":"'Fichier de paramétrage vierge'!A428&Bénéficiaires!N33","v":"ODR_A011_CLE_NIR="}]
[{"$f":"'Fichier de paramétrage vierge'!A429&Bénéficiaires!N34","v":"ODR_A011_CODE_REGIME_AMO="}]
[{"$f":"'Fichier de paramétrage vierge'!A430&Bénéficiaires!N35","v":"ODR_A011_CODE_CAISSE_AMO="}]
[{"$f":"'Fichier de paramétrage vierge'!A431&Bénéficiaires!N36","v":"ODR_A011_CODE_CENTRE_AMO="}]
[{"$f":"'Fichier de paramétrage vierge'!A432&Bénéficiaires!N42","v":"BENEF_A011_DATE_NAISSANCE="}]
[{"$f":"'Fichier de paramétrage vierge'!A433&Bénéficiaires!N43","v":"BENEF_A011_RANG_NAISSANCE="}]
[{"$f":"'Fichier de paramétrage vierge'!A434&Bénéficiaires!N38","v":"BENEF_A011_NOM="}]
[{"$f":"'Fichier de paramétrage vierge'!A435&Bénéficiaires!N39","v":"BENEF_A011_PRENOM="}]
[{"$f":"'Fichier de paramétrage vierge'!A436&Bénéficiaires!N40","v":"BENEF_A011_NIR="}]
[{"$f":"'Fichier de paramétrage vierge'!A437&Bénéficiaires!N41","v":"BENEF_A011_CLE_NIR="}]
[{"$f":"'Fichier de paramétrage vierge'!A438&Bénéficiaires!N29","v":"BENEF_A011_AMC_NUM_AMC="}]
[{"$f":"'Fichier de paramétrage vierge'!A439&Bénéficiaires!N37","v":"BENEF_A011_NUM_ADHERENT="}]
[{"$f":"'Fichier de paramétrage vierge'!A440&Bénéficiaires!N30","v":"BENEF_A011_AMC_TYPE_CONV="}]
[{"$f":"'Fichier de paramétrage vierge'!A441&Bénéficiaires!N31","v":"BENEF_A011_AMC_CSR="}]
[{"$f":"'Fichier de paramétrage vierge'!A442&Bénéficiaires!N44","v":"BENEF_A011_DATE_DEB_DROITS="}]
[{"$f":"'Fichier de paramétrage vierge'!A443&Bénéficiaires!N45","v":"BENEF_A011_DATE_RAD="}]
[{"$f":"'Fichier de paramétrage vierge'!A444","v":"**Date d'admission du scénario A011 à renseigner au format AAAA-MM-JJ et qui doit être inférieur ou égale à la date du jour**"}]
[{"$f":"'Fichier de paramétrage vierge'!A445&Bénéficiaires!N46","v":"DATE_ADMISSION_A011="}]
[]
[{"$f":"'Fichier de paramétrage vierge'!A447","v":"****** Bénéficiaire du scénario A012 avec des droits ouverts et bénéficiant d’un contrat non responsable ******"}]
[{"$f":"'Fichier de paramétrage vierge'!A448&Bénéficiaires!O32","v":"ODR_A012_NIR="}]
[{"$f":"'Fichier de paramétrage vierge'!A449&Bénéficiaires!O33","v":"ODR_A012_CLE_NIR="}]
[{"$f":"'Fichier de paramétrage vierge'!A450&Bénéficiaires!O34","v":"ODR_A012_CODE_REGIME_AMO="}]
[{"$f":"'Fichier de paramétrage vierge'!A451&Bénéficiaires!O35","v":"ODR_A012_CODE_CAISSE_AMO="}]
[{"$f":"'Fichier de paramétrage vierge'!A452&Bénéficiaires!O36","v":"ODR_A012_CODE_CENTRE_AMO="}]
[{"$f":"'Fichier de paramétrage vierge'!A453&Bénéficiaires!O42","v":"BENEF_A012_DATE_NAISSANCE="}]
[{"$f":"'Fichier de paramétrage vierge'!A454&Bénéficiaires!O43","v":"BENEF_A012_RANG_NAISSANCE="}]
[{"$f":"'Fichier de paramétrage vierge'!A455&Bénéficiaires!O38","v":"BENEF_A012_NOM="}]
[{"$f":"'Fichier de paramétrage vierge'!A456&Bénéficiaires!O39","v":"BENEF_A012_PRENOM="}]
[{"$f":"'Fichier de paramétrage vierge'!A457&Bénéficiaires!O40","v":"BENEF_A012_NIR="}]
[{"$f":"'Fichier de paramétrage vierge'!A458&Bénéficiaires!O41","v":"BENEF_A012_CLE_NIR="}]
[{"$f":"'Fichier de paramétrage vierge'!A459&Bénéficiaires!O29","v":"BENEF_A012_AMC_NUM_AMC="}]
[{"$f":"'Fichier de paramétrage vierge'!A460&Bénéficiaires!O37","v":"BENEF_A012_NUM_ADHERENT="}]
[{"$f":"'Fichier de paramétrage vierge'!A461&Bénéficiaires!O30","v":"BENEF_A012_AMC_TYPE_CONV="}]
[{"$f":"'Fichier de paramétrage vierge'!A462&Bénéficiaires!O31","v":"BENEF_A012_AMC_CSR="}]
[{"$f":"'Fichier de paramétrage vierge'!A463&Bénéficiaires!O44","v":"BENEF_A012_DATE_DEB_DROITS="}]
[{"$f":"'Fichier de paramétrage vierge'!A464&Bénéficiaires!O45","v":"BENEF_A012_DATE_RAD="}]
[{"$f":"'Fichier de paramétrage vierge'!A465","v":"**Date d'admission du scénario A012 à renseigner au format AAAA-MM-JJ et qui doit être inférieur ou égale à la date du jour**"}]
[{"$f":"'Fichier de paramétrage vierge'!A466&Bénéficiaires!O46","v":"DATE_ADMISSION_A012="}]
[]
[{"$f":"'Fichier de paramétrage vierge'!A468","v":"****** Bénéficiaire du scénario A013 avec des droits ouverts et bénéficie d’un contrat responsable ******"}]
[{"$f":"'Fichier de paramétrage vierge'!A469&Bénéficiaires!P32","v":"ODR_A013_NIR="}]
[{"$f":"'Fichier de paramétrage vierge'!A470&Bénéficiaires!P33","v":"ODR_A013_CLE_NIR="}]
[{"$f":"'Fichier de paramétrage vierge'!A471&Bénéficiaires!P34","v":"ODR_A013_CODE_REGIME_AMO="}]
[{"$f":"'Fichier de paramétrage vierge'!A472&Bénéficiaires!P35","v":"ODR_A013_CODE_CAISSE_AMO="}]
[{"$f":"'Fichier de paramétrage vierge'!A473&Bénéficiaires!P36","v":"ODR_A013_CODE_CENTRE_AMO="}]
[{"$f":"'Fichier de paramétrage vierge'!A474&Bénéficiaires!P42","v":"BENEF_A013_DATE_NAISSANCE="}]
[{"$f":"'Fichier de paramétrage vierge'!A475&Bénéficiaires!P43","v":"BENEF_A013_RANG_NAISSANCE="}]
[{"$f":"'Fichier de paramétrage vierge'!A476&Bénéficiaires!P38","v":"BENEF_A013_NOM="}]
[{"$f":"'Fichier de paramétrage vierge'!A477&Bénéficiaires!P39","v":"BENEF_A013_PRENOM="}]
[{"$f":"'Fichier de paramétrage vierge'!A478&Bénéficiaires!P40","v":"BENEF_A013_NIR="}]
[{"$f":"'Fichier de paramétrage vierge'!A479&Bénéficiaires!P41","v":"BENEF_A013_CLE_NIR="}]
[{"$f":"'Fichier de paramétrage vierge'!A480&Bénéficiaires!P29","v":"BENEF_A013_AMC_NUM_AMC="}]
[{"$f":"'Fichier de paramétrage vierge'!A481&Bénéficiaires!P37","v":"BENEF_A013_NUM_ADHERENT="}]
[{"$f":"'Fichier de paramétrage vierge'!A482&Bénéficiaires!P30","v":"BENEF_A013_AMC_TYPE_CONV="}]
[{"$f":"'Fichier de paramétrage vierge'!A483&Bénéficiaires!P31","v":"BENEF_A013_AMC_CSR="}]
[{"$f":"'Fichier de paramétrage vierge'!A484&Bénéficiaires!P44","v":"BENEF_A013_DATE_DEB_DROITS="}]
[{"$f":"'Fichier de paramétrage vierge'!A485&Bénéficiaires!P45","v":"BENEF_A013_DATE_RAD="}]
[{"$f":"'Fichier de paramétrage vierge'!A486","v":"**Date d'admission du scénario A013 à renseigner au format AAAA-MM-JJ et qui doit être inférieur ou égale à la date du jour**"}]
[{"$f":"'Fichier de paramétrage vierge'!A487&Bénéficiaires!P46","v":"DATE_ADMISSION_A013="}]
[]
[{"$f":"'Fichier de paramétrage vierge'!A489","v":"****** Bénéficiaire du scénario A014 avec des droits ouverts et bénéficie d’un contrat responsable ******"}]
[{"$f":"'Fichier de paramétrage vierge'!A490&Bénéficiaires!Q32","v":"ODR_A014_NIR="}]
[{"$f":"'Fichier de paramétrage vierge'!A491&Bénéficiaires!Q33","v":"ODR_A014_CLE_NIR="}]
[{"$f":"'Fichier de paramétrage vierge'!A492&Bénéficiaires!Q34","v":"ODR_A014_CODE_REGIME_AMO="}]
[{"$f":"'Fichier de paramétrage vierge'!A493&Bénéficiaires!Q35","v":"ODR_A014_CODE_CAISSE_AMO="}]
[{"$f":"'Fichier de paramétrage vierge'!A494&Bénéficiaires!Q36","v":"ODR_A014_CODE_CENTRE_AMO="}]
[{"$f":"'Fichier de paramétrage vierge'!A495&Bénéficiaires!Q42","v":"BENEF_A014_DATE_NAISSANCE="}]
[{"$f":"'Fichier de paramétrage vierge'!A496&Bénéficiaires!Q43","v":"BENEF_A014_RANG_NAISSANCE="}]
[{"$f":"'Fichier de paramétrage vierge'!A497&Bénéficiaires!Q38","v":"BENEF_A014_NOM="}]
[{"$f":"'Fichier de paramétrage vierge'!A498&Bénéficiaires!Q39","v":"BENEF_A014_PRENOM="}]
[{"$f":"'Fichier de paramétrage vierge'!A499&Bénéficiaires!Q40","v":"BENEF_A014_NIR="}]
[{"$f":"'Fichier de paramétrage vierge'!A500&Bénéficiaires!Q41","v":"BENEF_A014_CLE_NIR="}]
[{"$f":"'Fichier de paramétrage vierge'!A501&Bénéficiaires!Q29","v":"BENEF_A014_AMC_NUM_AMC="}]
[{"$f":"'Fichier de paramétrage vierge'!A502&Bénéficiaires!Q37","v":"BENEF_A014_NUM_ADHERENT="}]
[{"$f":"'Fichier de paramétrage vierge'!A503&Bénéficiaires!Q30","v":"BENEF_A014_AMC_TYPE_CONV="}]
[{"$f":"'Fichier de paramétrage vierge'!A504&Bénéficiaires!Q31","v":"BENEF_A014_AMC_CSR="}]
[{"$f":"'Fichier de paramétrage vierge'!A505&Bénéficiaires!Q44","v":"BENEF_A014_DATE_DEB_DROITS="}]
[{"$f":"'Fichier de paramétrage vierge'!A506&Bénéficiaires!Q45","v":"BENEF_A014_DATE_RAD="}]
[{"$f":"'Fichier de paramétrage vierge'!A507","v":"**Date d'admission du scénario A014 à renseigner au format AAAA-MM-JJ et qui doit être inférieur ou égale à la date du jour**"}]
[{"$f":"'Fichier de paramétrage vierge'!A508&Bénéficiaires!Q46","v":"DATE_ADMISSION_A014="}]
[]
[{"$f":"'Fichier de paramétrage vierge'!A510","v":"****** Bénéficiaire du scénario A015 avec des droits ouverts et bénéficie d’un contrat responsable ******"}]
[{"$f":"'Fichier de paramétrage vierge'!A511&Bénéficiaires!R32","v":"ODR_A015_NIR="}]
[{"$f":"'Fichier de paramétrage vierge'!A512&Bénéficiaires!R33","v":"ODR_A015_CLE_NIR="}]
[{"$f":"'Fichier de paramétrage vierge'!A513&Bénéficiaires!R34","v":"ODR_A015_CODE_REGIME_AMO="}]
[{"$f":"'Fichier de paramétrage vierge'!A514&Bénéficiaires!R35","v":"ODR_A015_CODE_CAISSE_AMO="}]
[{"$f":"'Fichier de paramétrage vierge'!A515&Bénéficiaires!R36","v":"ODR_A015_CODE_CENTRE_AMO="}]
[{"$f":"'Fichier de paramétrage vierge'!A516&Bénéficiaires!R42","v":"BENEF_A015_DATE_NAISSANCE="}]
[{"$f":"'Fichier de paramétrage vierge'!A517&Bénéficiaires!R43","v":"BENEF_A015_RANG_NAISSANCE="}]
[{"$f":"'Fichier de paramétrage vierge'!A518&Bénéficiaires!R38","v":"BENEF_A015_NOM="}]
[{"$f":"'Fichier de paramétrage vierge'!A519&Bénéficiaires!R39","v":"BENEF_A015_PRENOM="}]
[{"$f":"'Fichier de paramétrage vierge'!A520&Bénéficiaires!R40","v":"BENEF_A015_NIR="}]
[{"$f":"'Fichier de paramétrage vierge'!A521&Bénéficiaires!R41","v":"BENEF_A015_CLE_NIR="}]
[{"$f":"'Fichier de paramétrage vierge'!A522&Bénéficiaires!R29","v":"BENEF_A015_AMC_NUM_AMC="}]
[{"$f":"'Fichier de paramétrage vierge'!A523&Bénéficiaires!R37","v":"BENEF_A015_NUM_ADHERENT="}]
[{"$f":"'Fichier de paramétrage vierge'!A524&Bénéficiaires!R30","v":"BENEF_A015_AMC_TYPE_CONV="}]
[{"$f":"'Fichier de paramétrage vierge'!A525&Bénéficiaires!R31","v":"BENEF_A015_AMC_CSR="}]
[{"$f":"'Fichier de paramétrage vierge'!A526&Bénéficiaires!R44","v":"BENEF_A015_DATE_DEB_DROITS="}]
[{"$f":"'Fichier de paramétrage vierge'!A527&Bénéficiaires!R45","v":"BENEF_A015_DATE_RAD="}]
[{"$f":"'Fichier de paramétrage vierge'!A528","v":"**Date d'admission du scénario A015 à renseigner au format AAAA-MM-JJ et qui doit être inférieur ou égale à la date du jour**"}]
[{"$f":"'Fichier de paramétrage vierge'!A529&Bénéficiaires!R46","v":"DATE_ADMISSION_A015="}]
[]
[{"$f":"'Fichier de paramétrage vierge'!A531","v":"****** Bénéficiaire du scénario A016 avec des droits ouverts et bénéficie d’un contrat responsable ******"}]
[{"$f":"'Fichier de paramétrage vierge'!A532&Bénéficiaires!S32","v":"ODR_A016_NIR="}]
[{"$f":"'Fichier de paramétrage vierge'!A533&Bénéficiaires!S33","v":"ODR_A016_CLE_NIR="}]
[{"$f":"'Fichier de paramétrage vierge'!A534&Bénéficiaires!S34","v":"ODR_A016_CODE_REGIME_AMO="}]
[{"$f":"'Fichier de paramétrage vierge'!A535&Bénéficiaires!S35","v":"ODR_A016_CODE_CAISSE_AMO="}]
[{"$f":"'Fichier de paramétrage vierge'!A536&Bénéficiaires!S36","v":"ODR_A016_CODE_CENTRE_AMO="}]
[{"$f":"'Fichier de paramétrage vierge'!A537&Bénéficiaires!S42","v":"BENEF_A016_DATE_NAISSANCE="}]
[{"$f":"'Fichier de paramétrage vierge'!A538&Bénéficiaires!S43","v":"BENEF_A016_RANG_NAISSANCE="}]
[{"$f":"'Fichier de paramétrage vierge'!A539&Bénéficiaires!S38","v":"BENEF_A016_NOM="}]
[{"$f":"'Fichier de paramétrage vierge'!A540&Bénéficiaires!S39","v":"BENEF_A016_PRENOM="}]
[{"$f":"'Fichier de paramétrage vierge'!A541&Bénéficiaires!S40","v":"BENEF_A016_NIR="}]
[{"$f":"'Fichier de paramétrage vierge'!A542&Bénéficiaires!S41","v":"BENEF_A016_CLE_NIR="}]
[{"$f":"'Fichier de paramétrage vierge'!A543&Bénéficiaires!S29","v":"BENEF_A016_AMC_NUM_AMC="}]
[{"$f":"'Fichier de paramétrage vierge'!A544&Bénéficiaires!S37","v":"BENEF_A016_NUM_ADHERENT="}]
[{"$f":"'Fichier de paramétrage vierge'!A545&Bénéficiaires!S30","v":"BENEF_A016_AMC_TYPE_CONV="}]
[{"$f":"'Fichier de paramétrage vierge'!A546&Bénéficiaires!S31","v":"BENEF_A016_AMC_CSR="}]
[{"$f":"'Fichier de paramétrage vierge'!A547&Bénéficiaires!S44","v":"BENEF_A016_DATE_DEB_DROITS="}]
[{"$f":"'Fichier de paramétrage vierge'!A548&Bénéficiaires!S45","v":"BENEF_A016_DATE_RAD="}]
[{"$f":"'Fichier de paramétrage vierge'!A549","v":"**Date d'admission du scénario A016 à renseigner au format AAAA-MM-JJ et qui doit être inférieur ou égale à la date du jour**"}]
[{"$f":"'Fichier de paramétrage vierge'!A550&Bénéficiaires!S46","v":"DATE_ADMISSION_A016="}]
[]
[{"$f":"'Fichier de paramétrage vierge'!A552","v":"****** Bénéficiaire du scénario A017 avec des droits ouverts et bénéficie d’un contrat responsable ******"}]
[{"$f":"'Fichier de paramétrage vierge'!A553&Bénéficiaires!T32","v":"ODR_A017_NIR="}]
[{"$f":"'Fichier de paramétrage vierge'!A554&Bénéficiaires!T33","v":"ODR_A017_CLE_NIR="}]
[{"$f":"'Fichier de paramétrage vierge'!A555&Bénéficiaires!T34","v":"ODR_A017_CODE_REGIME_AMO="}]
[{"$f":"'Fichier de paramétrage vierge'!A556&Bénéficiaires!T35","v":"ODR_A017_CODE_CAISSE_AMO="}]
[{"$f":"'Fichier de paramétrage vierge'!A557&Bénéficiaires!T36","v":"ODR_A017_CODE_CENTRE_AMO="}]
[{"$f":"'Fichier de paramétrage vierge'!A558&Bénéficiaires!T42","v":"BENEF_A017_DATE_NAISSANCE="}]
[{"$f":"'Fichier de paramétrage vierge'!A559&Bénéficiaires!T43","v":"BENEF_A017_RANG_NAISSANCE="}]
[{"$f":"'Fichier de paramétrage vierge'!A560&Bénéficiaires!T38","v":"BENEF_A017_NOM="}]
[{"$f":"'Fichier de paramétrage vierge'!A561&Bénéficiaires!T39","v":"BENEF_A017_PRENOM="}]
[{"$f":"'Fichier de paramétrage vierge'!A562&Bénéficiaires!T40","v":"BENEF_A017_NIR="}]
[{"$f":"'Fichier de paramétrage vierge'!A563&Bénéficiaires!T41","v":"BENEF_A017_CLE_NIR="}]
[{"$f":"'Fichier de paramétrage vierge'!A564&Bénéficiaires!T29","v":"BENEF_A017_AMC_NUM_AMC="}]
[{"$f":"'Fichier de paramétrage vierge'!A565&Bénéficiaires!T37","v":"BENEF_A017_NUM_ADHERENT="}]
[{"$f":"'Fichier de paramétrage vierge'!A566&Bénéficiaires!T30","v":"BENEF_A017_AMC_TYPE_CONV="}]
[{"$f":"'Fichier de paramétrage vierge'!A567&Bénéficiaires!T31","v":"BENEF_A017_AMC_CSR="}]
[{"$f":"'Fichier de paramétrage vierge'!A568&Bénéficiaires!T44","v":"BENEF_A017_DATE_DEB_DROITS="}]
[{"$f":"'Fichier de paramétrage vierge'!A569&Bénéficiaires!T45","v":"BENEF_A017_DATE_RAD="}]
[{"$f":"'Fichier de paramétrage vierge'!A570","v":"**Date d'admission du scénario A017 à renseigner au format AAAA-MM-JJ et qui doit être inférieur ou égale à la date du jour**"}]
[{"$f":"'Fichier de paramétrage vierge'!A571&Bénéficiaires!T46","v":"DATE_ADMISSION_A017="}]
[]
[{"$f":"'Fichier de paramétrage vierge'!A573","v":"****** Bénéficiaire du scénario A018 avec des droits ouverts et bénéficie d’un contrat responsable ******"}]
[{"$f":"'Fichier de paramétrage vierge'!A574&Bénéficiaires!U32","v":"ODR_A018_NIR="}]
[{"$f":"'Fichier de paramétrage vierge'!A575&Bénéficiaires!U33","v":"ODR_A018_CLE_NIR="}]
[{"$f":"'Fichier de paramétrage vierge'!A576&Bénéficiaires!U34","v":"ODR_A018_CODE_REGIME_AMO="}]
[{"$f":"'Fichier de paramétrage vierge'!A577&Bénéficiaires!U35","v":"ODR_A018_CODE_CAISSE_AMO="}]
[{"$f":"'Fichier de paramétrage vierge'!A578&Bénéficiaires!U36","v":"ODR_A018_CODE_CENTRE_AMO="}]
[{"$f":"'Fichier de paramétrage vierge'!A579&Bénéficiaires!U42","v":"BENEF_A018_DATE_NAISSANCE="}]
[{"$f":"'Fichier de paramétrage vierge'!A580&Bénéficiaires!U43","v":"BENEF_A018_RANG_NAISSANCE="}]
[{"$f":"'Fichier de paramétrage vierge'!A581&Bénéficiaires!U38","v":"BENEF_A018_NOM="}]
[{"$f":"'Fichier de paramétrage vierge'!A582&Bénéficiaires!U39","v":"BENEF_A018_PRENOM="}]
[{"$f":"'Fichier de paramétrage vierge'!A583&Bénéficiaires!U40","v":"BENEF_A018_NIR="}]
[{"$f":"'Fichier de paramétrage vierge'!A584&Bénéficiaires!U41","v":"BENEF_A018_CLE_NIR="}]
[{"$f":"'Fichier de paramétrage vierge'!A585&Bénéficiaires!U29","v":"BENEF_A018_AMC_NUM_AMC="}]
[{"$f":"'Fichier de paramétrage vierge'!A586&Bénéficiaires!U37","v":"BENEF_A018_NUM_ADHERENT="}]
[{"$f":"'Fichier de paramétrage vierge'!A587&Bénéficiaires!U30","v":"BENEF_A018_AMC_TYPE_CONV="}]
[{"$f":"'Fichier de paramétrage vierge'!A588&Bénéficiaires!U31","v":"BENEF_A018_AMC_CSR="}]
[{"$f":"'Fichier de paramétrage vierge'!A589&Bénéficiaires!U44","v":"BENEF_A018_DATE_DEB_DROITS="}]
[{"$f":"'Fichier de paramétrage vierge'!A590&Bénéficiaires!U45","v":"BENEF_A018_DATE_RAD="}]
[{"$f":"'Fichier de paramétrage vierge'!A591","v":"**Date d'admission du scénario A018 à renseigner au format AAAA-MM-JJ et qui doit être inférieur ou égale à la date du jour**"}]
[{"$f":"'Fichier de paramétrage vierge'!A592&Bénéficiaires!U46","v":"DATE_ADMISSION_A018="}]
[]
[{"$f":"'Fichier de paramétrage vierge'!A594","v":"****** Bénéficiaire du scénario A019 avec des droits ouverts et bénéficie d’un contrat responsable ******"}]
[{"$f":"'Fichier de paramétrage vierge'!A595&Bénéficiaires!V32","v":"ODR_A019_NIR="}]
[{"$f":"'Fichier de paramétrage vierge'!A596&Bénéficiaires!V33","v":"ODR_A019_CLE_NIR="}]
[{"$f":"'Fichier de paramétrage vierge'!A597&Bénéficiaires!V34","v":"ODR_A019_CODE_REGIME_AMO="}]
[{"$f":"'Fichier de paramétrage vierge'!A598&Bénéficiaires!V35","v":"ODR_A019_CODE_CAISSE_AMO="}]
[{"$f":"'Fichier de paramétrage vierge'!A599&Bénéficiaires!V36","v":"ODR_A019_CODE_CENTRE_AMO="}]
[{"$f":"'Fichier de paramétrage vierge'!A600&Bénéficiaires!V42","v":"BENEF_A019_DATE_NAISSANCE="}]
[{"$f":"'Fichier de paramétrage vierge'!A601&Bénéficiaires!V43","v":"BENEF_A019_RANG_NAISSANCE="}]
[{"$f":"'Fichier de paramétrage vierge'!A602&Bénéficiaires!V38","v":"BENEF_A019_NOM="}]
[{"$f":"'Fichier de paramétrage vierge'!A603&Bénéficiaires!V39","v":"BENEF_A019_PRENOM="}]
[{"$f":"'Fichier de paramétrage vierge'!A604&Bénéficiaires!V40","v":"BENEF_A019_NIR="}]
[{"$f":"'Fichier de paramétrage vierge'!A605&Bénéficiaires!V41","v":"BENEF_A019_CLE_NIR="}]
[{"$f":"'Fichier de paramétrage vierge'!A606&Bénéficiaires!V29","v":"BENEF_A019_AMC_NUM_AMC="}]
[{"$f":"'Fichier de paramétrage vierge'!A607&Bénéficiaires!V37","v":"BENEF_A019_NUM_ADHERENT="}]
[{"$f":"'Fichier de paramétrage vierge'!A608&Bénéficiaires!V30","v":"BENEF_A019_AMC_TYPE_CONV="}]
[{"$f":"'Fichier de paramétrage vierge'!A609&Bénéficiaires!V31","v":"BENEF_A019_AMC_CSR="}]
[{"$f":"'Fichier de paramétrage vierge'!A610&Bénéficiaires!V44","v":"BENEF_A019_DATE_DEB_DROITS="}]
[{"$f":"'Fichier de paramétrage vierge'!A611&Bénéficiaires!V45","v":"BENEF_A019_DATE_RAD="}]
[{"$f":"'Fichier de paramétrage vierge'!A612","v":"**Date d'admission du scénario A019 à renseigner au format AAAA-MM-JJ et qui doit être inférieur ou égale à la date du jour**"}]
[{"$f":"'Fichier de paramétrage vierge'!A613&Bénéficiaires!V46","v":"DATE_ADMISSION_A019="}]
[]
[{"$f":"'Fichier de paramétrage vierge'!A615","v":"****** SCÉNARIO SEJOUR *****"}]
[]
[{"$f":"'Fichier de paramétrage vierge'!A617","v":"****** Bénéficiaire du scénario S001 avec des droits ouverts et bénéficie d’un contrat responsable ******"}]
[{"$f":"'Fichier de paramétrage vierge'!A618&Bénéficiaires!D55","v":"ODR_S001_NIR="}]
[{"$f":"'Fichier de paramétrage vierge'!A619&Bénéficiaires!D56","v":"ODR_S001_CLE_NIR="}]
[{"$f":"'Fichier de paramétrage vierge'!A620&Bénéficiaires!D57","v":"ODR_S001_CODE_REGIME_AMO="}]
[{"$f":"'Fichier de paramétrage vierge'!A621&Bénéficiaires!D58","v":"ODR_S001_CODE_CAISSE_AMO="}]
[{"$f":"'Fichier de paramétrage vierge'!A622&Bénéficiaires!D59","v":"ODR_S001_CODE_CENTRE_AMO="}]
[{"$f":"'Fichier de paramétrage vierge'!A623&Bénéficiaires!D65","v":"BENEF_S001_DATE_NAISSANCE="}]
[{"$f":"'Fichier de paramétrage vierge'!A624&Bénéficiaires!D66","v":"BENEF_S001_RANG_NAISSANCE="}]
[{"$f":"'Fichier de paramétrage vierge'!A625&Bénéficiaires!D61","v":"BENEF_S001_NOM="}]
[{"$f":"'Fichier de paramétrage vierge'!A626&Bénéficiaires!D62","v":"BENEF_S001_PRENOM="}]
[{"$f":"'Fichier de paramétrage vierge'!A627&Bénéficiaires!D63","v":"BENEF_S001_NIR="}]
[{"$f":"'Fichier de paramétrage vierge'!A628&Bénéficiaires!D64","v":"BENEF_S001_CLE_NIR="}]
[{"$f":"'Fichier de paramétrage vierge'!A629&Bénéficiaires!D52","v":"BENEF_S001_AMC_NUM_AMC="}]
[{"$f":"'Fichier de paramétrage vierge'!A630&Bénéficiaires!D60","v":"BENEF_S001_NUM_ADHERENT="}]
[{"$f":"'Fichier de paramétrage vierge'!A631&Bénéficiaires!D53","v":"BENEF_S001_AMC_TYPE_CONV="}]
[{"$f":"'Fichier de paramétrage vierge'!A632&Bénéficiaires!D54","v":"BENEF_S001_AMC_CSR="}]
[{"$f":"'Fichier de paramétrage vierge'!A633&Bénéficiaires!D67","v":"BENEF_S001_DATE_DEB_DROITS="}]
[{"$f":"'Fichier de paramétrage vierge'!A634&Bénéficiaires!D68","v":"BENEF_S001_DATE_RAD="}]
[{"$f":"'Fichier de paramétrage vierge'!A635","v":"**Date d'admission du scénario S001 à renseigner au format AAAA-MM-JJ et qui doit être inférieur ou égale de moins 3 jours par rapport la date du jour**"}]
[{"$f":"'Fichier de paramétrage vierge'!A636&Bénéficiaires!D69","v":"DATE_ADMISSION_S001="}]
[]
[{"$f":"'Fichier de paramétrage vierge'!A638","v":"****** Bénéficiaire du scénario S002 avec des droits ouverts et bénéficiant d’un contrat non responsable ******"}]
[{"$f":"'Fichier de paramétrage vierge'!A639&Bénéficiaires!E55","v":"ODR_S002_NIR="}]
[{"$f":"'Fichier de paramétrage vierge'!A640&Bénéficiaires!E56","v":"ODR_S002_CLE_NIR="}]
[{"$f":"'Fichier de paramétrage vierge'!A641&Bénéficiaires!E57","v":"ODR_S002_CODE_REGIME_AMO="}]
[{"$f":"'Fichier de paramétrage vierge'!A642&Bénéficiaires!E58","v":"ODR_S002_CODE_CAISSE_AMO="}]
[{"$f":"'Fichier de paramétrage vierge'!A643&Bénéficiaires!E59","v":"ODR_S002_CODE_CENTRE_AMO="}]
[{"$f":"'Fichier de paramétrage vierge'!A644&Bénéficiaires!E65","v":"BENEF_S002_DATE_NAISSANCE="}]
[{"$f":"'Fichier de paramétrage vierge'!A645&Bénéficiaires!E66","v":"BENEF_S002_RANG_NAISSANCE="}]
[{"$f":"'Fichier de paramétrage vierge'!A646&Bénéficiaires!E61","v":"BENEF_S002_NOM="}]
[{"$f":"'Fichier de paramétrage vierge'!A647&Bénéficiaires!E62","v":"BENEF_S002_PRENOM="}]
[{"$f":"'Fichier de paramétrage vierge'!A648&Bénéficiaires!E63","v":"BENEF_S002_NIR="}]
[{"$f":"'Fichier de paramétrage vierge'!A649&Bénéficiaires!E64","v":"BENEF_S002_CLE_NIR="}]
[{"$f":"'Fichier de paramétrage vierge'!A650&Bénéficiaires!E52","v":"BENEF_S002_AMC_NUM_AMC="}]
[{"$f":"'Fichier de paramétrage vierge'!A651&Bénéficiaires!E60","v":"BENEF_S002_NUM_ADHERENT="}]
[{"$f":"'Fichier de paramétrage vierge'!A652&Bénéficiaires!E53","v":"BENEF_S002_AMC_TYPE_CONV="}]
[{"$f":"'Fichier de paramétrage vierge'!A653&Bénéficiaires!E54","v":"BENEF_S002_AMC_CSR="}]
[{"$f":"'Fichier de paramétrage vierge'!A654&Bénéficiaires!E67","v":"BENEF_S002_DATE_DEB_DROITS="}]
[{"$f":"'Fichier de paramétrage vierge'!A655&Bénéficiaires!E68","v":"BENEF_S002_DATE_RAD="}]
[{"$f":"'Fichier de paramétrage vierge'!A656","v":"**Date d'admission du scénario S002 à renseigner au format AAAA-MM-JJ et qui doit être inférieur ou égale de moins 3 jours par rapport la date du jour**"}]
[{"$f":"'Fichier de paramétrage vierge'!A657&Bénéficiaires!E69","v":"DATE_ADMISSION_S002="}]
[]
[{"$f":"'Fichier de paramétrage vierge'!A659","v":"****** Bénéficiaire du scénario S003 avec des droits ouverts et bénéficiant d’un contrat non responsable ******"}]
[{"$f":"'Fichier de paramétrage vierge'!A660&Bénéficiaires!F55","v":"ODR_S003_NIR="}]
[{"$f":"'Fichier de paramétrage vierge'!A661&Bénéficiaires!F56","v":"ODR_S003_CLE_NIR="}]
[{"$f":"'Fichier de paramétrage vierge'!A662&Bénéficiaires!F57","v":"ODR_S003_CODE_REGIME_AMO="}]
[{"$f":"'Fichier de paramétrage vierge'!A663&Bénéficiaires!F58","v":"ODR_S003_CODE_CAISSE_AMO="}]
[{"$f":"'Fichier de paramétrage vierge'!A664&Bénéficiaires!F59","v":"ODR_S003_CODE_CENTRE_AMO="}]
[{"$f":"'Fichier de paramétrage vierge'!A665&Bénéficiaires!F65","v":"BENEF_S003_DATE_NAISSANCE="}]
[{"$f":"'Fichier de paramétrage vierge'!A666&Bénéficiaires!F66","v":"BENEF_S003_RANG_NAISSANCE="}]
[{"$f":"'Fichier de paramétrage vierge'!A667&Bénéficiaires!F61","v":"BENEF_S003_NOM="}]
[{"$f":"'Fichier de paramétrage vierge'!A668&Bénéficiaires!F62","v":"BENEF_S003_PRENOM="}]
[{"$f":"'Fichier de paramétrage vierge'!A669&Bénéficiaires!F63","v":"BENEF_S003_NIR="}]
[{"$f":"'Fichier de paramétrage vierge'!A670&Bénéficiaires!F64","v":"BENEF_S003_CLE_NIR="}]
[{"$f":"'Fichier de paramétrage vierge'!A671&Bénéficiaires!F52","v":"BENEF_S003_AMC_NUM_AMC="}]
[{"$f":"'Fichier de paramétrage vierge'!A672&Bénéficiaires!F60","v":"BENEF_S003_NUM_ADHERENT="}]
[{"$f":"'Fichier de paramétrage vierge'!A673&Bénéficiaires!F53","v":"BENEF_S003_AMC_TYPE_CONV="}]
[{"$f":"'Fichier de paramétrage vierge'!A674&Bénéficiaires!F54","v":"BENEF_S003_AMC_CSR="}]
[{"$f":"'Fichier de paramétrage vierge'!A675&Bénéficiaires!F67","v":"BENEF_S003_DATE_DEB_DROITS="}]
[{"$f":"'Fichier de paramétrage vierge'!A676&Bénéficiaires!F68","v":"BENEF_S003_DATE_RAD="}]
[{"$f":"'Fichier de paramétrage vierge'!A677","v":"**Date d'admission du scénario S003 à renseigner au format AAAA-MM-JJ et qui doit être inférieur ou égale de moins 6 jours par rapport la date du jour**"}]
[{"$f":"'Fichier de paramétrage vierge'!A678&Bénéficiaires!F69","v":"DATE_ADMISSION_S003="}]
[]
[{"$f":"'Fichier de paramétrage vierge'!A680","v":"****** Bénéficiaire du scénario S004 avec un contrat valide. Le contrat est en cours et la date de fin de couverture est postérieure à la date de renouvellement d’échéance. La date de renouvellement d’échéance est fixée par l’AMC à J+3 (donnée non modifiable en test) ******"}]
[{"$f":"'Fichier de paramétrage vierge'!A681&Bénéficiaires!G55","v":"ODR_S004_NIR="}]
[{"$f":"'Fichier de paramétrage vierge'!A682&Bénéficiaires!G56","v":"ODR_S004_CLE_NIR="}]
[{"$f":"'Fichier de paramétrage vierge'!A683&Bénéficiaires!G57","v":"ODR_S004_CODE_REGIME_AMO="}]
[{"$f":"'Fichier de paramétrage vierge'!A684&Bénéficiaires!G58","v":"ODR_S004_CODE_CAISSE_AMO="}]
[{"$f":"'Fichier de paramétrage vierge'!A685&Bénéficiaires!G59","v":"ODR_S004_CODE_CENTRE_AMO="}]
[{"$f":"'Fichier de paramétrage vierge'!A686&Bénéficiaires!G65","v":"BENEF_S004_DATE_NAISSANCE="}]
[{"$f":"'Fichier de paramétrage vierge'!A687&Bénéficiaires!G66","v":"BENEF_S004_RANG_NAISSANCE="}]
[{"$f":"'Fichier de paramétrage vierge'!A688&Bénéficiaires!G61","v":"BENEF_S004_NOM="}]
[{"$f":"'Fichier de paramétrage vierge'!A689&Bénéficiaires!G62","v":"BENEF_S004_PRENOM="}]
[{"$f":"'Fichier de paramétrage vierge'!A690&Bénéficiaires!G63","v":"BENEF_S004_NIR="}]
[{"$f":"'Fichier de paramétrage vierge'!A691&Bénéficiaires!G64","v":"BENEF_S004_CLE_NIR="}]
[{"$f":"'Fichier de paramétrage vierge'!A692&Bénéficiaires!G52","v":"BENEF_S004_AMC_NUM_AMC="}]
[{"$f":"'Fichier de paramétrage vierge'!A693&Bénéficiaires!G60","v":"BENEF_S004_NUM_ADHERENT="}]
[{"$f":"'Fichier de paramétrage vierge'!A694&Bénéficiaires!G53","v":"BENEF_S004_AMC_TYPE_CONV="}]
[{"$f":"'Fichier de paramétrage vierge'!A695&Bénéficiaires!G54","v":"BENEF_S004_AMC_CSR="}]
[{"$f":"'Fichier de paramétrage vierge'!A696&Bénéficiaires!G67","v":"BENEF_S004_DATE_DEB_DROITS="}]
[{"$f":"'Fichier de paramétrage vierge'!A697&Bénéficiaires!G68","v":"BENEF_S004_DATE_RAD="}]
[{"$f":"'Fichier de paramétrage vierge'!A698","v":"**Date d'admission du scénario S004 à renseigner au format AAAA-MM-JJ et qui doit être inférieur ou égale de moins 4 jours par rapport la date du jour**"}]
[{"$f":"'Fichier de paramétrage vierge'!A699&Bénéficiaires!G69","v":"DATE_ADMISSION_S004="}]
[]
[{"$f":"'Fichier de paramétrage vierge'!A701","v":"****** Bénéficiaire du scénario S005 avec des droits ouverts et bénéficiant d’un contrat non responsable ******"}]
[{"$f":"'Fichier de paramétrage vierge'!A702&Bénéficiaires!H55","v":"ODR_S005_NIR="}]
[{"$f":"'Fichier de paramétrage vierge'!A703&Bénéficiaires!H56","v":"ODR_S005_CLE_NIR="}]
[{"$f":"'Fichier de paramétrage vierge'!A704&Bénéficiaires!H57","v":"ODR_S005_CODE_REGIME_AMO="}]
[{"$f":"'Fichier de paramétrage vierge'!A705&Bénéficiaires!H58","v":"ODR_S005_CODE_CAISSE_AMO="}]
[{"$f":"'Fichier de paramétrage vierge'!A706&Bénéficiaires!H59","v":"ODR_S005_CODE_CENTRE_AMO="}]
[{"$f":"'Fichier de paramétrage vierge'!A707&Bénéficiaires!H65","v":"BENEF_S005_DATE_NAISSANCE="}]
[{"$f":"'Fichier de paramétrage vierge'!A708&Bénéficiaires!H66","v":"BENEF_S005_RANG_NAISSANCE="}]
[{"$f":"'Fichier de paramétrage vierge'!A709&Bénéficiaires!H61","v":"BENEF_S005_NOM="}]
[{"$f":"'Fichier de paramétrage vierge'!A710&Bénéficiaires!H62","v":"BENEF_S005_PRENOM="}]
[{"$f":"'Fichier de paramétrage vierge'!A711&Bénéficiaires!H63","v":"BENEF_S005_NIR="}]
[{"$f":"'Fichier de paramétrage vierge'!A712&Bénéficiaires!H64","v":"BENEF_S005_CLE_NIR="}]
[{"$f":"'Fichier de paramétrage vierge'!A713&Bénéficiaires!H52","v":"BENEF_S005_AMC_NUM_AMC="}]
[{"$f":"'Fichier de paramétrage vierge'!A714&Bénéficiaires!H60","v":"BENEF_S005_NUM_ADHERENT="}]
[{"$f":"'Fichier de paramétrage vierge'!A715&Bénéficiaires!H53","v":"BENEF_S005_AMC_TYPE_CONV="}]
[{"$f":"'Fichier de paramétrage vierge'!A716&Bénéficiaires!H54","v":"BENEF_S005_AMC_CSR="}]
[{"$f":"'Fichier de paramétrage vierge'!A717&Bénéficiaires!H67","v":"BENEF_S005_DATE_DEB_DROITS="}]
[{"$f":"'Fichier de paramétrage vierge'!A718&Bénéficiaires!H68","v":"BENEF_S005_DATE_RAD="}]
[{"$f":"'Fichier de paramétrage vierge'!A719","v":"**Date d'admission du scénario S005 à renseigner au format AAAA-MM-JJ et qui doit être inférieur ou égale de moins 6 jours par rapport la date du jour**"}]
[{"$f":"'Fichier de paramétrage vierge'!A720&Bénéficiaires!H69","v":"DATE_ADMISSION_S005="}]
[]
[{"$f":"'Fichier de paramétrage vierge'!A722","v":"****** Bénéficiaire du scénario S006 avec des droits ouverts et bénéficiant d’un contrat non responsable ******"}]
[{"$f":"'Fichier de paramétrage vierge'!A723&Bénéficiaires!I55","v":"ODR_S006_NIR="}]
[{"$f":"'Fichier de paramétrage vierge'!A724&Bénéficiaires!I56","v":"ODR_S006_CLE_NIR="}]
[{"$f":"'Fichier de paramétrage vierge'!A725&Bénéficiaires!I57","v":"ODR_S006_CODE_REGIME_AMO="}]
[{"$f":"'Fichier de paramétrage vierge'!A726&Bénéficiaires!I58","v":"ODR_S006_CODE_CAISSE_AMO="}]
[{"$f":"'Fichier de paramétrage vierge'!A727&Bénéficiaires!I59","v":"ODR_S006_CODE_CENTRE_AMO="}]
[{"$f":"'Fichier de paramétrage vierge'!A728&Bénéficiaires!I65","v":"BENEF_S006_DATE_NAISSANCE="}]
[{"$f":"'Fichier de paramétrage vierge'!A729&Bénéficiaires!I66","v":"BENEF_S006_RANG_NAISSANCE="}]
[{"$f":"'Fichier de paramétrage vierge'!A730&Bénéficiaires!I61","v":"BENEF_S006_NOM="}]
[{"$f":"'Fichier de paramétrage vierge'!A731&Bénéficiaires!I62","v":"BENEF_S006_PRENOM="}]
[{"$f":"'Fichier de paramétrage vierge'!A732&Bénéficiaires!I63","v":"BENEF_S006_NIR="}]
[{"$f":"'Fichier de paramétrage vierge'!A733&Bénéficiaires!I64","v":"BENEF_S006_CLE_NIR="}]
[{"$f":"'Fichier de paramétrage vierge'!A734&Bénéficiaires!I52","v":"BENEF_S006_AMC_NUM_AMC="}]
[{"$f":"'Fichier de paramétrage vierge'!A735&Bénéficiaires!I60","v":"BENEF_S006_NUM_ADHERENT="}]
[{"$f":"'Fichier de paramétrage vierge'!A736&Bénéficiaires!I53","v":"BENEF_S006_AMC_TYPE_CONV="}]
[{"$f":"'Fichier de paramétrage vierge'!A737&Bénéficiaires!I54","v":"BENEF_S006_AMC_CSR="}]
[{"$f":"'Fichier de paramétrage vierge'!A738&Bénéficiaires!I67","v":"BENEF_S006_DATE_DEB_DROITS="}]
[{"$f":"'Fichier de paramétrage vierge'!A739&Bénéficiaires!I68","v":"BENEF_S006_DATE_RAD="}]
[{"$f":"'Fichier de paramétrage vierge'!A740","v":"**Date d'admission du scénario S006 à renseigner au format AAAA-MM-JJ et qui doit être inférieur ou égale de moins 35 jours par rapport la date du jour**"}]
[{"$f":"'Fichier de paramétrage vierge'!A741&Bénéficiaires!I69","v":"DATE_ADMISSION_S006="}]
[]
[{"$f":"'Fichier de paramétrage vierge'!A743","v":"****** Bénéficiaire du scénario S007 avec des droits ouverts et bénéficie d’un contrat responsable et affilié au régime Alsace Moselle ******"}]
[{"$f":"'Fichier de paramétrage vierge'!A744&Bénéficiaires!J55","v":"ODR_S007_NIR="}]
[{"$f":"'Fichier de paramétrage vierge'!A745&Bénéficiaires!J56","v":"ODR_S007_CLE_NIR="}]
[{"$f":"'Fichier de paramétrage vierge'!A746&Bénéficiaires!J57","v":"ODR_S007_CODE_REGIME_AMO="}]
[{"$f":"'Fichier de paramétrage vierge'!A747&Bénéficiaires!J58","v":"ODR_S007_CODE_CAISSE_AMO="}]
[{"$f":"'Fichier de paramétrage vierge'!A748&Bénéficiaires!J59","v":"ODR_S007_CODE_CENTRE_AMO="}]
[{"$f":"'Fichier de paramétrage vierge'!A749&Bénéficiaires!J65","v":"BENEF_S007_DATE_NAISSANCE="}]
[{"$f":"'Fichier de paramétrage vierge'!A750&Bénéficiaires!J66","v":"BENEF_S007_RANG_NAISSANCE="}]
[{"$f":"'Fichier de paramétrage vierge'!A751&Bénéficiaires!J61","v":"BENEF_S007_NOM="}]
[{"$f":"'Fichier de paramétrage vierge'!A752&Bénéficiaires!J62","v":"BENEF_S007_PRENOM="}]
[{"$f":"'Fichier de paramétrage vierge'!A753&Bénéficiaires!J63","v":"BENEF_S007_NIR="}]
[{"$f":"'Fichier de paramétrage vierge'!A754&Bénéficiaires!J64","v":"BENEF_S007_CLE_NIR="}]
[{"$f":"'Fichier de paramétrage vierge'!A755&Bénéficiaires!J52","v":"BENEF_S007_AMC_NUM_AMC="}]
[{"$f":"'Fichier de paramétrage vierge'!A756&Bénéficiaires!J60","v":"BENEF_S007_NUM_ADHERENT="}]
[{"$f":"'Fichier de paramétrage vierge'!A757&Bénéficiaires!J53","v":"BENEF_S007_AMC_TYPE_CONV="}]
[{"$f":"'Fichier de paramétrage vierge'!A758&Bénéficiaires!J54","v":"BENEF_S007_AMC_CSR="}]
[{"$f":"'Fichier de paramétrage vierge'!A759&Bénéficiaires!J67","v":"BENEF_S007_DATE_DEB_DROITS="}]
[{"$f":"'Fichier de paramétrage vierge'!A760&Bénéficiaires!J68","v":"BENEF_S007_DATE_RAD="}]
[{"$f":"'Fichier de paramétrage vierge'!A761","v":"**Date d'admission du scénario S007 à renseigner au format AAAA-MM-JJ et qui doit être inférieur ou égale de moins 4 jours par rapport la date du jour**"}]
[{"$f":"'Fichier de paramétrage vierge'!A762&Bénéficiaires!J69","v":"DATE_ADMISSION_S007="}]
[]
[{"$f":"'Fichier de paramétrage vierge'!A764","v":"****** Bénéficiaire du scénario S008 avec des droits ouverts et bénéficie d’un contrat responsable ******"}]
[{"$f":"'Fichier de paramétrage vierge'!A765&Bénéficiaires!K55","v":"ODR_S008_NIR="}]
[{"$f":"'Fichier de paramétrage vierge'!A766&Bénéficiaires!K56","v":"ODR_S008_CLE_NIR="}]
[{"$f":"'Fichier de paramétrage vierge'!A767&Bénéficiaires!K57","v":"ODR_S008_CODE_REGIME_AMO="}]
[{"$f":"'Fichier de paramétrage vierge'!A768&Bénéficiaires!K58","v":"ODR_S008_CODE_CAISSE_AMO="}]
[{"$f":"'Fichier de paramétrage vierge'!A769&Bénéficiaires!K59","v":"ODR_S008_CODE_CENTRE_AMO="}]
[{"$f":"'Fichier de paramétrage vierge'!A770&Bénéficiaires!K65","v":"BENEF_S008_DATE_NAISSANCE="}]
[{"$f":"'Fichier de paramétrage vierge'!A771&Bénéficiaires!K66","v":"BENEF_S008_RANG_NAISSANCE="}]
[{"$f":"'Fichier de paramétrage vierge'!A772&Bénéficiaires!K61","v":"BENEF_S008_NOM="}]
[{"$f":"'Fichier de paramétrage vierge'!A773&Bénéficiaires!K62","v":"BENEF_S008_PRENOM="}]
[{"$f":"'Fichier de paramétrage vierge'!A774&Bénéficiaires!K63","v":"BENEF_S008_NIR="}]
[{"$f":"'Fichier de paramétrage vierge'!A775&Bénéficiaires!K64","v":"BENEF_S008_CLE_NIR="}]
[{"$f":"'Fichier de paramétrage vierge'!A776&Bénéficiaires!K52","v":"BENEF_S008_AMC_NUM_AMC="}]
[{"$f":"'Fichier de paramétrage vierge'!A777&Bénéficiaires!K60","v":"BENEF_S008_NUM_ADHERENT="}]
[{"$f":"'Fichier de paramétrage vierge'!A778&Bénéficiaires!K53","v":"BENEF_S008_AMC_TYPE_CONV="}]
[{"$f":"'Fichier de paramétrage vierge'!A779&Bénéficiaires!K54","v":"BENEF_S008_AMC_CSR="}]
[{"$f":"'Fichier de paramétrage vierge'!A780&Bénéficiaires!K67","v":"BENEF_S008_DATE_DEB_DROITS="}]
[{"$f":"'Fichier de paramétrage vierge'!A781&Bénéficiaires!K68","v":"BENEF_S008_DATE_RAD="}]
[{"$f":"'Fichier de paramétrage vierge'!A782","v":"**Date d'admission du scénario S008 à renseigner au format AAAA-MM-JJ et qui doit être inférieur ou égale de moins 4 jours par rapport la date du jour**"}]
[{"$f":"'Fichier de paramétrage vierge'!A783&Bénéficiaires!K69","v":"DATE_ADMISSION_S008="}]
[]
[{"$f":"'Fichier de paramétrage vierge'!A785","v":"****** Bénéficiaire du scénario S009 est un enfant. L’ouvrant-droit bénéficie d’un contrat responsable, il comprend une garantie forfaits accompagnant ******"}]
[{"$f":"'Fichier de paramétrage vierge'!A786&Bénéficiaires!L55","v":"ODR_S009_NIR="}]
[{"$f":"'Fichier de paramétrage vierge'!A787&Bénéficiaires!L56","v":"ODR_S009_CLE_NIR="}]
[{"$f":"'Fichier de paramétrage vierge'!A788&Bénéficiaires!L57","v":"ODR_S009_CODE_REGIME_AMO="}]
[{"$f":"'Fichier de paramétrage vierge'!A789&Bénéficiaires!L58","v":"ODR_S009_CODE_CAISSE_AMO="}]
[{"$f":"'Fichier de paramétrage vierge'!A790&Bénéficiaires!L59","v":"ODR_S009_CODE_CENTRE_AMO="}]
[{"$f":"'Fichier de paramétrage vierge'!A791&Bénéficiaires!L65","v":"BENEF_S009_DATE_NAISSANCE="}]
[{"$f":"'Fichier de paramétrage vierge'!A792&Bénéficiaires!L66","v":"BENEF_S009_RANG_NAISSANCE="}]
[{"$f":"'Fichier de paramétrage vierge'!A793&Bénéficiaires!L61","v":"BENEF_S009_NOM="}]
[{"$f":"'Fichier de paramétrage vierge'!A794&Bénéficiaires!L62","v":"BENEF_S009_PRENOM="}]
[{"$f":"'Fichier de paramétrage vierge'!A795&Bénéficiaires!L63","v":"BENEF_S009_NIR="}]
[{"$f":"'Fichier de paramétrage vierge'!A796&Bénéficiaires!L64","v":"BENEF_S009_CLE_NIR="}]
[{"$f":"'Fichier de paramétrage vierge'!A797&Bénéficiaires!L52","v":"BENEF_S009_AMC_NUM_AMC="}]
[{"$f":"'Fichier de paramétrage vierge'!A798&Bénéficiaires!L60","v":"BENEF_S009_NUM_ADHERENT="}]
[{"$f":"'Fichier de paramétrage vierge'!A799&Bénéficiaires!L53","v":"BENEF_S009_AMC_TYPE_CONV="}]
[{"$f":"'Fichier de paramétrage vierge'!A800&Bénéficiaires!L54","v":"BENEF_S009_AMC_CSR="}]
[{"$f":"'Fichier de paramétrage vierge'!A801&Bénéficiaires!L67","v":"BENEF_S009_DATE_DEB_DROITS="}]
[{"$f":"'Fichier de paramétrage vierge'!A802&Bénéficiaires!L68","v":"BENEF_S009_DATE_RAD="}]
[{"$f":"'Fichier de paramétrage vierge'!A803","v":"**Date d'admission du scénario S009 à renseigner au format AAAA-MM-JJ et qui doit être inférieur ou égale de moins 1 jour par rapport la date du jour**"}]
[{"$f":"'Fichier de paramétrage vierge'!A804&Bénéficiaires!L69","v":"DATE_ADMISSION_S009="}]
[]
[{"$f":"'Fichier de paramétrage vierge'!A806","v":"****** Bénéficiaire du scénario S010 avec des droits ouverts et bénéficie d’un contrat responsable. Il comprend une garantie chambre particulière avec un plafond de 6 nuits ******"}]
[{"$f":"'Fichier de paramétrage vierge'!A807&Bénéficiaires!M55","v":"ODR_S010_NIR="}]
[{"$f":"'Fichier de paramétrage vierge'!A808&Bénéficiaires!M56","v":"ODR_S010_CLE_NIR="}]
[{"$f":"'Fichier de paramétrage vierge'!A809&Bénéficiaires!M57","v":"ODR_S010_CODE_REGIME_AMO="}]
[{"$f":"'Fichier de paramétrage vierge'!A810&Bénéficiaires!M58","v":"ODR_S010_CODE_CAISSE_AMO="}]
[{"$f":"'Fichier de paramétrage vierge'!A811&Bénéficiaires!M59","v":"ODR_S010_CODE_CENTRE_AMO="}]
[{"$f":"'Fichier de paramétrage vierge'!A812&Bénéficiaires!M65","v":"BENEF_S010_DATE_NAISSANCE="}]
[{"$f":"'Fichier de paramétrage vierge'!A813&Bénéficiaires!M66","v":"BENEF_S010_RANG_NAISSANCE="}]
[{"$f":"'Fichier de paramétrage vierge'!A814&Bénéficiaires!M61","v":"BENEF_S010_NOM="}]
[{"$f":"'Fichier de paramétrage vierge'!A815&Bénéficiaires!M62","v":"BENEF_S010_PRENOM="}]
[{"$f":"'Fichier de paramétrage vierge'!A816&Bénéficiaires!M63","v":"BENEF_S010_NIR="}]
[{"$f":"'Fichier de paramétrage vierge'!A817&Bénéficiaires!M64","v":"BENEF_S010_CLE_NIR="}]
[{"$f":"'Fichier de paramétrage vierge'!A818&Bénéficiaires!M52","v":"BENEF_S010_AMC_NUM_AMC="}]
[{"$f":"'Fichier de paramétrage vierge'!A819&Bénéficiaires!M60","v":"BENEF_S010_NUM_ADHERENT="}]
[{"$f":"'Fichier de paramétrage vierge'!A820&Bénéficiaires!M53","v":"BENEF_S010_AMC_TYPE_CONV="}]
[{"$f":"'Fichier de paramétrage vierge'!A821&Bénéficiaires!M54","v":"BENEF_S010_AMC_CSR="}]
[{"$f":"'Fichier de paramétrage vierge'!A822&Bénéficiaires!M67","v":"BENEF_S010_DATE_DEB_DROITS="}]
[{"$f":"'Fichier de paramétrage vierge'!A823&Bénéficiaires!M68","v":"BENEF_S010_DATE_RAD="}]
[{"$f":"'Fichier de paramétrage vierge'!A824","v":"**Date d'admission du scénario S010 à renseigner au format AAAA-MM-JJ et qui doit être inférieur ou égale de moins 7 jours par rapport la date du jour**"}]
[{"$f":"'Fichier de paramétrage vierge'!A825&Bénéficiaires!M69","v":"DATE_ADMISSION_S010="}]
[]
[{"$f":"'Fichier de paramétrage vierge'!A827","v":"****** Bénéficiaire du scénario S011 avec des droits ouverts et bénéficie d’un contrat responsable ******"}]
[{"$f":"'Fichier de paramétrage vierge'!A828&Bénéficiaires!N55","v":"ODR_S011_NIR="}]
[{"$f":"'Fichier de paramétrage vierge'!A829&Bénéficiaires!N56","v":"ODR_S011_CLE_NIR="}]
[{"$f":"'Fichier de paramétrage vierge'!A830&Bénéficiaires!N57","v":"ODR_S011_CODE_REGIME_AMO="}]
[{"$f":"'Fichier de paramétrage vierge'!A831&Bénéficiaires!N58","v":"ODR_S011_CODE_CAISSE_AMO="}]
[{"$f":"'Fichier de paramétrage vierge'!A832&Bénéficiaires!N59","v":"ODR_S011_CODE_CENTRE_AMO="}]
[{"$f":"'Fichier de paramétrage vierge'!A833&Bénéficiaires!N65","v":"BENEF_S011_DATE_NAISSANCE="}]
[{"$f":"'Fichier de paramétrage vierge'!A834&Bénéficiaires!N66","v":"BENEF_S011_RANG_NAISSANCE="}]
[{"$f":"'Fichier de paramétrage vierge'!A835&Bénéficiaires!N61","v":"BENEF_S011_NOM="}]
[{"$f":"'Fichier de paramétrage vierge'!A836&Bénéficiaires!N62","v":"BENEF_S011_PRENOM="}]
[{"$f":"'Fichier de paramétrage vierge'!A837&Bénéficiaires!N63","v":"BENEF_S011_NIR="}]
[{"$f":"'Fichier de paramétrage vierge'!A838&Bénéficiaires!N64","v":"BENEF_S011_CLE_NIR="}]
[{"$f":"'Fichier de paramétrage vierge'!A839&Bénéficiaires!N52","v":"BENEF_S011_AMC_NUM_AMC="}]
[{"$f":"'Fichier de paramétrage vierge'!A840&Bénéficiaires!N60","v":"BENEF_S011_NUM_ADHERENT="}]
[{"$f":"'Fichier de paramétrage vierge'!A841&Bénéficiaires!N53","v":"BENEF_S011_AMC_TYPE_CONV="}]
[{"$f":"'Fichier de paramétrage vierge'!A842&Bénéficiaires!N54","v":"BENEF_S011_AMC_CSR="}]
[{"$f":"'Fichier de paramétrage vierge'!A843&Bénéficiaires!N67","v":"BENEF_S011_DATE_DEB_DROITS="}]
[{"$f":"'Fichier de paramétrage vierge'!A844&Bénéficiaires!N68","v":"BENEF_S011_DATE_RAD="}]
[{"$f":"'Fichier de paramétrage vierge'!A845","v":"**Date d'admission du scénario S011 à renseigner au format AAAA-MM-JJ et qui doit être inférieur ou égale de moins 1 jour par rapport la date du jour**"}]
[{"$f":"'Fichier de paramétrage vierge'!A846&Bénéficiaires!N69","v":"DATE_ADMISSION_S011="}]
[]
[{"$f":"'Fichier de paramétrage vierge'!A848","v":"****** Bénéficiaire du scénario S012 avec des droits ouverts et bénéficie d’un contrat responsable ******"}]
[{"$f":"'Fichier de paramétrage vierge'!A849&Bénéficiaires!O55","v":"ODR_S012_NIR="}]
[{"$f":"'Fichier de paramétrage vierge'!A850&Bénéficiaires!O56","v":"ODR_S012_CLE_NIR="}]
[{"$f":"'Fichier de paramétrage vierge'!A851&Bénéficiaires!O57","v":"ODR_S012_CODE_REGIME_AMO="}]
[{"$f":"'Fichier de paramétrage vierge'!A852&Bénéficiaires!O58","v":"ODR_S012_CODE_CAISSE_AMO="}]
[{"$f":"'Fichier de paramétrage vierge'!A853&Bénéficiaires!O59","v":"ODR_S012_CODE_CENTRE_AMO="}]
[{"$f":"'Fichier de paramétrage vierge'!A854&Bénéficiaires!O65","v":"BENEF_S012_DATE_NAISSANCE="}]
[{"$f":"'Fichier de paramétrage vierge'!A855&Bénéficiaires!O66","v":"BENEF_S012_RANG_NAISSANCE="}]
[{"$f":"'Fichier de paramétrage vierge'!A856&Bénéficiaires!O61","v":"BENEF_S012_NOM="}]
[{"$f":"'Fichier de paramétrage vierge'!A857&Bénéficiaires!O62","v":"BENEF_S012_PRENOM="}]
[{"$f":"'Fichier de paramétrage vierge'!A858&Bénéficiaires!O63","v":"BENEF_S012_NIR="}]
[{"$f":"'Fichier de paramétrage vierge'!A859&Bénéficiaires!O64","v":"BENEF_S012_CLE_NIR="}]
[{"$f":"'Fichier de paramétrage vierge'!A860&Bénéficiaires!O52","v":"BENEF_S012_AMC_NUM_AMC="}]
[{"$f":"'Fichier de paramétrage vierge'!A861&Bénéficiaires!O60","v":"BENEF_S012_NUM_ADHERENT="}]
[{"$f":"'Fichier de paramétrage vierge'!A862&Bénéficiaires!O53","v":"BENEF_S012_AMC_TYPE_CONV="}]
[{"$f":"'Fichier de paramétrage vierge'!A863&Bénéficiaires!O54","v":"BENEF_S012_AMC_CSR="}]
[{"$f":"'Fichier de paramétrage vierge'!A864&Bénéficiaires!O67","v":"BENEF_S012_DATE_DEB_DROITS="}]
[{"$f":"'Fichier de paramétrage vierge'!A865&Bénéficiaires!O68","v":"BENEF_S012_DATE_RAD="}]
[{"$f":"'Fichier de paramétrage vierge'!A866","v":"**Date d'admission du scénario S012 à renseigner au format AAAA-MM-JJ et qui doit être inférieur ou égale de moins 1 jour par rapport la date du jour**"}]
[{"$f":"'Fichier de paramétrage vierge'!A867&Bénéficiaires!O69","v":"DATE_ADMISSION_S012="}]
[]
[{"$f":"'Fichier de paramétrage vierge'!A869","v":"****** Bénéficiaire du scénario S014 avec des droits ouverts et bénéficie d’un contrat responsable ******"}]
[{"$f":"'Fichier de paramétrage vierge'!A870&Bénéficiaires!P55","v":"ODR_S014_NIR="}]
[{"$f":"'Fichier de paramétrage vierge'!A871&Bénéficiaires!P56","v":"ODR_S014_CLE_NIR="}]
[{"$f":"'Fichier de paramétrage vierge'!A872&Bénéficiaires!P57","v":"ODR_S014_CODE_REGIME_AMO="}]
[{"$f":"'Fichier de paramétrage vierge'!A873&Bénéficiaires!P58","v":"ODR_S014_CODE_CAISSE_AMO="}]
[{"$f":"'Fichier de paramétrage vierge'!A874&Bénéficiaires!P59","v":"ODR_S014_CODE_CENTRE_AMO="}]
[{"$f":"'Fichier de paramétrage vierge'!A875&Bénéficiaires!P65","v":"BENEF_S014_DATE_NAISSANCE="}]
[{"$f":"'Fichier de paramétrage vierge'!A876&Bénéficiaires!P66","v":"BENEF_S014_RANG_NAISSANCE="}]
[{"$f":"'Fichier de paramétrage vierge'!A877&Bénéficiaires!P61","v":"BENEF_S014_NOM="}]
[{"$f":"'Fichier de paramétrage vierge'!A878&Bénéficiaires!P62","v":"BENEF_S014_PRENOM="}]
[{"$f":"'Fichier de paramétrage vierge'!A879&Bénéficiaires!P63","v":"BENEF_S014_NIR="}]
[{"$f":"'Fichier de paramétrage vierge'!A880&Bénéficiaires!P64","v":"BENEF_S014_CLE_NIR="}]
[{"$f":"'Fichier de paramétrage vierge'!A881&Bénéficiaires!P52","v":"BENEF_S014_AMC_NUM_AMC="}]
[{"$f":"'Fichier de paramétrage vierge'!A882&Bénéficiaires!P60","v":"BENEF_S014_NUM_ADHERENT="}]
[{"$f":"'Fichier de paramétrage vierge'!A883&Bénéficiaires!P53","v":"BENEF_S014_AMC_TYPE_CONV="}]
[{"$f":"'Fichier de paramétrage vierge'!A884&Bénéficiaires!P54","v":"BENEF_S014_AMC_CSR="}]
[{"$f":"'Fichier de paramétrage vierge'!A885&Bénéficiaires!P67","v":"BENEF_S014_DATE_DEB_DROITS="}]
[{"$f":"'Fichier de paramétrage vierge'!A886&Bénéficiaires!P68","v":"BENEF_S014_DATE_RAD="}]
[{"$f":"'Fichier de paramétrage vierge'!A887","v":"**Date d'admission du scénario S014 à renseigner au format AAAA-MM-JJ et qui doit être inférieur ou égale de moins 1 jour par rapport la date du jour**"}]
[{"$f":"'Fichier de paramétrage vierge'!A888&Bénéficiaires!P69","v":"DATE_ADMISSION_S014="}]
[]
[{"$f":"'Fichier de paramétrage vierge'!A890","v":"****** Bénéficiaire du scénario S015 avec des droits ouverts et bénéficie d’un contrat responsable ******"}]
[{"$f":"'Fichier de paramétrage vierge'!A891&Bénéficiaires!Q55","v":"ODR_S015_NIR="}]
[{"$f":"'Fichier de paramétrage vierge'!A892&Bénéficiaires!Q56","v":"ODR_S015_CLE_NIR="}]
[{"$f":"'Fichier de paramétrage vierge'!A893&Bénéficiaires!Q57","v":"ODR_S015_CODE_REGIME_AMO="}]
[{"$f":"'Fichier de paramétrage vierge'!A894&Bénéficiaires!Q58","v":"ODR_S015_CODE_CAISSE_AMO="}]
[{"$f":"'Fichier de paramétrage vierge'!A895&Bénéficiaires!Q59","v":"ODR_S015_CODE_CENTRE_AMO="}]
[{"$f":"'Fichier de paramétrage vierge'!A896&Bénéficiaires!Q65","v":"BENEF_S015_DATE_NAISSANCE="}]
[{"$f":"'Fichier de paramétrage vierge'!A897&Bénéficiaires!Q66","v":"BENEF_S015_RANG_NAISSANCE="}]
[{"$f":"'Fichier de paramétrage vierge'!A898&Bénéficiaires!Q61","v":"BENEF_S015_NOM="}]
[{"$f":"'Fichier de paramétrage vierge'!A899&Bénéficiaires!Q62","v":"BENEF_S015_PRENOM="}]
[{"$f":"'Fichier de paramétrage vierge'!A900&Bénéficiaires!Q63","v":"BENEF_S015_NIR="}]
[{"$f":"'Fichier de paramétrage vierge'!A901&Bénéficiaires!Q64","v":"BENEF_S015_CLE_NIR="}]
[{"$f":"'Fichier de paramétrage vierge'!A902&Bénéficiaires!Q52","v":"BENEF_S015_AMC_NUM_AMC="}]
[{"$f":"'Fichier de paramétrage vierge'!A903&Bénéficiaires!Q60","v":"BENEF_S015_NUM_ADHERENT="}]
[{"$f":"'Fichier de paramétrage vierge'!A904&Bénéficiaires!Q53","v":"BENEF_S015_AMC_TYPE_CONV="}]
[{"$f":"'Fichier de paramétrage vierge'!A905&Bénéficiaires!Q54","v":"BENEF_S015_AMC_CSR="}]
[{"$f":"'Fichier de paramétrage vierge'!A906&Bénéficiaires!Q67","v":"BENEF_S015_DATE_DEB_DROITS="}]
[{"$f":"'Fichier de paramétrage vierge'!A907&Bénéficiaires!Q68","v":"BENEF_S015_DATE_RAD="}]
[{"$f":"'Fichier de paramétrage vierge'!A908","v":"**Date d'admission du scénario S015 à renseigner au format AAAA-MM-JJ et qui doit être inférieur ou égale de moins 1 jour par rapport la date du jour**"}]
[{"$f":"'Fichier de paramétrage vierge'!A909&Bénéficiaires!Q69","v":"DATE_ADMISSION_S015="}]
[]
[{"$f":"'Fichier de paramétrage vierge'!A911","v":"****** Bénéficiaire du scénario S016 avec des droits ouverts et bénéficie d’un contrat responsable ******"}]
[{"$f":"'Fichier de paramétrage vierge'!A912&Bénéficiaires!R55","v":"ODR_S016_NIR="}]
[{"$f":"'Fichier de paramétrage vierge'!A913&Bénéficiaires!R56","v":"ODR_S016_CLE_NIR="}]
[{"$f":"'Fichier de paramétrage vierge'!A914&Bénéficiaires!R57","v":"ODR_S016_CODE_REGIME_AMO="}]
[{"$f":"'Fichier de paramétrage vierge'!A915&Bénéficiaires!R58","v":"ODR_S016_CODE_CAISSE_AMO="}]
[{"$f":"'Fichier de paramétrage vierge'!A916&Bénéficiaires!R59","v":"ODR_S016_CODE_CENTRE_AMO="}]
[{"$f":"'Fichier de paramétrage vierge'!A917&Bénéficiaires!R65","v":"BENEF_S016_DATE_NAISSANCE="}]
[{"$f":"'Fichier de paramétrage vierge'!A918&Bénéficiaires!R66","v":"BENEF_S016_RANG_NAISSANCE="}]
[{"$f":"'Fichier de paramétrage vierge'!A919&Bénéficiaires!R61","v":"BENEF_S016_NOM="}]
[{"$f":"'Fichier de paramétrage vierge'!A920&Bénéficiaires!R62","v":"BENEF_S016_PRENOM="}]
[{"$f":"'Fichier de paramétrage vierge'!A921&Bénéficiaires!R63","v":"BENEF_S016_NIR="}]
[{"$f":"'Fichier de paramétrage vierge'!A922&Bénéficiaires!R64","v":"BENEF_S016_CLE_NIR="}]
[{"$f":"'Fichier de paramétrage vierge'!A923&Bénéficiaires!R52","v":"BENEF_S016_AMC_NUM_AMC="}]
[{"$f":"'Fichier de paramétrage vierge'!A924&Bénéficiaires!R60","v":"BENEF_S016_NUM_ADHERENT="}]
[{"$f":"'Fichier de paramétrage vierge'!A925&Bénéficiaires!R53","v":"BENEF_S016_AMC_TYPE_CONV="}]
[{"$f":"'Fichier de paramétrage vierge'!A926&Bénéficiaires!R54","v":"BENEF_S016_AMC_CSR="}]
[{"$f":"'Fichier de paramétrage vierge'!A927&Bénéficiaires!R67","v":"BENEF_S016_DATE_DEB_DROITS="}]
[{"$f":"'Fichier de paramétrage vierge'!A928&Bénéficiaires!R68","v":"BENEF_S016_DATE_RAD="}]
[{"$f":"'Fichier de paramétrage vierge'!A929","v":"**Date d'admission du scénario S016 à renseigner au format AAAA-MM-JJ et qui doit être inférieur ou égale de moins 8 jours par rapport la date du jour**"}]
[{"$f":"'Fichier de paramétrage vierge'!A930&Bénéficiaires!R69","v":"DATE_ADMISSION_S016="}]
[]
[{"$f":"'Fichier de paramétrage vierge'!A932","v":"****** Bénéficiaire du scénario S017 avec des droits ouverts et bénéficie d’un contrat responsable ******"}]
[{"$f":"'Fichier de paramétrage vierge'!A933&Bénéficiaires!S55","v":"ODR_S017_NIR="}]
[{"$f":"'Fichier de paramétrage vierge'!A934&Bénéficiaires!S56","v":"ODR_S017_CLE_NIR="}]
[{"$f":"'Fichier de paramétrage vierge'!A935&Bénéficiaires!S57","v":"ODR_S017_CODE_REGIME_AMO="}]
[{"$f":"'Fichier de paramétrage vierge'!A936&Bénéficiaires!S58","v":"ODR_S017_CODE_CAISSE_AMO="}]
[{"$f":"'Fichier de paramétrage vierge'!A937&Bénéficiaires!S59","v":"ODR_S017_CODE_CENTRE_AMO="}]
[{"$f":"'Fichier de paramétrage vierge'!A938&Bénéficiaires!S65","v":"BENEF_S017_DATE_NAISSANCE="}]
[{"$f":"'Fichier de paramétrage vierge'!A939&Bénéficiaires!S66","v":"BENEF_S017_RANG_NAISSANCE="}]
[{"$f":"'Fichier de paramétrage vierge'!A940&Bénéficiaires!S61","v":"BENEF_S017_NOM="}]
[{"$f":"'Fichier de paramétrage vierge'!A941&Bénéficiaires!S62","v":"BENEF_S017_PRENOM="}]
[{"$f":"'Fichier de paramétrage vierge'!A942&Bénéficiaires!S63","v":"BENEF_S017_NIR="}]
[{"$f":"'Fichier de paramétrage vierge'!A943&Bénéficiaires!S64","v":"BENEF_S017_CLE_NIR="}]
[{"$f":"'Fichier de paramétrage vierge'!A944&Bénéficiaires!S52","v":"BENEF_S017_AMC_NUM_AMC="}]
[{"$f":"'Fichier de paramétrage vierge'!A945&Bénéficiaires!S60","v":"BENEF_S017_NUM_ADHERENT="}]
[{"$f":"'Fichier de paramétrage vierge'!A946&Bénéficiaires!S53","v":"BENEF_S017_AMC_TYPE_CONV="}]
[{"$f":"'Fichier de paramétrage vierge'!A947&Bénéficiaires!S54","v":"BENEF_S017_AMC_CSR="}]
[{"$f":"'Fichier de paramétrage vierge'!A948&Bénéficiaires!S67","v":"BENEF_S017_DATE_DEB_DROITS="}]
[{"$f":"'Fichier de paramétrage vierge'!A949&Bénéficiaires!S68","v":"BENEF_S017_DATE_RAD="}]
[{"$f":"'Fichier de paramétrage vierge'!A950","v":"**Date d'admission du scénario S017 à renseigner au format AAAA-MM-JJ et qui doit être inférieur ou égale de moins 19 jours par rapport la date du jour**"}]
[{"$f":"'Fichier de paramétrage vierge'!A951&Bénéficiaires!S69","v":"DATE_ADMISSION_S017="}]
[]
[{"$f":"'Fichier de paramétrage vierge'!A953","v":"****** Bénéficiaire du scénario S018 avec des droits ouverts et bénéficie d’un contrat responsable ******"}]
[{"$f":"'Fichier de paramétrage vierge'!A954&Bénéficiaires!T55","v":"ODR_S018_NIR="}]
[{"$f":"'Fichier de paramétrage vierge'!A955&Bénéficiaires!T56","v":"ODR_S018_CLE_NIR="}]
[{"$f":"'Fichier de paramétrage vierge'!A956&Bénéficiaires!T57","v":"ODR_S018_CODE_REGIME_AMO="}]
[{"$f":"'Fichier de paramétrage vierge'!A957&Bénéficiaires!T58","v":"ODR_S018_CODE_CAISSE_AMO="}]
[{"$f":"'Fichier de paramétrage vierge'!A958&Bénéficiaires!T59","v":"ODR_S018_CODE_CENTRE_AMO="}]
[{"$f":"'Fichier de paramétrage vierge'!A959&Bénéficiaires!T65","v":"BENEF_S018_DATE_NAISSANCE="}]
[{"$f":"'Fichier de paramétrage vierge'!A960&Bénéficiaires!T66","v":"BENEF_S018_RANG_NAISSANCE="}]
[{"$f":"'Fichier de paramétrage vierge'!A961&Bénéficiaires!T61","v":"BENEF_S018_NOM="}]
[{"$f":"'Fichier de paramétrage vierge'!A962&Bénéficiaires!T62","v":"BENEF_S018_PRENOM="}]
[{"$f":"'Fichier de paramétrage vierge'!A963&Bénéficiaires!T63","v":"BENEF_S018_NIR="}]
[{"$f":"'Fichier de paramétrage vierge'!A964&Bénéficiaires!T64","v":"BENEF_S018_CLE_NIR="}]
[{"$f":"'Fichier de paramétrage vierge'!A965&Bénéficiaires!T52","v":"BENEF_S018_AMC_NUM_AMC="}]
[{"$f":"'Fichier de paramétrage vierge'!A966&Bénéficiaires!T60","v":"BENEF_S018_NUM_ADHERENT="}]
[{"$f":"'Fichier de paramétrage vierge'!A967&Bénéficiaires!T53","v":"BENEF_S018_AMC_TYPE_CONV="}]
[{"$f":"'Fichier de paramétrage vierge'!A968&Bénéficiaires!T54","v":"BENEF_S018_AMC_CSR="}]
[{"$f":"'Fichier de paramétrage vierge'!A969&Bénéficiaires!T67","v":"BENEF_S018_DATE_DEB_DROITS="}]
[{"$f":"'Fichier de paramétrage vierge'!A970&Bénéficiaires!T68","v":"BENEF_S018_DATE_RAD="}]
[{"$f":"'Fichier de paramétrage vierge'!A971","v":"**Date d'admission du scénario S018 à renseigner au format AAAA-MM-JJ et qui doit être inférieur ou égale de moins 3 jours par rapport la date du jour**"}]
[{"$f":"'Fichier de paramétrage vierge'!A972&Bénéficiaires!T69","v":"DATE_ADMISSION_S018="}]
[]
[{"$f":"'Fichier de paramétrage vierge'!A974","v":"**Les variables suivantes ne doivent pas être modifiées par l'AMC**"}]
[{"$f":"'Fichier de paramétrage vierge'!A975","v":"certName=ETS_01"}]
[{"$f":"'Fichier de paramétrage vierge'!A976","v":"xml_flux="}]
[{"$f":"'Fichier de paramétrage vierge'!A977","v":"assertion="}]

{"sheet":"Fichier de paramétrage vierge","index":10,"n_rows":977,"n_cols":1,"rows_kept":977,"cut":false,"hidden":true,"merged":[]}
["**Endpoint à renseigner par l'AMC**"]
["endpointIDB="]
["endpointCLC="]
["endpointSIM="]
["endpointDEL="]
[]
["**Repertoire où se trouve le dossier de test. /!\\ Mettre deux \\ en fin de ligne. **"]
["**Exemple : xml_repertoire=MonRepertoire\\Simulateur ETS\\CasDeTestsAMC\\\\**"]
["xml_repertoire="]
[]
["**Toutes les informations sur les bénéficiaires doivent être renseignées ici**"]
[]
["****** CAS TRANSVERSE *****"]
[]
["****** Bénéficiaire classique assuré depuis plus de 365 jours ******"]
["ODR_01_NIR="]
["ODR_01_CLE_NIR="]
["ODR_01_CODE_REGIME_AMO="]
["ODR_01_CODE_CAISSE_AMO="]
["ODR_01_CODE_CENTRE_AMO="]
["BENEF_01_DATE_NAISSANCE="]
["BENEF_01_RANG_NAISSANCE="]
["BENEF_01_NOM="]
["BENEF_01_PRENOM="]
["BENEF_01_NIR="]
["BENEF_01_CLE_NIR="]
["BENEF_01_AMC_NUM_AMC="]
["BENEF_01_NUM_ADHERENT="]
["BENEF_01_AMC_TYPE_CONV="]
["BENEF_01_AMC_CSR="]
["BENEF_01_DATE_DEB_DROITS="]
["BENEF_01_DATE_RAD="]
[]
["****** Bénéficiaire dont le contrat est résilié ******"]
["ODR_02_NIR="]
["ODR_02_CLE_NIR="]
["ODR_02_CODE_REGIME_AMO="]
["ODR_02_CODE_CAISSE_AMO="]
["ODR_02_CODE_CENTRE_AMO="]
["BENEF_02_DATE_NAISSANCE="]
["BENEF_02_RANG_NAISSANCE="]
["BENEF_02_NOM="]
["BENEF_02_PRENOM="]
["BENEF_02_NIR="]
["BENEF_02_CLE_NIR="]
["BENEF_02_AMC_NUM_AMC="]
["BENEF_02_NUM_ADHERENT="]
["BENEF_02_AMC_TYPE_CONV="]
["BENEF_02_AMC_CSR="]
["BENEF_02_DATE_DEB_DROITS="]
["BENEF_02_DATE_RAD="]
[]
["****** Bénéficiaire avec un enfant présent sur le contrat de la mère (Ouvrant-droit celui du père) ******"]
["ODR_03_NIR="]
["ODR_03_CLE_NIR="]
["ODR_03_CODE_REGIME_AMO="]
["ODR_03_CODE_CAISSE_AMO="]
["ODR_03_CODE_CENTRE_AMO="]
["BENEF_03_DATE_NAISSANCE="]
["BENEF_03_RANG_NAISSANCE="]
["BENEF_03_NOM="]
["BENEF_03_PRENOM="]
["BENEF_03_NIR="]
["BENEF_03_CLE_NIR="]
["BENEF_03_AMC_NUM_AMC="]
["BENEF_03_NUM_ADHERENT="]
["BENEF_03_AMC_TYPE_CONV="]
["BENEF_03_AMC_CSR="]
["BENEF_03_DATE_DEB_DROITS="]
["BENEF_03_DATE_RAD="]
[]
["****** Bénéficiaire avec un enfant présent sur le contrat du père (Ouvrant-droit celui de la mère) ******"]
["ODR_04_NIR="]
["ODR_04_CLE_NIR="]
["ODR_04_CODE_REGIME_AMO="]
["ODR_04_CODE_CAISSE_AMO="]
["ODR_04_CODE_CENTRE_AMO="]
["BENEF_04_DATE_NAISSANCE="]
["BENEF_04_RANG_NAISSANCE="]
["BENEF_04_NOM="]
["BENEF_04_PRENOM="]
["BENEF_04_NIR="]
["BENEF_04_CLE_NIR="]
["BENEF_04_AMC_NUM_AMC="]
["BENEF_04_NUM_ADHERENT="]
["BENEF_04_AMC_TYPE_CONV="]
["BENEF_04_AMC_CSR="]
["BENEF_04_DATE_DEB_DROITS="]
["BENEF_04_DATE_RAD="]
[]
["****** Bénéficiaire classique, l'ouvrant droit et le bénéficiaire de soins sont la même personne, la date de fin de contrat est connue et postérieure au jour de l'admission + 15 jours ******"]
["ODR_05_NIR="]
["ODR_05_CLE_NIR="]
["ODR_05_CODE_REGIME_AMO="]
["ODR_05_CODE_CAISSE_AMO="]
["ODR_05_CODE_CENTRE_AMO="]
["BENEF_05_DATE_NAISSANCE="]
["BENEF_05_RANG_NAISSANCE="]
["BENEF_05_NOM="]
["BENEF_05_PRENOM="]
["BENEF_05_NIR="]
["BENEF_05_CLE_NIR="]
["BENEF_05_AMC_NUM_AMC="]
["BENEF_05_NUM_ADHERENT="]
["BENEF_05_AMC_TYPE_CONV="]
["BENEF_05_AMC_CSR="]
["BENEF_05_DATE_DEB_DROITS="]
["BENEF_05_DATE_RAD="]
["**Date d'admission à renseigner au format AAAA-MM-JJ avec une date de fin de contrat est connue et postérieure au jour de l'admission + 15 jours **"]
["DATE_ADMISSION_BENEF_05="]
[]
["****** Bénéficiaire classique assuré de plus de 365 jours, l'ouvrant droit et le bénéficiaire de soins sont la même personne, la date d'échéance de renouvellement égale à  la date d'admission + 5 jours ******"]
["ODR_06_NIR="]
["ODR_06_CLE_NIR="]
["ODR_06_CODE_REGIME_AMO="]
["ODR_06_CODE_CAISSE_AMO="]
["ODR_06_CODE_CENTRE_AMO="]
["BENEF_06_DATE_NAISSANCE="]
["BENEF_06_RANG_NAISSANCE="]
["BENEF_06_NOM="]
["BENEF_06_PRENOM="]
["BENEF_06_NIR="]
["BENEF_06_CLE_NIR="]
["BENEF_06_AMC_NUM_AMC="]
["BENEF_06_NUM_ADHERENT="]
["BENEF_06_AMC_TYPE_CONV="]
["BENEF_06_AMC_CSR="]
["BENEF_06_DATE_DEB_DROITS="]
["BENEF_06_DATE_RAD="]
["**Date d'admission à renseigner au format AAAA-MM-JJ avec une date d'échéance de renouvellement  égale à la  date d'admission + 5 jours **"]
["DATE_ADMISSION_BENEF_06="]
[]
["****** Bénéficiaire avec un contrat suspendu depuis J-7 ******"]
["ODR_07_NIR="]
["ODR_07_CLE_NIR="]
["ODR_07_CODE_REGIME_AMO="]
["ODR_07_CODE_CAISSE_AMO="]
["ODR_07_CODE_CENTRE_AMO="]
["BENEF_07_DATE_NAISSANCE="]
["BENEF_07_RANG_NAISSANCE="]
["BENEF_07_NOM="]
["BENEF_07_PRENOM="]
["BENEF_07_NIR="]
["BENEF_07_CLE_NIR="]
["BENEF_07_AMC_NUM_AMC="]
["BENEF_07_NUM_ADHERENT="]
["BENEF_07_AMC_TYPE_CONV="]
["BENEF_07_AMC_CSR="]
["BENEF_07_DATE_DEB_DROITS="]
["BENEF_07_DATE_RAD="]
[]
["****** Bénéficiaire avec des droits ouverts le jour de la demande, mais une date de fin de contrat connue à J+3 ******"]
["ODR_08_NIR="]
["ODR_08_CLE_NIR="]
["ODR_08_CODE_REGIME_AMO="]
["ODR_08_CODE_CAISSE_AMO="]
["ODR_08_CODE_CENTRE_AMO="]
["BENEF_08_DATE_NAISSANCE="]
["BENEF_08_RANG_NAISSANCE="]
["BENEF_08_NOM="]
["BENEF_08_PRENOM="]
["BENEF_08_NIR="]
["BENEF_08_CLE_NIR="]
["BENEF_08_AMC_NUM_AMC="]
["BENEF_08_NUM_ADHERENT="]
["BENEF_08_AMC_TYPE_CONV="]
["BENEF_08_AMC_CSR="]
["BENEF_08_DATE_DEB_DROITS="]
["BENEF_08_DATE_RAD="]
["**Date d'admission à renseigner au format AAAA-MM-JJ avec les droits ouverts à la date d'admission et une date de fin de contrat à date d'admission + 3 jours**"]
["DATE_ADMISSION_BENEF_08="]
[]
["****** Bénéficiaire inconnu par l'AMC ******"]
["** BENEF_09 pré-renseigné dans le projet SoapUi **"]
[]
["****** Bénéficiaire avec un enfant présent sur le contrat du père (Ouvrant-droit celui du père) ******"]
["ODR_10_NIR="]
["ODR_10_CLE_NIR="]
["ODR_10_CODE_REGIME_AMO="]
["ODR_10_CODE_CAISSE_AMO="]
["ODR_10_CODE_CENTRE_AMO="]
["BENEF_10_DATE_NAISSANCE="]
["BENEF_10_RANG_NAISSANCE="]
["BENEF_10_NOM="]
["BENEF_10_PRENOM="]
["BENEF_10_NIR="]
["BENEF_10_CLE_NIR="]
["BENEF_10_AMC_NUM_AMC="]
["BENEF_10_NUM_ADHERENT="]
["BENEF_10_AMC_TYPE_CONV="]
["BENEF_10_AMC_CSR="]
["BENEF_10_DATE_DEB_DROITS="]
["BENEF_10_DATE_RAD="]
[]
["****** Bénéficiaire avec une date de début de contrat postérieure à la date d’admission ******"]
["ODR_11_NIR="]
["ODR_11_CLE_NIR="]
["ODR_11_CODE_REGIME_AMO="]
["ODR_11_CODE_CAISSE_AMO="]
["ODR_11_CODE_CENTRE_AMO="]
["BENEF_11_DATE_NAISSANCE="]
["BENEF_11_RANG_NAISSANCE="]
["BENEF_11_NOM="]
["BENEF_11_PRENOM="]
["BENEF_11_NIR="]
["BENEF_11_CLE_NIR="]
["BENEF_11_AMC_NUM_AMC="]
["BENEF_11_NUM_ADHERENT="]
["BENEF_11_AMC_TYPE_CONV="]
["BENEF_11_AMC_CSR="]
["BENEF_11_DATE_DEB_DROITS="]
["BENEF_11_DATE_RAD="]
[]
["****** SCÉNARIO ACE *****"]
[]
["****** Bénéficiaire du scénario A001 avec des droits ouverts et bénéficie d’un contrat responsable ******"]
["ODR_A001_NIR="]
["ODR_A001_CLE_NIR="]
["ODR_A001_CODE_REGIME_AMO="]
["ODR_A001_CODE_CAISSE_AMO="]
["ODR_A001_CODE_CENTRE_AMO="]
["BENEF_A001_DATE_NAISSANCE="]
["BENEF_A001_RANG_NAISSANCE="]
["BENEF_A001_NOM="]
["BENEF_A001_PRENOM="]
["BENEF_A001_NIR="]
["BENEF_A001_CLE_NIR="]
["BENEF_A001_AMC_NUM_AMC="]
["BENEF_A001_NUM_ADHERENT="]
["BENEF_A001_AMC_TYPE_CONV="]
["BENEF_A001_AMC_CSR="]
["BENEF_A001_DATE_DEB_DROITS="]
["BENEF_A001_DATE_RAD="]
["**Date d'admission du scénario A001 à renseigner au format AAAA-MM-JJ et qui doit être inférieur ou égale à la date du jour**"]
["DATE_ADMISSION_A001="]
[]
["****** Bénéficiaire du scénario A002 avec des droits ouverts et bénéficie d’un contrat responsable ******"]
["ODR_A002_NIR="]
["ODR_A002_CLE_NIR="]
["ODR_A002_CODE_REGIME_AMO="]
["ODR_A002_CODE_CAISSE_AMO="]
["ODR_A002_CODE_CENTRE_AMO="]
["BENEF_A002_DATE_NAISSANCE="]
["BENEF_A002_RANG_NAISSANCE="]
["BENEF_A002_NOM="]
["BENEF_A002_PRENOM="]
["BENEF_A002_NIR="]
["BENEF_A002_CLE_NIR="]
["BENEF_A002_AMC_NUM_AMC="]
["BENEF_A002_NUM_ADHERENT="]
["BENEF_A002_AMC_TYPE_CONV="]
["BENEF_A002_AMC_CSR="]
["BENEF_A002_DATE_DEB_DROITS="]
["BENEF_A002_DATE_RAD="]
["**Date d'admission du scénario A002 à renseigner au format AAAA-MM-JJ et qui doit être inférieur ou égale à la date du jour**"]
["DATE_ADMISSION_A002="]
[]
["****** Bénéficiaire du scénario A003 avec des droits ouverts et bénéficie d’un contrat responsable ******"]
["ODR_A003_NIR="]
["ODR_A003_CLE_NIR="]
["ODR_A003_CODE_REGIME_AMO="]
["ODR_A003_CODE_CAISSE_AMO="]
["ODR_A003_CODE_CENTRE_AMO="]
["BENEF_A003_DATE_NAISSANCE="]
["BENEF_A003_RANG_NAISSANCE="]
["BENEF_A003_NOM="]
["BENEF_A003_PRENOM="]
["BENEF_A003_NIR="]
["BENEF_A003_CLE_NIR="]
["BENEF_A003_AMC_NUM_AMC="]
["BENEF_A003_NUM_ADHERENT="]
["BENEF_A003_AMC_TYPE_CONV="]
["BENEF_A003_AMC_CSR="]
["BENEF_A003_DATE_DEB_DROITS="]
["BENEF_A003_DATE_RAD="]
["**Date d'admission du scénario A003 à renseigner au format AAAA-MM-JJ et qui doit être inférieur ou égale à la date du jour**"]
["DATE_ADMISSION_A003="]
[]
["****** Bénéficiaire du scénario A004 avec des droits ouverts et bénéficie d’un contrat responsable ******"]
["ODR_A004_NIR="]
["ODR_A004_CLE_NIR="]
["ODR_A004_CODE_REGIME_AMO="]
["ODR_A004_CODE_CAISSE_AMO="]
["ODR_A004_CODE_CENTRE_AMO="]
["BENEF_A004_DATE_NAISSANCE="]
["BENEF_A004_RANG_NAISSANCE="]
["BENEF_A004_NOM="]
["BENEF_A004_PRENOM="]
["BENEF_A004_NIR="]
["BENEF_A004_CLE_NIR="]
["BENEF_A004_AMC_NUM_AMC="]
["BENEF_A004_NUM_ADHERENT="]
["BENEF_A004_AMC_TYPE_CONV="]
["BENEF_A004_AMC_CSR="]
["BENEF_A004_DATE_DEB_DROITS="]
["BENEF_A004_DATE_RAD="]
["**Date d'admission du scénario A004 à renseigner au format AAAA-MM-JJ et qui doit être inférieur ou égale à la date du jour**"]
["DATE_ADMISSION_A004="]
[]
["****** Bénéficiaire du scénario A005 avec des droits ouverts et bénéficie d’un contrat responsable ******"]
["ODR_A005_NIR="]
["ODR_A005_CLE_NIR="]
["ODR_A005_CODE_REGIME_AMO="]
["ODR_A005_CODE_CAISSE_AMO="]
["ODR_A005_CODE_CENTRE_AMO="]
["BENEF_A005_DATE_NAISSANCE="]
["BENEF_A005_RANG_NAISSANCE="]
["BENEF_A005_NOM="]
["BENEF_A005_PRENOM="]
["BENEF_A005_NIR="]
["BENEF_A005_CLE_NIR="]
["BENEF_A005_AMC_NUM_AMC="]
["BENEF_A005_NUM_ADHERENT="]
["BENEF_A005_AMC_TYPE_CONV="]
["BENEF_A005_AMC_CSR="]
["BENEF_A005_DATE_DEB_DROITS="]
["BENEF_A005_DATE_RAD="]
["**Date d'admission du scénario A005 à renseigner au format AAAA-MM-JJ et qui doit être inférieur ou égale à la date du jour**"]
["DATE_ADMISSION_A005="]
[]
["****** Bénéficiaire du scénario A006 avec des droits ouverts et bénéficie d’un contrat responsable ******"]
["ODR_A006_NIR="]
["ODR_A006_CLE_NIR="]
["ODR_A006_CODE_REGIME_AMO="]
["ODR_A006_CODE_CAISSE_AMO="]
["ODR_A006_CODE_CENTRE_AMO="]
["BENEF_A006_DATE_NAISSANCE="]
["BENEF_A006_RANG_NAISSANCE="]
["BENEF_A006_NOM="]
["BENEF_A006_PRENOM="]
["BENEF_A006_NIR="]
["BENEF_A006_CLE_NIR="]
["BENEF_A006_AMC_NUM_AMC="]
["BENEF_A006_NUM_ADHERENT="]
["BENEF_A006_AMC_TYPE_CONV="]
["BENEF_A006_AMC_CSR="]
["BENEF_A006_DATE_DEB_DROITS="]
["BENEF_A006_DATE_RAD="]
["**Date d'admission du scénario A006 à renseigner au format AAAA-MM-JJ et qui doit être inférieur ou égale de moins 30 jours par rapport la date du jour**"]
["DATE_ADMISSION_A006="]
[]
["****** Bénéficiaire du scénario A007 avec des droits ouverts sur une partie de la période et bénéficie d’un contrat responsable ******"]
["ODR_A007_NIR="]
["ODR_A007_CLE_NIR="]
["ODR_A007_CODE_REGIME_AMO="]
["ODR_A007_CODE_CAISSE_AMO="]
["ODR_A007_CODE_CENTRE_AMO="]
["BENEF_A007_DATE_NAISSANCE="]
["BENEF_A007_RANG_NAISSANCE="]
["BENEF_A007_NOM="]
["BENEF_A007_PRENOM="]
["BENEF_A007_NIR="]
["BENEF_A007_CLE_NIR="]
["BENEF_A007_AMC_NUM_AMC="]
["BENEF_A007_NUM_ADHERENT="]
["BENEF_A007_AMC_TYPE_CONV="]
["BENEF_A007_AMC_CSR="]
["BENEF_A007_DATE_DEB_DROITS="]
["BENEF_A007_DATE_RAD="]
["**Date d'admission du scénario A007 à renseigner au format AAAA-MM-JJ et qui doit être inférieur ou égale de moins 30 jours par rapport la date du jour**"]
["DATE_ADMISSION_A007="]
[]
["****** Bénéficiaire du scénario A008 avec des droits ouverts et bénéficie d’un contrat responsable ******"]
["ODR_A008_NIR="]
["ODR_A008_CLE_NIR="]
["ODR_A008_CODE_REGIME_AMO="]
["ODR_A008_CODE_CAISSE_AMO="]
["ODR_A008_CODE_CENTRE_AMO="]
["BENEF_A008_DATE_NAISSANCE="]
["BENEF_A008_RANG_NAISSANCE="]
["BENEF_A008_NOM="]
["BENEF_A008_PRENOM="]
["BENEF_A008_NIR="]
["BENEF_A008_CLE_NIR="]
["BENEF_A008_AMC_NUM_AMC="]
["BENEF_A008_NUM_ADHERENT="]
["BENEF_A008_AMC_TYPE_CONV="]
["BENEF_A008_AMC_CSR="]
["BENEF_A008_DATE_DEB_DROITS="]
["BENEF_A008_DATE_RAD="]
["**Date d'admission du scénario A008 à renseigner au format AAAA-MM-JJ et qui doit être inférieur ou égale à la date du jour**"]
["DATE_ADMISSION_A008="]
[]
["****** Bénéficiaire du scénario A009 avec des droits ouverts et bénéficie d’un contrat responsable ******"]
["ODR_A009_NIR="]
["ODR_A009_CLE_NIR="]
["ODR_A009_CODE_REGIME_AMO="]
["ODR_A009_CODE_CAISSE_AMO="]
["ODR_A009_CODE_CENTRE_AMO="]
["BENEF_A009_DATE_NAISSANCE="]
["BENEF_A009_RANG_NAISSANCE="]
["BENEF_A009_NOM="]
["BENEF_A009_PRENOM="]
["BENEF_A009_NIR="]
["BENEF_A009_CLE_NIR="]
["BENEF_A009_AMC_NUM_AMC="]
["BENEF_A009_NUM_ADHERENT="]
["BENEF_A009_AMC_TYPE_CONV="]
["BENEF_A009_AMC_CSR="]
["BENEF_A009_DATE_DEB_DROITS="]
["BENEF_A009_DATE_RAD="]
["**Date d'admission du scénario A009 à renseigner au format AAAA-MM-JJ et qui doit être inférieur ou égale de moins 30 jours par rapport la date du jour**"]
["DATE_ADMISSION_A009="]
[]
["****** Bénéficiaire du scénario A010 avec des droits ouverts et bénéficie d’un contrat responsable ******"]
["ODR_A010_NIR="]
["ODR_A010_CLE_NIR="]
["ODR_A010_CODE_REGIME_AMO="]
["ODR_A010_CODE_CAISSE_AMO="]
["ODR_A010_CODE_CENTRE_AMO="]
["BENEF_A010_DATE_NAISSANCE="]
["BENEF_A010_RANG_NAISSANCE="]
["BENEF_A010_NOM="]
["BENEF_A010_PRENOM="]
["BENEF_A010_NIR="]
["BENEF_A010_CLE_NIR="]
["BENEF_A010_AMC_NUM_AMC="]
["BENEF_A010_NUM_ADHERENT="]
["BENEF_A010_AMC_TYPE_CONV="]
["BENEF_A010_AMC_CSR="]
["BENEF_A010_DATE_DEB_DROITS="]
["BENEF_A010_DATE_RAD="]
["**Date d'admission du scénario A010 à renseigner au format AAAA-MM-JJ et qui doit être inférieur ou égale de moins 30 jours par rapport la date du jour**"]
["DATE_ADMISSION_A010="]
[]
["****** Bénéficiaire du scénario A011 avec des droits ouverts et bénéficiant d’un contrat non responsable ******"]
["ODR_A011_NIR="]
["ODR_A011_CLE_NIR="]
["ODR_A011_CODE_REGIME_AMO="]
["ODR_A011_CODE_CAISSE_AMO="]
["ODR_A011_CODE_CENTRE_AMO="]
["BENEF_A011_DATE_NAISSANCE="]
["BENEF_A011_RANG_NAISSANCE="]
["BENEF_A011_NOM="]
["BENEF_A011_PRENOM="]
["BENEF_A011_NIR="]
["BENEF_A011_CLE_NIR="]
["BENEF_A011_AMC_NUM_AMC="]
["BENEF_A011_NUM_ADHERENT="]
["BENEF_A011_AMC_TYPE_CONV="]
["BENEF_A011_AMC_CSR="]
["BENEF_A011_DATE_DEB_DROITS="]
["BENEF_A011_DATE_RAD="]
["**Date d'admission du scénario A011 à renseigner au format AAAA-MM-JJ et qui doit être inférieur ou égale à la date du jour**"]
["DATE_ADMISSION_A011="]
[]
["****** Bénéficiaire du scénario A012 avec des droits ouverts et bénéficiant d’un contrat non responsable ******"]
["ODR_A012_NIR="]
["ODR_A012_CLE_NIR="]
["ODR_A012_CODE_REGIME_AMO="]
["ODR_A012_CODE_CAISSE_AMO="]
["ODR_A012_CODE_CENTRE_AMO="]
["BENEF_A012_DATE_NAISSANCE="]
["BENEF_A012_RANG_NAISSANCE="]
["BENEF_A012_NOM="]
["BENEF_A012_PRENOM="]
["BENEF_A012_NIR="]
["BENEF_A012_CLE_NIR="]
["BENEF_A012_AMC_NUM_AMC="]
["BENEF_A012_NUM_ADHERENT="]
["BENEF_A012_AMC_TYPE_CONV="]
["BENEF_A012_AMC_CSR="]
["BENEF_A012_DATE_DEB_DROITS="]
["BENEF_A012_DATE_RAD="]
["**Date d'admission du scénario A012 à renseigner au format AAAA-MM-JJ et qui doit être inférieur ou égale à la date du jour**"]
["DATE_ADMISSION_A012="]
[]
["****** Bénéficiaire du scénario A013 avec des droits ouverts et bénéficie d’un contrat responsable ******"]
["ODR_A013_NIR="]
["ODR_A013_CLE_NIR="]
["ODR_A013_CODE_REGIME_AMO="]
["ODR_A013_CODE_CAISSE_AMO="]
["ODR_A013_CODE_CENTRE_AMO="]
["BENEF_A013_DATE_NAISSANCE="]
["BENEF_A013_RANG_NAISSANCE="]
["BENEF_A013_NOM="]
["BENEF_A013_PRENOM="]
["BENEF_A013_NIR="]
["BENEF_A013_CLE_NIR="]
["BENEF_A013_AMC_NUM_AMC="]
["BENEF_A013_NUM_ADHERENT="]
["BENEF_A013_AMC_TYPE_CONV="]
["BENEF_A013_AMC_CSR="]
["BENEF_A013_DATE_DEB_DROITS="]
["BENEF_A013_DATE_RAD="]
["**Date d'admission du scénario A013 à renseigner au format AAAA-MM-JJ et qui doit être inférieur ou égale à la date du jour**"]
["DATE_ADMISSION_A013="]
[]
["****** Bénéficiaire du scénario A014 avec des droits ouverts et bénéficie d’un contrat responsable ******"]
["ODR_A014_NIR="]
["ODR_A014_CLE_NIR="]
["ODR_A014_CODE_REGIME_AMO="]
["ODR_A014_CODE_CAISSE_AMO="]
["ODR_A014_CODE_CENTRE_AMO="]
["BENEF_A014_DATE_NAISSANCE="]
["BENEF_A014_RANG_NAISSANCE="]
["BENEF_A014_NOM="]
["BENEF_A014_PRENOM="]
["BENEF_A014_NIR="]
["BENEF_A014_CLE_NIR="]
["BENEF_A014_AMC_NUM_AMC="]
["BENEF_A014_NUM_ADHERENT="]
["BENEF_A014_AMC_TYPE_CONV="]
["BENEF_A014_AMC_CSR="]
["BENEF_A014_DATE_DEB_DROITS="]
["BENEF_A014_DATE_RAD="]
["**Date d'admission du scénario A014 à renseigner au format AAAA-MM-JJ et qui doit être inférieur ou égale à la date du jour**"]
["DATE_ADMISSION_A014="]
[]
["****** Bénéficiaire du scénario A015 avec des droits ouverts et bénéficie d’un contrat responsable ******"]
["ODR_A015_NIR="]
["ODR_A015_CLE_NIR="]
["ODR_A015_CODE_REGIME_AMO="]
["ODR_A015_CODE_CAISSE_AMO="]
["ODR_A015_CODE_CENTRE_AMO="]
["BENEF_A015_DATE_NAISSANCE="]
["BENEF_A015_RANG_NAISSANCE="]
["BENEF_A015_NOM="]
["BENEF_A015_PRENOM="]
["BENEF_A015_NIR="]
["BENEF_A015_CLE_NIR="]
["BENEF_A015_AMC_NUM_AMC="]
["BENEF_A015_NUM_ADHERENT="]
["BENEF_A015_AMC_TYPE_CONV="]
["BENEF_A015_AMC_CSR="]
["BENEF_A015_DATE_DEB_DROITS="]
["BENEF_A015_DATE_RAD="]
["**Date d'admission du scénario A015 à renseigner au format AAAA-MM-JJ et qui doit être inférieur ou égale à la date du jour**"]
["DATE_ADMISSION_A015="]
[]
["****** Bénéficiaire du scénario A016 avec des droits ouverts et bénéficie d’un contrat responsable ******"]
["ODR_A016_NIR="]
["ODR_A016_CLE_NIR="]
["ODR_A016_CODE_REGIME_AMO="]
["ODR_A016_CODE_CAISSE_AMO="]
["ODR_A016_CODE_CENTRE_AMO="]
["BENEF_A016_DATE_NAISSANCE="]
["BENEF_A016_RANG_NAISSANCE="]
["BENEF_A016_NOM="]
["BENEF_A016_PRENOM="]
["BENEF_A016_NIR="]
["BENEF_A016_CLE_NIR="]
["BENEF_A016_AMC_NUM_AMC="]
["BENEF_A016_NUM_ADHERENT="]
["BENEF_A016_AMC_TYPE_CONV="]
["BENEF_A016_AMC_CSR="]
["BENEF_A016_DATE_DEB_DROITS="]
["BENEF_A016_DATE_RAD="]
["**Date d'admission du scénario A016 à renseigner au format AAAA-MM-JJ et qui doit être inférieur ou égale à la date du jour**"]
["DATE_ADMISSION_A016="]
[]
["****** Bénéficiaire du scénario A017 avec des droits ouverts et bénéficie d’un contrat responsable ******"]
["ODR_A017_NIR="]
["ODR_A017_CLE_NIR="]
["ODR_A017_CODE_REGIME_AMO="]
["ODR_A017_CODE_CAISSE_AMO="]
["ODR_A017_CODE_CENTRE_AMO="]
["BENEF_A017_DATE_NAISSANCE="]
["BENEF_A017_RANG_NAISSANCE="]
["BENEF_A017_NOM="]
["BENEF_A017_PRENOM="]
["BENEF_A017_NIR="]
["BENEF_A017_CLE_NIR="]
["BENEF_A017_AMC_NUM_AMC="]
["BENEF_A017_NUM_ADHERENT="]
["BENEF_A017_AMC_TYPE_CONV="]
["BENEF_A017_AMC_CSR="]
["BENEF_A017_DATE_DEB_DROITS="]
["BENEF_A017_DATE_RAD="]
["**Date d'admission du scénario A017 à renseigner au format AAAA-MM-JJ et qui doit être inférieur ou égale à la date du jour**"]
["DATE_ADMISSION_A017="]
[]
["****** Bénéficiaire du scénario A018 avec des droits ouverts et bénéficie d’un contrat responsable ******"]
["ODR_A018_NIR="]
["ODR_A018_CLE_NIR="]
["ODR_A018_CODE_REGIME_AMO="]
["ODR_A018_CODE_CAISSE_AMO="]
["ODR_A018_CODE_CENTRE_AMO="]
["BENEF_A018_DATE_NAISSANCE="]
["BENEF_A018_RANG_NAISSANCE="]
["BENEF_A018_NOM="]
["BENEF_A018_PRENOM="]
["BENEF_A018_NIR="]
["BENEF_A018_CLE_NIR="]
["BENEF_A018_AMC_NUM_AMC="]
["BENEF_A018_NUM_ADHERENT="]
["BENEF_A018_AMC_TYPE_CONV="]
["BENEF_A018_AMC_CSR="]
["BENEF_A018_DATE_DEB_DROITS="]
["BENEF_A018_DATE_RAD="]
["**Date d'admission du scénario A018 à renseigner au format AAAA-MM-JJ et qui doit être inférieur ou égale à la date du jour**"]
["DATE_ADMISSION_A018="]
[]
["****** Bénéficiaire du scénario A019 avec des droits ouverts et bénéficie d’un contrat responsable ******"]
["ODR_A019_NIR="]
["ODR_A019_CLE_NIR="]
["ODR_A019_CODE_REGIME_AMO="]
["ODR_A019_CODE_CAISSE_AMO="]
["ODR_A019_CODE_CENTRE_AMO="]
["BENEF_A019_DATE_NAISSANCE="]
["BENEF_A019_RANG_NAISSANCE="]
["BENEF_A019_NOM="]
["BENEF_A019_PRENOM="]
["BENEF_A019_NIR="]
["BENEF_A019_CLE_NIR="]
["BENEF_A019_AMC_NUM_AMC="]
["BENEF_A019_NUM_ADHERENT="]
["BENEF_A019_AMC_TYPE_CONV="]
["BENEF_A019_AMC_CSR="]
["BENEF_A019_DATE_DEB_DROITS="]
["BENEF_A019_DATE_RAD="]
["**Date d'admission du scénario A019 à renseigner au format AAAA-MM-JJ et qui doit être inférieur ou égale à la date du jour**"]
["DATE_ADMISSION_A019="]
[]
["****** SCÉNARIO SEJOUR *****"]
[]
["****** Bénéficiaire du scénario S001 avec des droits ouverts et bénéficie d’un contrat responsable ******"]
["ODR_S001_NIR="]
["ODR_S001_CLE_NIR="]
["ODR_S001_CODE_REGIME_AMO="]
["ODR_S001_CODE_CAISSE_AMO="]
["ODR_S001_CODE_CENTRE_AMO="]
["BENEF_S001_DATE_NAISSANCE="]
["BENEF_S001_RANG_NAISSANCE="]
["BENEF_S001_NOM="]
["BENEF_S001_PRENOM="]
["BENEF_S001_NIR="]
["BENEF_S001_CLE_NIR="]
["BENEF_S001_AMC_NUM_AMC="]
["BENEF_S001_NUM_ADHERENT="]
["BENEF_S001_AMC_TYPE_CONV="]
["BENEF_S001_AMC_CSR="]
["BENEF_S001_DATE_DEB_DROITS="]
["BENEF_S001_DATE_RAD="]
["**Date d'admission du scénario S001 à renseigner au format AAAA-MM-JJ et qui doit être inférieur ou égale de moins 3 jours par rapport la date du jour**"]
["DATE_ADMISSION_S001="]
[]
["****** Bénéficiaire du scénario S002 avec des droits ouverts et bénéficiant d’un contrat non responsable ******"]
["ODR_S002_NIR="]
["ODR_S002_CLE_NIR="]
["ODR_S002_CODE_REGIME_AMO="]
["ODR_S002_CODE_CAISSE_AMO="]
["ODR_S002_CODE_CENTRE_AMO="]
["BENEF_S002_DATE_NAISSANCE="]
["BENEF_S002_RANG_NAISSANCE="]
["BENEF_S002_NOM="]
["BENEF_S002_PRENOM="]
["BENEF_S002_NIR="]
["BENEF_S002_CLE_NIR="]
["BENEF_S002_AMC_NUM_AMC="]
["BENEF_S002_NUM_ADHERENT="]
["BENEF_S002_AMC_TYPE_CONV="]
["BENEF_S002_AMC_CSR="]
["BENEF_S002_DATE_DEB_DROITS="]
["BENEF_S002_DATE_RAD="]
["**Date d'admission du scénario S002 à renseigner au format AAAA-MM-JJ et qui doit être inférieur ou égale de moins 3 jours par rapport la date du jour**"]
["DATE_ADMISSION_S002="]
[]
["****** Bénéficiaire du scénario S003 avec des droits ouverts et bénéficiant d’un contrat non responsable ******"]
["ODR_S003_NIR="]
["ODR_S003_CLE_NIR="]
["ODR_S003_CODE_REGIME_AMO="]
["ODR_S003_CODE_CAISSE_AMO="]
["ODR_S003_CODE_CENTRE_AMO="]
["BENEF_S003_DATE_NAISSANCE="]
["BENEF_S003_RANG_NAISSANCE="]
["BENEF_S003_NOM="]
["BENEF_S003_PRENOM="]
["BENEF_S003_NIR="]
["BENEF_S003_CLE_NIR="]
["BENEF_S003_AMC_NUM_AMC="]
["BENEF_S003_NUM_ADHERENT="]
["BENEF_S003_AMC_TYPE_CONV="]
["BENEF_S003_AMC_CSR="]
["BENEF_S003_DATE_DEB_DROITS="]
["BENEF_S003_DATE_RAD="]
["**Date d'admission du scénario S003 à renseigner au format AAAA-MM-JJ et qui doit être inférieur ou égale de moins 6 jours par rapport la date du jour**"]
["DATE_ADMISSION_S003="]
[]
["****** Bénéficiaire du scénario S004 avec un contrat valide. Le contrat est en cours et la date de fin de couverture est postérieure à la date de renouvellement d’échéance. La date de renouvellement d’échéance est fixée par l’AMC à J+3 (donnée non modifiable en test) ******"]
["ODR_S004_NIR="]
["ODR_S004_CLE_NIR="]
["ODR_S004_CODE_REGIME_AMO="]
["ODR_S004_CODE_CAISSE_AMO="]
["ODR_S004_CODE_CENTRE_AMO="]
["BENEF_S004_DATE_NAISSANCE="]
["BENEF_S004_RANG_NAISSANCE="]
["BENEF_S004_NOM="]
["BENEF_S004_PRENOM="]
["BENEF_S004_NIR="]
["BENEF_S004_CLE_NIR="]
["BENEF_S004_AMC_NUM_AMC="]
["BENEF_S004_NUM_ADHERENT="]
["BENEF_S004_AMC_TYPE_CONV="]
["BENEF_S004_AMC_CSR="]
["BENEF_S004_DATE_DEB_DROITS="]
["BENEF_S004_DATE_RAD="]
["**Date d'admission du scénario S004 à renseigner au format AAAA-MM-JJ et qui doit être inférieur ou égale de moins 4 jours par rapport la date du jour**"]
["DATE_ADMISSION_S004="]
[]
["****** Bénéficiaire du scénario S005 avec des droits ouverts et bénéficiant d’un contrat non responsable ******"]
["ODR_S005_NIR="]
["ODR_S005_CLE_NIR="]
["ODR_S005_CODE_REGIME_AMO="]
["ODR_S005_CODE_CAISSE_AMO="]
["ODR_S005_CODE_CENTRE_AMO="]
["BENEF_S005_DATE_NAISSANCE="]
["BENEF_S005_RANG_NAISSANCE="]
["BENEF_S005_NOM="]
["BENEF_S005_PRENOM="]
["BENEF_S005_NIR="]
["BENEF_S005_CLE_NIR="]
["BENEF_S005_AMC_NUM_AMC="]
["BENEF_S005_NUM_ADHERENT="]
["BENEF_S005_AMC_TYPE_CONV="]
["BENEF_S005_AMC_CSR="]
["BENEF_S005_DATE_DEB_DROITS="]
["BENEF_S005_DATE_RAD="]
["**Date d'admission du scénario S005 à renseigner au format AAAA-MM-JJ et qui doit être inférieur ou égale de moins 6 jours par rapport la date du jour**"]
["DATE_ADMISSION_S005="]
[]
["****** Bénéficiaire du scénario S006 avec des droits ouverts et bénéficiant d’un contrat non responsable ******"]
["ODR_S006_NIR="]
["ODR_S006_CLE_NIR="]
["ODR_S006_CODE_REGIME_AMO="]
["ODR_S006_CODE_CAISSE_AMO="]
["ODR_S006_CODE_CENTRE_AMO="]
["BENEF_S006_DATE_NAISSANCE="]
["BENEF_S006_RANG_NAISSANCE="]
["BENEF_S006_NOM="]
["BENEF_S006_PRENOM="]
["BENEF_S006_NIR="]
["BENEF_S006_CLE_NIR="]
["BENEF_S006_AMC_NUM_AMC="]
["BENEF_S006_NUM_ADHERENT="]
["BENEF_S006_AMC_TYPE_CONV="]
["BENEF_S006_AMC_CSR="]
["BENEF_S006_DATE_DEB_DROITS="]
["BENEF_S006_DATE_RAD="]
["**Date d'admission du scénario S006 à renseigner au format AAAA-MM-JJ et qui doit être inférieur ou égale de moins 35 jours par rapport la date du jour**"]
["DATE_ADMISSION_S006="]
[]
["****** Bénéficiaire du scénario S007 avec des droits ouverts et bénéficie d’un contrat responsable et affilié au régime Alsace Moselle ******"]
["ODR_S007_NIR="]
["ODR_S007_CLE_NIR="]
["ODR_S007_CODE_REGIME_AMO="]
["ODR_S007_CODE_CAISSE_AMO="]
["ODR_S007_CODE_CENTRE_AMO="]
["BENEF_S007_DATE_NAISSANCE="]
["BENEF_S007_RANG_NAISSANCE="]
["BENEF_S007_NOM="]
["BENEF_S007_PRENOM="]
["BENEF_S007_NIR="]
["BENEF_S007_CLE_NIR="]
["BENEF_S007_AMC_NUM_AMC="]
["BENEF_S007_NUM_ADHERENT="]
["BENEF_S007_AMC_TYPE_CONV="]
["BENEF_S007_AMC_CSR="]
["BENEF_S007_DATE_DEB_DROITS="]
["BENEF_S007_DATE_RAD="]
["**Date d'admission du scénario S007 à renseigner au format AAAA-MM-JJ et qui doit être inférieur ou égale de moins 4 jours par rapport la date du jour**"]
["DATE_ADMISSION_S007="]
[]
["****** Bénéficiaire du scénario S008 avec des droits ouverts et bénéficie d’un contrat responsable ******"]
["ODR_S008_NIR="]
["ODR_S008_CLE_NIR="]
["ODR_S008_CODE_REGIME_AMO="]
["ODR_S008_CODE_CAISSE_AMO="]
["ODR_S008_CODE_CENTRE_AMO="]
["BENEF_S008_DATE_NAISSANCE="]
["BENEF_S008_RANG_NAISSANCE="]
["BENEF_S008_NOM="]
["BENEF_S008_PRENOM="]
["BENEF_S008_NIR="]
["BENEF_S008_CLE_NIR="]
["BENEF_S008_AMC_NUM_AMC="]
["BENEF_S008_NUM_ADHERENT="]
["BENEF_S008_AMC_TYPE_CONV="]
["BENEF_S008_AMC_CSR="]
["BENEF_S008_DATE_DEB_DROITS="]
["BENEF_S008_DATE_RAD="]
["**Date d'admission du scénario S008 à renseigner au format AAAA-MM-JJ et qui doit être inférieur ou égale de moins 4 jours par rapport la date du jour**"]
["DATE_ADMISSION_S008="]
[]
["****** Bénéficiaire du scénario S009 est un enfant. L’ouvrant-droit bénéficie d’un contrat responsable, il comprend une garantie forfaits accompagnant ******"]
["ODR_S009_NIR="]
["ODR_S009_CLE_NIR="]
["ODR_S009_CODE_REGIME_AMO="]
["ODR_S009_CODE_CAISSE_AMO="]
["ODR_S009_CODE_CENTRE_AMO="]
["BENEF_S009_DATE_NAISSANCE="]
["BENEF_S009_RANG_NAISSANCE="]
["BENEF_S009_NOM="]
["BENEF_S009_PRENOM="]
["BENEF_S009_NIR="]
["BENEF_S009_CLE_NIR="]
["BENEF_S009_AMC_NUM_AMC="]
["BENEF_S009_NUM_ADHERENT="]
["BENEF_S009_AMC_TYPE_CONV="]
["BENEF_S009_AMC_CSR="]
["BENEF_S009_DATE_DEB_DROITS="]
["BENEF_S009_DATE_RAD="]
["**Date d'admission du scénario S009 à renseigner au format AAAA-MM-JJ et qui doit être inférieur ou égale de moins 1 jour par rapport la date du jour**"]
["DATE_ADMISSION_S009="]
[]
["****** Bénéficiaire du scénario S010 avec des droits ouverts et bénéficie d’un contrat responsable. Il comprend une garantie chambre particulière avec un plafond de 6 nuits ******"]
["ODR_S010_NIR="]
["ODR_S010_CLE_NIR="]
["ODR_S010_CODE_REGIME_AMO="]
["ODR_S010_CODE_CAISSE_AMO="]
["ODR_S010_CODE_CENTRE_AMO="]
["BENEF_S010_DATE_NAISSANCE="]
["BENEF_S010_RANG_NAISSANCE="]
["BENEF_S010_NOM="]
["BENEF_S010_PRENOM="]
["BENEF_S010_NIR="]
["BENEF_S010_CLE_NIR="]
["BENEF_S010_AMC_NUM_AMC="]
["BENEF_S010_NUM_ADHERENT="]
["BENEF_S010_AMC_TYPE_CONV="]
["BENEF_S010_AMC_CSR="]
["BENEF_S010_DATE_DEB_DROITS="]
["BENEF_S010_DATE_RAD="]
["**Date d'admission du scénario S010 à renseigner au format AAAA-MM-JJ et qui doit être inférieur ou égale de moins 7 jours par rapport la date du jour**"]
["DATE_ADMISSION_S010="]
[]
["****** Bénéficiaire du scénario S011 avec des droits ouverts et bénéficie d’un contrat responsable ******"]
["ODR_S011_NIR="]
["ODR_S011_CLE_NIR="]
["ODR_S011_CODE_REGIME_AMO="]
["ODR_S011_CODE_CAISSE_AMO="]
["ODR_S011_CODE_CENTRE_AMO="]
["BENEF_S011_DATE_NAISSANCE="]
["BENEF_S011_RANG_NAISSANCE="]
["BENEF_S011_NOM="]
["BENEF_S011_PRENOM="]
["BENEF_S011_NIR="]
["BENEF_S011_CLE_NIR="]
["BENEF_S011_AMC_NUM_AMC="]
["BENEF_S011_NUM_ADHERENT="]
["BENEF_S011_AMC_TYPE_CONV="]
["BENEF_S011_AMC_CSR="]
["BENEF_S011_DATE_DEB_DROITS="]
["BENEF_S011_DATE_RAD="]
["**Date d'admission du scénario S011 à renseigner au format AAAA-MM-JJ et qui doit être inférieur ou égale de moins 1 jour par rapport la date du jour**"]
["DATE_ADMISSION_S011="]
[]
["****** Bénéficiaire du scénario S012 avec des droits ouverts et bénéficie d’un contrat responsable ******"]
["ODR_S012_NIR="]
["ODR_S012_CLE_NIR="]
["ODR_S012_CODE_REGIME_AMO="]
["ODR_S012_CODE_CAISSE_AMO="]
["ODR_S012_CODE_CENTRE_AMO="]
["BENEF_S012_DATE_NAISSANCE="]
["BENEF_S012_RANG_NAISSANCE="]
["BENEF_S012_NOM="]
["BENEF_S012_PRENOM="]
["BENEF_S012_NIR="]
["BENEF_S012_CLE_NIR="]
["BENEF_S012_AMC_NUM_AMC="]
["BENEF_S012_NUM_ADHERENT="]
["BENEF_S012_AMC_TYPE_CONV="]
["BENEF_S012_AMC_CSR="]
["BENEF_S012_DATE_DEB_DROITS="]
["BENEF_S012_DATE_RAD="]
["**Date d'admission du scénario S012 à renseigner au format AAAA-MM-JJ et qui doit être inférieur ou égale de moins 1 jour par rapport la date du jour**"]
["DATE_ADMISSION_S012="]
[]
["****** Bénéficiaire du scénario S014 avec des droits ouverts et bénéficie d’un contrat responsable ******"]
["ODR_S014_NIR="]
["ODR_S014_CLE_NIR="]
["ODR_S014_CODE_REGIME_AMO="]
["ODR_S014_CODE_CAISSE_AMO="]
["ODR_S014_CODE_CENTRE_AMO="]
["BENEF_S014_DATE_NAISSANCE="]
["BENEF_S014_RANG_NAISSANCE="]
["BENEF_S014_NOM="]
["BENEF_S014_PRENOM="]
["BENEF_S014_NIR="]
["BENEF_S014_CLE_NIR="]
["BENEF_S014_AMC_NUM_AMC="]
["BENEF_S014_NUM_ADHERENT="]
["BENEF_S014_AMC_TYPE_CONV="]
["BENEF_S014_AMC_CSR="]
["BENEF_S014_DATE_DEB_DROITS="]
["BENEF_S014_DATE_RAD="]
["**Date d'admission du scénario S014 à renseigner au format AAAA-MM-JJ et qui doit être inférieur ou égale de moins 1 jour par rapport la date du jour**"]
["DATE_ADMISSION_S014="]
[]
["****** Bénéficiaire du scénario S015 avec des droits ouverts et bénéficie d’un contrat responsable ******"]
["ODR_S015_NIR="]
["ODR_S015_CLE_NIR="]
["ODR_S015_CODE_REGIME_AMO="]
["ODR_S015_CODE_CAISSE_AMO="]
["ODR_S015_CODE_CENTRE_AMO="]
["BENEF_S015_DATE_NAISSANCE="]
["BENEF_S015_RANG_NAISSANCE="]
["BENEF_S015_NOM="]
["BENEF_S015_PRENOM="]
["BENEF_S015_NIR="]
["BENEF_S015_CLE_NIR="]
["BENEF_S015_AMC_NUM_AMC="]
["BENEF_S015_NUM_ADHERENT="]
["BENEF_S015_AMC_TYPE_CONV="]
["BENEF_S015_AMC_CSR="]
["BENEF_S015_DATE_DEB_DROITS="]
["BENEF_S015_DATE_RAD="]
["**Date d'admission du scénario S015 à renseigner au format AAAA-MM-JJ et qui doit être inférieur ou égale de moins 1 jour par rapport la date du jour**"]
["DATE_ADMISSION_S015="]
[]
["****** Bénéficiaire du scénario S016 avec des droits ouverts et bénéficie d’un contrat responsable ******"]
["ODR_S016_NIR="]
["ODR_S016_CLE_NIR="]
["ODR_S016_CODE_REGIME_AMO="]
["ODR_S016_CODE_CAISSE_AMO="]
["ODR_S016_CODE_CENTRE_AMO="]
["BENEF_S016_DATE_NAISSANCE="]
["BENEF_S016_RANG_NAISSANCE="]
["BENEF_S016_NOM="]
["BENEF_S016_PRENOM="]
["BENEF_S016_NIR="]
["BENEF_S016_CLE_NIR="]
["BENEF_S016_AMC_NUM_AMC="]
["BENEF_S016_NUM_ADHERENT="]
["BENEF_S016_AMC_TYPE_CONV="]
["BENEF_S016_AMC_CSR="]
["BENEF_S016_DATE_DEB_DROITS="]
["BENEF_S016_DATE_RAD="]
["**Date d'admission du scénario S016 à renseigner au format AAAA-MM-JJ et qui doit être inférieur ou égale de moins 8 jours par rapport la date du jour**"]
["DATE_ADMISSION_S016="]
[]
["****** Bénéficiaire du scénario S017 avec des droits ouverts et bénéficie d’un contrat responsable ******"]
["ODR_S017_NIR="]
["ODR_S017_CLE_NIR="]
["ODR_S017_CODE_REGIME_AMO="]
["ODR_S017_CODE_CAISSE_AMO="]
["ODR_S017_CODE_CENTRE_AMO="]
["BENEF_S017_DATE_NAISSANCE="]
["BENEF_S017_RANG_NAISSANCE="]
["BENEF_S017_NOM="]
["BENEF_S017_PRENOM="]
["BENEF_S017_NIR="]
["BENEF_S017_CLE_NIR="]
["BENEF_S017_AMC_NUM_AMC="]
["BENEF_S017_NUM_ADHERENT="]
["BENEF_S017_AMC_TYPE_CONV="]
["BENEF_S017_AMC_CSR="]
["BENEF_S017_DATE_DEB_DROITS="]
["BENEF_S017_DATE_RAD="]
["**Date d'admission du scénario S017 à renseigner au format AAAA-MM-JJ et qui doit être inférieur ou égale de moins 19 jours par rapport la date du jour**"]
["DATE_ADMISSION_S017="]
[]
["****** Bénéficiaire du scénario S018 avec des droits ouverts et bénéficie d’un contrat responsable ******"]
["ODR_S018_NIR="]
["ODR_S018_CLE_NIR="]
["ODR_S018_CODE_REGIME_AMO="]
["ODR_S018_CODE_CAISSE_AMO="]
["ODR_S018_CODE_CENTRE_AMO="]
["BENEF_S018_DATE_NAISSANCE="]
["BENEF_S018_RANG_NAISSANCE="]
["BENEF_S018_NOM="]
["BENEF_S018_PRENOM="]
["BENEF_S018_NIR="]
["BENEF_S018_CLE_NIR="]
["BENEF_S018_AMC_NUM_AMC="]
["BENEF_S018_NUM_ADHERENT="]
["BENEF_S018_AMC_TYPE_CONV="]
["BENEF_S018_AMC_CSR="]
["BENEF_S018_DATE_DEB_DROITS="]
["BENEF_S018_DATE_RAD="]
["**Date d'admission du scénario S018 à renseigner au format AAAA-MM-JJ et qui doit être inférieur ou égale de moins 3 jours par rapport la date du jour**"]
["DATE_ADMISSION_S018="]
[]
["**Les variables suivantes ne doivent pas être modifiées par l'AMC**"]
["certName=ETS_01"]
["xml_flux="]
["assertion="]